Body Name,Body,Service Area Categorisation,Service Division Categorisation,Responsible Unit,Expenses Type,Detailed Expenses Type,Payment Date,Transaction Number,Payment Amount,Supplier Type,Supplier Name,Supplier Id
Portsmouth City Council,PCC,Highways and Transport Services,Parking Services,Regeneration,Third Party Payments,Private contractors,01/04/2020,6355725,50,VENDOR,BOARHUNT GROUP LTD,103726
Portsmouth City Council,PCC,Highways and Transport Services,Parking Services,Regeneration,Third Party Payments,Private contractors,01/04/2020,6355725,25,VENDOR,BOARHUNT GROUP LTD,103726
Portsmouth City Council,PCC,Highways and Transport Services,Parking Services,Regeneration,Third Party Payments,Private contractors,01/04/2020,6355725,50,VENDOR,BOARHUNT GROUP LTD,103726
Portsmouth City Council,PCC,Highways and Transport Services,Parking Services,Regeneration,Third Party Payments,Private contractors,01/04/2020,6355725,44,VENDOR,BOARHUNT GROUP LTD,103726
Portsmouth City Council,PCC,Highways and Transport Services,Parking Services,Regeneration,Third Party Payments,Private contractors,01/04/2020,6355725,50,VENDOR,BOARHUNT GROUP LTD,103726
Portsmouth City Council,PCC,Highways and Transport Services,Parking Services,Regeneration,Third Party Payments,Private contractors,01/04/2020,6355725,25,VENDOR,BOARHUNT GROUP LTD,103726
Portsmouth City Council,PCC,Highways and Transport Services,Parking Services,Regeneration,Third Party Payments,Private contractors,01/04/2020,6355725,50,VENDOR,BOARHUNT GROUP LTD,103726
Portsmouth City Council,PCC,Highways and Transport Services,Parking Services,Regeneration,Third Party Payments,Private contractors,01/04/2020,6355725,50,VENDOR,BOARHUNT GROUP LTD,103726
Portsmouth City Council,PCC,Highways and Transport Services,Parking Services,Regeneration,Third Party Payments,Private contractors,01/04/2020,6355725,50,VENDOR,BOARHUNT GROUP LTD,103726
Portsmouth City Council,PCC,Highways and Transport Services,Parking Services,Regeneration,Third Party Payments,Private contractors,01/04/2020,6355725,30,VENDOR,BOARHUNT GROUP LTD,103726
Portsmouth City Council,PCC,Highways and Transport Services,Parking Services,Regeneration,Third Party Payments,Private contractors,01/04/2020,6355725,50,VENDOR,BOARHUNT GROUP LTD,103726
Portsmouth City Council,PCC,Highways and Transport Services,Parking Services,Regeneration,Third Party Payments,Private contractors,01/04/2020,6355725,30,VENDOR,BOARHUNT GROUP LTD,103726
Portsmouth City Council,PCC,Highways and Transport Services,Parking Services,Regeneration,Third Party Payments,Private contractors,01/04/2020,6355725,30,VENDOR,BOARHUNT GROUP LTD,103726
Portsmouth City Council,PCC,Highways and Transport Services,Parking Services,Regeneration,Third Party Payments,Private contractors,08/04/2020,6357177,50,VENDOR,BOARHUNT GROUP LTD,103726
Portsmouth City Council,PCC,Highways and Transport Services,Parking Services,Regeneration,Third Party Payments,Private contractors,08/04/2020,6357177,50,VENDOR,BOARHUNT GROUP LTD,103726
Portsmouth City Council,PCC,Highways and Transport Services,Parking Services,Regeneration,Third Party Payments,Private contractors,08/04/2020,6357177,25,VENDOR,BOARHUNT GROUP LTD,103726
Portsmouth City Council,PCC,Highways and Transport Services,Parking Services,Regeneration,Third Party Payments,Private contractors,08/04/2020,6357177,50,VENDOR,BOARHUNT GROUP LTD,103726
Portsmouth City Council,PCC,Highways and Transport Services,Parking Services,Regeneration,Third Party Payments,Private contractors,08/04/2020,6357177,30,VENDOR,BOARHUNT GROUP LTD,103726
Portsmouth City Council,PCC,Highways and Transport Services,Parking Services,Regeneration,Third Party Payments,Private contractors,08/04/2020,6357177,50,VENDOR,BOARHUNT GROUP LTD,103726
Portsmouth City Council,PCC,Highways and Transport Services,Parking Services,Regeneration,Third Party Payments,Private contractors,08/04/2020,6357177,90,VENDOR,BOARHUNT GROUP LTD,103726
Portsmouth City Council,PCC,Highways and Transport Services,Parking Services,Regeneration,Third Party Payments,Private contractors,08/04/2020,6357177,30,VENDOR,BOARHUNT GROUP LTD,103726
Portsmouth City Council,PCC,Highways and Transport Services,Parking Services,Regeneration,Third Party Payments,Private contractors,08/04/2020,6357177,44,VENDOR,BOARHUNT GROUP LTD,103726
Portsmouth City Council,PCC,Highways and Transport Services,Parking Services,Regeneration,Third Party Payments,Private contractors,16/04/2020,6358753,50,VENDOR,BOARHUNT GROUP LTD,103726
Portsmouth City Council,PCC,Highways and Transport Services,Parking Services,Regeneration,Third Party Payments,Private contractors,16/04/2020,6358753,35,VENDOR,BOARHUNT GROUP LTD,103726
Portsmouth City Council,PCC,Highways and Transport Services,Parking Services,Regeneration,Third Party Payments,Private contractors,16/04/2020,6358753,35,VENDOR,BOARHUNT GROUP LTD,103726
Portsmouth City Council,PCC,Highways and Transport Services,Parking Services,Regeneration,Third Party Payments,Private contractors,16/04/2020,6358753,60,VENDOR,BOARHUNT GROUP LTD,103726
Portsmouth City Council,PCC,Highways and Transport Services,Parking Services,Regeneration,Third Party Payments,Private contractors,16/04/2020,6358753,25,VENDOR,BOARHUNT GROUP LTD,103726
Portsmouth City Council,PCC,Highways and Transport Services,Parking Services,Regeneration,Third Party Payments,Private contractors,16/04/2020,6358753,50,VENDOR,BOARHUNT GROUP LTD,103726
Portsmouth City Council,PCC,Highways and Transport Services,Parking Services,Regeneration,Third Party Payments,Private contractors,16/04/2020,6358753,50,VENDOR,BOARHUNT GROUP LTD,103726
Portsmouth City Council,PCC,Highways and Transport Services,Parking Services,Regeneration,Third Party Payments,Private contractors,16/04/2020,6358753,50,VENDOR,BOARHUNT GROUP LTD,103726
Portsmouth City Council,PCC,Highways and Transport Services,Parking Services,Regeneration,Third Party Payments,Private contractors,16/04/2020,6358753,44,VENDOR,BOARHUNT GROUP LTD,103726
Portsmouth City Council,PCC,Highways and Transport Services,Parking Services,Regeneration,Transport-Related Expenditure,Direct transport costs,16/04/2020,6358753,50.2,VENDOR,BOARHUNT GROUP LTD,103726
Portsmouth City Council,PCC,Highways and Transport Services,Parking Services,Regeneration,Premises-Related Expenditure,Rents,22/04/2020,6360232,1600,VENDOR,BOARHUNT GROUP LTD,103726
Portsmouth City Council,PCC,Highways and Transport Services,Parking Services,Regeneration,Third Party Payments,Private contractors,22/04/2020,6360232,44,VENDOR,BOARHUNT GROUP LTD,103726
Portsmouth City Council,PCC,Highways and Transport Services,Parking Services,Regeneration,Third Party Payments,Private contractors,22/04/2020,6360232,60,VENDOR,BOARHUNT GROUP LTD,103726
Portsmouth City Council,PCC,Highways and Transport Services,Parking Services,Regeneration,Third Party Payments,Private contractors,22/04/2020,6360232,50,VENDOR,BOARHUNT GROUP LTD,103726
Portsmouth City Council,PCC,Other,Suspense and Capital Schemes,Capital - Education,Capital Charges,REFCUS,16/04/2020,6358868,734,VENDOR,SOLENT ACADEMIES TRUST,138071
Portsmouth City Council,PCC,Other,Suspense and Capital Schemes,Capital - Education,Capital Charges,REFCUS,16/04/2020,6358869,4475.15,VENDOR,SOLENT ACADEMIES TRUST,138071
Portsmouth City Council,PCC,Children's and Education Services,Other Education and Community Budget,Children's Services and Education,Third Party Payments,Private contractors,07/04/2020,6357066,7000,VENDOR,SOLENT ACADEMIES TRUST,138071
Portsmouth City Council,PCC,Children's and Education Services,Children Looked After,Children's Services and Education,Third Party Payments,Other establishments,06/04/2020,6356577,-15885.71,VENDOR,KEYS PCE LIMITED,137236
Portsmouth City Council,PCC,Children's and Education Services,Children Looked After,Children's Services and Education,Third Party Payments,Other establishments,06/04/2020,6356577,15885.71,VENDOR,KEYS PCE LIMITED,137236
Portsmouth City Council,PCC,Children's and Education Services,Children Looked After,Children's Services and Education,Third Party Payments,Other establishments,06/04/2020,6356577,9750,VENDOR,KEYS PCE LIMITED,137236
Portsmouth City Council,PCC,Children's and Education Services,Children Looked After,Children's Services and Education,Third Party Payments,Other establishments,28/04/2020,6361806,1260,VENDOR,KEYS PCE LIMITED,137236
Portsmouth City Council,PCC,Highways and Transport Services,Parking Services,Regeneration,Third Party Payments,Private contractors,23/04/2020,6361083,350.81,VENDOR,PRODUCT DEVELOPMENT CORPORATION,134173
Portsmouth City Council,PCC,Highways and Transport Services,Parking Services,Regeneration,Third Party Payments,Private contractors,23/04/2020,6361083,361.56,VENDOR,PRODUCT DEVELOPMENT CORPORATION,134173
Portsmouth City Council,PCC,Highways and Transport Services,Parking Services,Regeneration,Third Party Payments,Private contractors,23/04/2020,6361083,214.47,VENDOR,PRODUCT DEVELOPMENT CORPORATION,134173
Portsmouth City Council,PCC,Other,Suspense and Capital Schemes,Finance & Resources,Transport-Related Expenditure,Public transport,16/04/2020,6358746,2756.1,VENDOR,ATOC LTD,103839
Portsmouth City Council,PCC,Highways and Transport Services,Parking Services,Regeneration,Supplies and Services,Communications and computing,06/04/2020,6356651,383.56,VENDOR,VIDEALERT LTD,140581
Portsmouth City Council,PCC,Highways and Transport Services,Parking Services,Regeneration,Supplies and Services,Communications and computing,06/04/2020,6356651,2202.74,VENDOR,VIDEALERT LTD,140581
Portsmouth City Council,PCC,Highways and Transport Services,Parking Services,Regeneration,Supplies and Services,Communications and computing,06/04/2020,6356651,4633.56,VENDOR,VIDEALERT LTD,140581
Portsmouth City Council,PCC,Highways and Transport Services,Parking Services,Regeneration,Supplies and Services,Expenses,06/04/2020,6356651,887.75,VENDOR,VIDEALERT LTD,140581
Portsmouth City Council,PCC,Highways and Transport Services,Parking Services,Regeneration,Supplies and Services,Expenses,06/04/2020,6356651,400.55,VENDOR,VIDEALERT LTD,140581
Portsmouth City Council,PCC,Highways and Transport Services,Parking Services,Regeneration,Supplies and Services,Expenses,06/04/2020,6356651,1369.32,VENDOR,VIDEALERT LTD,140581
Portsmouth City Council,PCC,Highways and Transport Services,Parking Services,Regeneration,Supplies and Services,Expenses,06/04/2020,6356651,1890.49,VENDOR,VIDEALERT LTD,140581
Portsmouth City Council,PCC,Children's and Education Services,Children Looked After,Children's Services and Education,Third Party Payments,Other establishments,23/04/2020,6361063,0.38,VENDOR,KEYS PCE LIMITED,137236
Portsmouth City Council,PCC,Children's and Education Services,Children Looked After,Children's Services and Education,Third Party Payments,Other establishments,23/04/2020,6361063,18821.05,VENDOR,KEYS PCE LIMITED,137236
Portsmouth City Council,PCC,Children's and Education Services,Children Looked After,Children's Services and Education,Third Party Payments,Other establishments,23/04/2020,6361063,0.02,VENDOR,KEYS PCE LIMITED,137236
Portsmouth City Council,PCC,Children's and Education Services,Children Looked After,Children's Services and Education,Third Party Payments,Other establishments,23/04/2020,6361063,18821.41,VENDOR,KEYS PCE LIMITED,137236
Portsmouth City Council,PCC,Planning Services,Business support,Regeneration,Third Party Payments,Private contractors,06/04/2020,6356634,10,VENDOR,TECHNOLOGY WITHIN LIMITED,143958
Portsmouth City Council,PCC,Planning Services,Business support,Regeneration,Premises-Related Expenditure,"Repairs, alterations and maintenance of buildings",06/04/2020,6356634,60,VENDOR,TECHNOLOGY WITHIN LIMITED,143958
Portsmouth City Council,PCC,Children's and Education Services,Children Looked After,Children's Services and Education,Supplies and Services,Miscellaneous expenses,09/04/2020,6357473,5293.75,VENDOR,PAULTONS PARK LTD,104869
Portsmouth City Council,PCC,Children's and Education Services,Children Looked After,Children's Services and Education,Third Party Payments,Other establishments,27/04/2020,6361577,203.5,VENDOR,HORIZON CARE AND EDUCATION GROUP LTD,138450
Portsmouth City Council,PCC,Children's and Education Services,Children Looked After,Children's Services and Education,Third Party Payments,Other establishments,27/04/2020,6361577,450,VENDOR,HORIZON CARE AND EDUCATION GROUP LTD,138450
Portsmouth City Council,PCC,Children's and Education Services,Children Looked After,Children's Services and Education,Third Party Payments,Other establishments,27/04/2020,6361577,238.5,VENDOR,HORIZON CARE AND EDUCATION GROUP LTD,138450
Portsmouth City Council,PCC,Children's and Education Services,Children Looked After,Children's Services and Education,Third Party Payments,Other establishments,02/04/2020,6356395,57.9,VENDOR,HORIZON CARE AND EDUCATION GROUP LTD,138450
Portsmouth City Council,PCC,Children's and Education Services,Children Looked After,Children's Services and Education,Third Party Payments,Other establishments,02/04/2020,6356395,2817.35,VENDOR,HORIZON CARE AND EDUCATION GROUP LTD,138450
Portsmouth City Council,PCC,Children's and Education Services,Children Looked After,Children's Services and Education,Third Party Payments,Other establishments,02/04/2020,6356395,2817.06,VENDOR,HORIZON CARE AND EDUCATION GROUP LTD,138450
Portsmouth City Council,PCC,Children's and Education Services,Children Looked After,Children's Services and Education,Third Party Payments,Other establishments,29/04/2020,6362194,2883.47,VENDOR,HORIZON CARE AND EDUCATION GROUP LTD,138450
Portsmouth City Council,PCC,Children's and Education Services,Children Looked After,Children's Services and Education,Third Party Payments,Other establishments,27/04/2020,6361577,-14.7,VENDOR,HORIZON CARE AND EDUCATION GROUP LTD,138450
Portsmouth City Council,PCC,Children's and Education Services,Children Looked After,Children's Services and Education,Third Party Payments,Other establishments,27/04/2020,6361577,-4.2,VENDOR,HORIZON CARE AND EDUCATION GROUP LTD,138450
Portsmouth City Council,PCC,Children's and Education Services,Children Looked After,Children's Services and Education,Third Party Payments,Other establishments,27/04/2020,6361577,-6.3,VENDOR,HORIZON CARE AND EDUCATION GROUP LTD,138450
Portsmouth City Council,PCC,Children's and Education Services,Children Looked After,Children's Services and Education,Third Party Payments,Other establishments,29/04/2020,6362194,3011.34,VENDOR,HORIZON CARE AND EDUCATION GROUP LTD,138450
Portsmouth City Council,PCC,Children's and Education Services,Children Looked After,Children's Services and Education,Third Party Payments,Other establishments,29/04/2020,6362194,3082.33,VENDOR,HORIZON CARE AND EDUCATION GROUP LTD,138450
Portsmouth City Council,PCC,Children's and Education Services,Children Looked After,Children's Services and Education,Third Party Payments,Other establishments,30/04/2020,6362632,2514.29,VENDOR,FIVE RIVERS CHILD CARE LIMITED,106901
Portsmouth City Council,PCC,Children's and Education Services,Children Looked After,Children's Services and Education,Third Party Payments,Other establishments,30/04/2020,6362632,7085.71,VENDOR,FIVE RIVERS CHILD CARE LIMITED,106901
Portsmouth City Council,PCC,Children's and Education Services,Children Looked After,Children's Services and Education,Third Party Payments,Other establishments,30/04/2020,6362632,7085.71,VENDOR,FIVE RIVERS CHILD CARE LIMITED,106901
Portsmouth City Council,PCC,Children's and Education Services,Children Looked After,Children's Services and Education,Third Party Payments,Other establishments,30/04/2020,6362632,6628.57,VENDOR,FIVE RIVERS CHILD CARE LIMITED,106901
Portsmouth City Council,PCC,Children's and Education Services,Children Looked After,Children's Services and Education,Third Party Payments,Other establishments,30/04/2020,6362632,7085.71,VENDOR,FIVE RIVERS CHILD CARE LIMITED,106901
Portsmouth City Council,PCC,Children's and Education Services,Children Looked After,Children's Services and Education,Third Party Payments,Other establishments,30/04/2020,6362674,-0.01,VENDOR,FIVE RIVERS CHILD CARE LIMITED,106901
Portsmouth City Council,PCC,Children's and Education Services,Children Looked After,Children's Services and Education,Third Party Payments,Other establishments,30/04/2020,6362674,6857.15,VENDOR,FIVE RIVERS CHILD CARE LIMITED,106901
Portsmouth City Council,PCC,Planning Services,Business support,Regeneration,Supplies and Services,Communications and computing,06/04/2020,6356634,22.01,VENDOR,TECHNOLOGY WITHIN LIMITED,143958
Portsmouth City Council,PCC,Planning Services,Business support,Regeneration,Supplies and Services,Communications and computing,06/04/2020,6356634,3119.67,VENDOR,TECHNOLOGY WITHIN LIMITED,143958
Portsmouth City Council,PCC,Adult Social Care,Assistive Equipment & Technology,"Housing, Neighbourhood and Building Services",Supplies and Services,"Equipment, furniture and materials",14/04/2020,6357752,72.2,VENDOR,TYNETEC B/U OF LEGRAND ELECTRIC LTD,140439
Portsmouth City Council,PCC,Adult Social Care,Assistive Equipment & Technology,"Housing, Neighbourhood and Building Services",Supplies and Services,"Equipment, furniture and materials",14/04/2020,6357752,195.3,VENDOR,TYNETEC B/U OF LEGRAND ELECTRIC LTD,140439
Portsmouth City Council,PCC,Adult Social Care,Assistive Equipment & Technology,"Housing, Neighbourhood and Building Services",Supplies and Services,"Equipment, furniture and materials",14/04/2020,6357752,72.2,VENDOR,TYNETEC B/U OF LEGRAND ELECTRIC LTD,140439
Portsmouth City Council,PCC,Adult Social Care,Assistive Equipment & Technology,"Housing, Neighbourhood and Building Services",Supplies and Services,"Equipment, furniture and materials",14/04/2020,6357752,1434.8,VENDOR,TYNETEC B/U OF LEGRAND ELECTRIC LTD,140439
Portsmouth City Council,PCC,Adult Social Care,Assistive Equipment & Technology,"Housing, Neighbourhood and Building Services",Supplies and Services,"Equipment, furniture and materials",14/04/2020,6357752,811.2,VENDOR,TYNETEC B/U OF LEGRAND ELECTRIC LTD,140439
Portsmouth City Council,PCC,Adult Social Care,Assistive Equipment & Technology,"Housing, Neighbourhood and Building Services",Supplies and Services,"Equipment, furniture and materials",14/04/2020,6357752,75,VENDOR,TYNETEC B/U OF LEGRAND ELECTRIC LTD,140439
Portsmouth City Council,PCC,Adult Social Care,Assistive Equipment & Technology,"Housing, Neighbourhood and Building Services",Supplies and Services,"Equipment, furniture and materials",30/04/2020,6362668,228.5,VENDOR,TYNETEC B/U OF LEGRAND ELECTRIC LTD,140439
Portsmouth City Council,PCC,Adult Social Care,Assistive Equipment & Technology,"Housing, Neighbourhood and Building Services",Supplies and Services,"Equipment, furniture and materials",30/04/2020,6362668,312,VENDOR,TYNETEC B/U OF LEGRAND ELECTRIC LTD,140439
Portsmouth City Council,PCC,Adult Social Care,Assistive Equipment & Technology,"Housing, Neighbourhood and Building Services",Supplies and Services,"Equipment, furniture and materials",30/04/2020,6362668,150,VENDOR,TYNETEC B/U OF LEGRAND ELECTRIC LTD,140439
Portsmouth City Council,PCC,Support Service / Transparency Costs Unallocated,AMS,"Housing, Neighbourhood and Building Services",Supplies and Services,"Equipment, furniture and materials",09/04/2020,6357484,3450,VENDOR,PORTSDOWN OFFICE LTD,100059
Portsmouth City Council,PCC,Support Service / Transparency Costs Unallocated,AMS,"Housing, Neighbourhood and Building Services",Supplies and Services,"Equipment, furniture and materials",29/04/2020,6362341,254.19,VENDOR,PORTSDOWN OFFICE LTD,100059
Portsmouth City Council,PCC,Support Service / Transparency Costs Unallocated,AMS,"Housing, Neighbourhood and Building Services",Supplies and Services,"Equipment, furniture and materials",29/04/2020,6362341,3195.81,VENDOR,PORTSDOWN OFFICE LTD,100059
Portsmouth City Council,PCC,Support Service / Transparency Costs Unallocated,AMS,"Housing, Neighbourhood and Building Services",Supplies and Services,"Equipment, furniture and materials",24/04/2020,6361398,2678.47,VENDOR,PORTSDOWN OFFICE LTD,100059
Portsmouth City Council,PCC,Support Service / Transparency Costs Unallocated,AMS,"Housing, Neighbourhood and Building Services",Supplies and Services,"Equipment, furniture and materials",24/04/2020,6361398,449,VENDOR,PORTSDOWN OFFICE LTD,100059
Portsmouth City Council,PCC,Cultural and Related Services,Culture and Heritage,"Culture, Leisure & Regulatory Services",Supplies and Services,"Equipment, furniture and materials",06/04/2020,6356606,84,VENDOR,PRESERVATION EQUIPMENT LTD,101097
Portsmouth City Council,PCC,Cultural and Related Services,Culture and Heritage,"Culture, Leisure & Regulatory Services",Supplies and Services,"Equipment, furniture and materials",06/04/2020,6356606,95.6,VENDOR,PRESERVATION EQUIPMENT LTD,101097
Portsmouth City Council,PCC,Cultural and Related Services,Culture and Heritage,"Culture, Leisure & Regulatory Services",Supplies and Services,"Equipment, furniture and materials",06/04/2020,6356606,21.95,VENDOR,PRESERVATION EQUIPMENT LTD,101097
Portsmouth City Council,PCC,Cultural and Related Services,Culture and Heritage,"Culture, Leisure & Regulatory Services",Supplies and Services,"Equipment, furniture and materials",06/04/2020,6356606,168.2,VENDOR,PRESERVATION EQUIPMENT LTD,101097
Portsmouth City Council,PCC,Cultural and Related Services,Culture and Heritage,"Culture, Leisure & Regulatory Services",Supplies and Services,"Equipment, furniture and materials",06/04/2020,6356606,646.1,VENDOR,PRESERVATION EQUIPMENT LTD,101097
Portsmouth City Council,PCC,Cultural and Related Services,Culture and Heritage,"Culture, Leisure & Regulatory Services",Supplies and Services,"Equipment, furniture and materials",06/04/2020,6356606,384,VENDOR,PRESERVATION EQUIPMENT LTD,101097
Portsmouth City Council,PCC,Cultural and Related Services,Culture and Heritage,"Culture, Leisure & Regulatory Services",Supplies and Services,"Equipment, furniture and materials",06/04/2020,6356606,63.8,VENDOR,PRESERVATION EQUIPMENT LTD,101097
Portsmouth City Council,PCC,Cultural and Related Services,Culture and Heritage,"Culture, Leisure & Regulatory Services",Supplies and Services,"Equipment, furniture and materials",06/04/2020,6356606,302,VENDOR,PRESERVATION EQUIPMENT LTD,101097
Portsmouth City Council,PCC,Cultural and Related Services,Culture and Heritage,"Culture, Leisure & Regulatory Services",Supplies and Services,"Equipment, furniture and materials",06/04/2020,6356606,316,VENDOR,PRESERVATION EQUIPMENT LTD,101097
Portsmouth City Council,PCC,Cultural and Related Services,Culture and Heritage,"Culture, Leisure & Regulatory Services",Supplies and Services,"Equipment, furniture and materials",06/04/2020,6356606,152,VENDOR,PRESERVATION EQUIPMENT LTD,101097
Portsmouth City Council,PCC,Cultural and Related Services,Culture and Heritage,"Culture, Leisure & Regulatory Services",Supplies and Services,"Equipment, furniture and materials",06/04/2020,6356606,64,VENDOR,PRESERVATION EQUIPMENT LTD,101097
Portsmouth City Council,PCC,Cultural and Related Services,Culture and Heritage,"Culture, Leisure & Regulatory Services",Supplies and Services,"Equipment, furniture and materials",06/04/2020,6356606,34.8,VENDOR,PRESERVATION EQUIPMENT LTD,101097
Portsmouth City Council,PCC,Cultural and Related Services,Culture and Heritage,"Culture, Leisure & Regulatory Services",Supplies and Services,"Equipment, furniture and materials",06/04/2020,6356606,37.5,VENDOR,PRESERVATION EQUIPMENT LTD,101097
Portsmouth City Council,PCC,Cultural and Related Services,Culture and Heritage,"Culture, Leisure & Regulatory Services",Supplies and Services,"Equipment, furniture and materials",06/04/2020,6356606,61.2,VENDOR,PRESERVATION EQUIPMENT LTD,101097
Portsmouth City Council,PCC,Cultural and Related Services,Culture and Heritage,"Culture, Leisure & Regulatory Services",Supplies and Services,"Equipment, furniture and materials",06/04/2020,6356606,30.4,VENDOR,PRESERVATION EQUIPMENT LTD,101097
Portsmouth City Council,PCC,Cultural and Related Services,Culture and Heritage,"Culture, Leisure & Regulatory Services",Supplies and Services,"Equipment, furniture and materials",06/04/2020,6356606,76.9,VENDOR,PRESERVATION EQUIPMENT LTD,101097
Portsmouth City Council,PCC,Cultural and Related Services,Culture and Heritage,"Culture, Leisure & Regulatory Services",Supplies and Services,"Equipment, furniture and materials",06/04/2020,6356606,2.95,VENDOR,PRESERVATION EQUIPMENT LTD,101097
Portsmouth City Council,PCC,Cultural and Related Services,Culture and Heritage,"Culture, Leisure & Regulatory Services",Supplies and Services,"Equipment, furniture and materials",06/04/2020,6356606,140,VENDOR,PRESERVATION EQUIPMENT LTD,101097
Portsmouth City Council,PCC,Cultural and Related Services,Culture and Heritage,"Culture, Leisure & Regulatory Services",Supplies and Services,"Equipment, furniture and materials",06/04/2020,6356606,39.6,VENDOR,PRESERVATION EQUIPMENT LTD,101097
Portsmouth City Council,PCC,Cultural and Related Services,Library Service,"Culture, Leisure & Regulatory Services",Supplies and Services,"Equipment, furniture and materials",06/04/2020,6356606,426.72,VENDOR,PRESERVATION EQUIPMENT LTD,101097
Portsmouth City Council,PCC,Cultural and Related Services,Culture and Heritage,"Culture, Leisure & Regulatory Services",Supplies and Services,"Printing, stationery and general office expenses",06/04/2020,6356606,44.95,VENDOR,PRESERVATION EQUIPMENT LTD,101097
Portsmouth City Council,PCC,Children's and Education Services,Other Children and Family Services,Children's Services and Education,Supplies and Services,Services,06/04/2020,6356492,599,VENDOR,ALERE TOXICOLOGY PLC,121708
Portsmouth City Council,PCC,Other,Suspense and Capital Schemes,Capital - Traffic & Transportation,Capital Charges,Capital Expenditure (WIP),06/04/2020,6356568,1215,VENDOR,HYPERION INFRASTRUCTURE CONSULTANCY,144798
Portsmouth City Council,PCC,Other,Suspense and Capital Schemes,Capital - Traffic & Transportation,Capital Charges,Capital Expenditure (WIP),27/04/2020,6361582,3760,VENDOR,HYPERION INFRASTRUCTURE CONSULTANCY,144798
Portsmouth City Council,PCC,Environmental and Regulatory Services,Regulatory Services,"Culture, Leisure & Regulatory Services",Supplies and Services,Services,27/04/2020,6361454,440,VENDOR,ALERE TOXICOLOGY PLC,121708
Portsmouth City Council,PCC,Children's and Education Services,Children Looked After,Children's Services and Education,Third Party Payments,Other establishments,29/04/2020,6362496,2935.25,VENDOR,FIVE RIVERS CHILD CARE LIMITED,106901
Portsmouth City Council,PCC,Children's and Education Services,Children Looked After,Children's Services and Education,Third Party Payments,Other establishments,29/04/2020,6362496,4167.29,VENDOR,FIVE RIVERS CHILD CARE LIMITED,106901
Portsmouth City Council,PCC,Highways and Transport Services,"Transport Planning, Policy and Strategy",Regeneration,Employees,Direct employee expenses,29/04/2020,6362440,3534,VENDOR,TURNER & TOWNSEND GROUP LIMITED,132225
Portsmouth City Council,PCC,Children's and Education Services,Other Education and Community Budget,Children's Services and Education,Transport-Related Expenditure,Car allowances,21/04/2020,6359920,2100,VENDOR, A.J.S TRAVEL,146803
Portsmouth City Council,PCC,Highways and Transport Services,"Transport Planning, Policy and Strategy",Regeneration,Supplies and Services,Services,16/04/2020,6358832,3873.13,VENDOR,INTEGRATED TRANSPORT PLANNING LTD,125772
Portsmouth City Council,PCC,Other,Suspense and Capital Schemes,Capital - Leader,Capital Charges,Capital Expenditure (WIP),15/04/2020,6357825,36200,VENDOR,LESLIE JONES ARCHITECTS LTD,146335
Portsmouth City Council,PCC,Housing Services,Supporting People,"Housing, Neighbourhood and Building Services",Third Party Payments,Other establishments,16/04/2020,6358885,4166.67,VENDOR,TWO SAINTS LTD,102584
Portsmouth City Council,PCC,Housing Services,Homelessness,"Housing, Neighbourhood and Building Services",Supplies and Services,Grants and subscriptions,09/04/2020,6357577,59000,VENDOR,TWO SAINTS LTD,102584
Portsmouth City Council,PCC,Housing Services,Homelessness,"Housing, Neighbourhood and Building Services",Supplies and Services,Grants and subscriptions,09/04/2020,6357577,4710.6,VENDOR,TWO SAINTS LTD,102584
Portsmouth City Council,PCC,Children's and Education Services,Other Children and Family Services,Children's Services and Education,Supplies and Services,Communications and computing,27/04/2020,6361613,10000,VENDOR,SERVELEC GROUP LTD,144037
Portsmouth City Council,PCC,Other,Suspense and Capital Schemes,Capital - Children & Families,Capital Charges,Capital Expenditure (WIP),27/04/2020,6361613,49760,VENDOR,SERVELEC GROUP LTD,144037
Portsmouth City Council,PCC,Cultural and Related Services,Recreation and Sport,"Culture, Leisure & Regulatory Services",Supplies and Services,Grants and subscriptions,20/04/2020,6359614,2500,VENDOR,STACEY COMMUNITY ASSOCIATION,102694
Portsmouth City Council,PCC,Other,Suspense and Capital Schemes,Capital - Traffic & Transportation,Capital Charges,Capital Expenditure (WIP),09/04/2020,6357480,750,VENDOR,PLEYDELL TECHNOLOGY CONSULTING LTD,144609
Portsmouth City Council,PCC,Highways and Transport Services,"Airports, Harbours and Toll Facilities",Portsmouth International Port,Premises-Related Expenditure,"Repairs, alterations and maintenance of buildings",16/04/2020,6358821,1658,VENDOR,ERIKS INDUSTRIAL SERVICES LTD,137875
Portsmouth City Council,PCC,Costs below Net Cost of Services,Trading,Finance & Resources,Supplies and Services,Miscellaneous expenses,28/04/2020,6361857,1363.6,VENDOR,WEIGHTMANS LLP,127719
Portsmouth City Council,PCC,Corporate and Democratic Core,Democratic Representation and Management,Corporate Services,Supplies and Services,Communications and computing,08/04/2020,6357173,1500,COMPANY,AUDITEL RENTAL AND SERVICE LTD,142888
Portsmouth City Council,PCC,Support Service / Transparency Costs Unallocated,AMS,"Housing, Neighbourhood and Building Services",Supplies and Services,"Equipment, furniture and materials",28/04/2020,6361838,360,VENDOR,SYSCO GUEST SUPPLY EUROPE LIMITED,146793
Portsmouth City Council,PCC,Support Service / Transparency Costs Unallocated,AMS,"Housing, Neighbourhood and Building Services",Supplies and Services,"Equipment, furniture and materials",28/04/2020,6361838,2048.74,VENDOR,SYSCO GUEST SUPPLY EUROPE LIMITED,146793
Portsmouth City Council,PCC,Support Service / Transparency Costs Unallocated,AMS,"Housing, Neighbourhood and Building Services",Supplies and Services,"Printing, stationery and general office expenses",28/04/2020,6361838,25,VENDOR,SYSCO GUEST SUPPLY EUROPE LIMITED,146793
Portsmouth City Council,PCC,Adult Social Care,Social Care Activities,Adult Services,Third Party Payments,Other establishments,01/04/2020,6356292,1050.06,VENDOR,SISTERLY CARE LTD,126324
Portsmouth City Council,PCC,Adult Social Care,Social Care Activities,Adult Services,Third Party Payments,Other establishments,01/04/2020,6356292,1050.06,VENDOR,SISTERLY CARE LTD,126324
Portsmouth City Council,PCC,Adult Social Care,Social Care Activities,Adult Services,Third Party Payments,Other establishments,01/04/2020,6356292,454.08,VENDOR,SISTERLY CARE LTD,126324
Portsmouth City Council,PCC,Adult Social Care,Social Care Activities,Adult Services,Third Party Payments,Other establishments,01/04/2020,6356292,903.43,VENDOR,SISTERLY CARE LTD,126324
Portsmouth City Council,PCC,Adult Social Care,Social Care Activities,Adult Services,Third Party Payments,Other establishments,01/04/2020,6356292,903.43,VENDOR,SISTERLY CARE LTD,126324
Portsmouth City Council,PCC,Adult Social Care,Physical Support Adults (18 - 64),Adult Services,Third Party Payments,Other establishments,01/04/2020,6356292,354.75,VENDOR,SISTERLY CARE LTD,126324
Portsmouth City Council,PCC,Adult Social Care,Physical Support Older People (85+),Adult Services,Third Party Payments,Other establishments,01/04/2020,6356292,1064.25,VENDOR,SISTERLY CARE LTD,126324
Portsmouth City Council,PCC,Adult Social Care,Physical Support Older People (85+),Adult Services,Third Party Payments,Other establishments,01/04/2020,6356292,1064.25,VENDOR,SISTERLY CARE LTD,126324
Portsmouth City Council,PCC,Adult Social Care,Physical Support Older People (85+),Adult Services,Third Party Payments,Other establishments,01/04/2020,6356292,312.18,VENDOR,SISTERLY CARE LTD,126324
Portsmouth City Council,PCC,Adult Social Care,Physical Support Older People (85+),Adult Services,Third Party Payments,Other establishments,01/04/2020,6356292,780.45,VENDOR,SISTERLY CARE LTD,126324
Portsmouth City Council,PCC,Adult Social Care,Physical Support Older People (85+),Adult Services,Third Party Payments,Other establishments,01/04/2020,6356292,875.05,VENDOR,SISTERLY CARE LTD,126324
Portsmouth City Council,PCC,Adult Social Care,Physical Support Older People (85+),Adult Services,Third Party Payments,Other establishments,01/04/2020,6356292,1064.25,VENDOR,SISTERLY CARE LTD,126324
Portsmouth City Council,PCC,Adult Social Care,Physical Support Older People (85+),Adult Services,Third Party Payments,Other establishments,01/04/2020,6356292,1064.25,VENDOR,SISTERLY CARE LTD,126324
Portsmouth City Council,PCC,Adult Social Care,Social Support - Support for Carer,Adult Services,Third Party Payments,Other establishments,01/04/2020,6356292,227.04,VENDOR,SISTERLY CARE LTD,126324
Portsmouth City Council,PCC,Adult Social Care,Learning Disability Support  Adults (18 - 64),Adult Services,Third Party Payments,Other establishments,09/04/2020,6357276,7439.7,VENDOR,AITCH CARE HOMES (LONDON) LIMITED,125606
Portsmouth City Council,PCC,Adult Social Care,Learning Disability Support  Adults (18 - 64),Adult Services,Third Party Payments,Other establishments,09/04/2020,6357276,7760.1,VENDOR,AITCH CARE HOMES (LONDON) LIMITED,125606
Portsmouth City Council,PCC,Adult Social Care,Learning Disability Support  Adults (18 - 64),Adult Services,Third Party Payments,Other establishments,09/04/2020,6357276,8471.4,VENDOR,AITCH CARE HOMES (LONDON) LIMITED,125606
Portsmouth City Council,PCC,Adult Social Care,Social Care Activities,Adult Services,Third Party Payments,Other establishments,29/04/2020,6362386,411.51,VENDOR,SISTERLY CARE LTD,126324
Portsmouth City Council,PCC,Adult Social Care,Social Care Activities,Adult Services,Third Party Payments,Other establishments,29/04/2020,6362386,37.84,VENDOR,SISTERLY CARE LTD,126324
Portsmouth City Council,PCC,Adult Social Care,Social Care Activities,Adult Services,Third Party Payments,Other establishments,29/04/2020,6362386,283.8,VENDOR,SISTERLY CARE LTD,126324
Portsmouth City Council,PCC,Adult Social Care,Social Care Activities,Adult Services,Third Party Payments,Other establishments,29/04/2020,6362386,529.76,VENDOR,SISTERLY CARE LTD,126324
Portsmouth City Council,PCC,Adult Social Care,Social Care Activities,Adult Services,Third Party Payments,Other establishments,29/04/2020,6362386,605.44,VENDOR,SISTERLY CARE LTD,126324
Portsmouth City Council,PCC,Adult Social Care,Social Care Activities,Adult Services,Third Party Payments,Other establishments,29/04/2020,6362386,75.68,VENDOR,SISTERLY CARE LTD,126324
Portsmouth City Council,PCC,Adult Social Care,Social Care Activities,Adult Services,Third Party Payments,Other establishments,29/04/2020,6362386,728.42,VENDOR,SISTERLY CARE LTD,126324
Portsmouth City Council,PCC,Adult Social Care,Social Care Activities,Adult Services,Third Party Payments,Other establishments,29/04/2020,6362386,728.42,VENDOR,SISTERLY CARE LTD,126324
Portsmouth City Council,PCC,Adult Social Care,Social Care Activities,Adult Services,Third Party Payments,Other establishments,29/04/2020,6362386,624.36,VENDOR,SISTERLY CARE LTD,126324
Portsmouth City Council,PCC,Adult Social Care,Social Care Activities,Adult Services,Third Party Payments,Other establishments,29/04/2020,6362386,624.36,VENDOR,SISTERLY CARE LTD,126324
Portsmouth City Council,PCC,Environmental and Regulatory Services,Regulatory Services,"Culture, Leisure & Regulatory Services",Supplies and Services,"Equipment, furniture and materials",14/04/2020,6357598,8900,VENDOR,ACOUSTIC CAMERA UK LTD,146757
Portsmouth City Council,PCC,Children's and Education Services,Other Children and Family Services,Children's Services and Education,Third Party Payments,Other establishments,06/04/2020,6356499,730.23,VENDOR,APPLETREE SUPPORT LTD,126285
Portsmouth City Council,PCC,Children's and Education Services,Other Children and Family Services,Children's Services and Education,Third Party Payments,Other establishments,06/04/2020,6356499,216.36,VENDOR,APPLETREE SUPPORT LTD,126285
Portsmouth City Council,PCC,Children's and Education Services,Other Children and Family Services,Children's Services and Education,Third Party Payments,Other establishments,06/04/2020,6356499,54.09,VENDOR,APPLETREE SUPPORT LTD,126285
Portsmouth City Council,PCC,Costs below Net Cost of Services,Trading,Finance & Resources,Supplies and Services,Miscellaneous expenses,22/04/2020,6360799,1218,VENDOR,WEIGHTMANS LLP,127719
Portsmouth City Council,PCC,Adult Social Care,Social Care Activities,Adult Services,Third Party Payments,Other establishments,20/04/2020,6359566,50.64,VENDOR,KARE PLUS HOMECARE LTD T/A KARE PLUS PORTSMOUTH,146253
Portsmouth City Council,PCC,Adult Social Care,Social Care Activities,Adult Services,Third Party Payments,Other establishments,20/04/2020,6359566,265.86,VENDOR,KARE PLUS HOMECARE LTD T/A KARE PLUS PORTSMOUTH,146253
Portsmouth City Council,PCC,Adult Social Care,Social Care Activities,Adult Services,Third Party Payments,Other establishments,20/04/2020,6359566,265.86,VENDOR,KARE PLUS HOMECARE LTD T/A KARE PLUS PORTSMOUTH,146253
Portsmouth City Council,PCC,Adult Social Care,Social Care Activities,Adult Services,Third Party Payments,Other establishments,20/04/2020,6359566,59.08,VENDOR,KARE PLUS HOMECARE LTD T/A KARE PLUS PORTSMOUTH,146253
Portsmouth City Council,PCC,Adult Social Care,Mental Health Support Older People (65 - 74),Adult Services,Third Party Payments,Other establishments,20/04/2020,6359566,219.44,VENDOR,KARE PLUS HOMECARE LTD T/A KARE PLUS PORTSMOUTH,146253
Portsmouth City Council,PCC,Adult Social Care,Mental Health Support Older People (65 - 74),Adult Services,Third Party Payments,Other establishments,20/04/2020,6359566,164.58,VENDOR,KARE PLUS HOMECARE LTD T/A KARE PLUS PORTSMOUTH,146253
Portsmouth City Council,PCC,Adult Social Care,Social Care Activities,Adult Services,Third Party Payments,Other establishments,20/04/2020,6359566,2324.75,VENDOR,KARE PLUS HOMECARE LTD T/A KARE PLUS PORTSMOUTH,146253
Portsmouth City Council,PCC,Adult Social Care,Social Care Activities,Adult Services,Third Party Payments,Other establishments,20/04/2020,6359566,5546.25,VENDOR,KARE PLUS HOMECARE LTD T/A KARE PLUS PORTSMOUTH,146253
Portsmouth City Council,PCC,Adult Social Care,Social Care Activities,Adult Services,Third Party Payments,Other establishments,20/04/2020,6359566,2016,VENDOR,KARE PLUS HOMECARE LTD T/A KARE PLUS PORTSMOUTH,146253
Portsmouth City Council,PCC,Adult Social Care,Social Care Activities,Adult Services,Third Party Payments,Other establishments,20/04/2020,6359566,5796,VENDOR,KARE PLUS HOMECARE LTD T/A KARE PLUS PORTSMOUTH,146253
Portsmouth City Council,PCC,Adult Social Care,Social Care Activities,Adult Services,Third Party Payments,Other establishments,20/04/2020,6359566,1751,VENDOR,KARE PLUS HOMECARE LTD T/A KARE PLUS PORTSMOUTH,146253
Portsmouth City Council,PCC,Adult Social Care,Social Care Activities,Adult Services,Third Party Payments,Other establishments,20/04/2020,6359566,1785,VENDOR,KARE PLUS HOMECARE LTD T/A KARE PLUS PORTSMOUTH,146253
Portsmouth City Council,PCC,Adult Social Care,Social Care Activities,Adult Services,Third Party Payments,Other establishments,20/04/2020,6359566,1134,VENDOR,KARE PLUS HOMECARE LTD T/A KARE PLUS PORTSMOUTH,146253
Portsmouth City Council,PCC,Adult Social Care,Social Care Activities,Adult Services,Third Party Payments,Other establishments,20/04/2020,6359566,280,VENDOR,KARE PLUS HOMECARE LTD T/A KARE PLUS PORTSMOUTH,146253
Portsmouth City Council,PCC,Adult Social Care,Social Care Activities,Adult Services,Third Party Payments,Other establishments,20/04/2020,6359566,1666.88,VENDOR,KARE PLUS HOMECARE LTD T/A KARE PLUS PORTSMOUTH,146253
Portsmouth City Council,PCC,Adult Social Care,Social Care Activities,Adult Services,Third Party Payments,Other establishments,20/04/2020,6359566,3774,VENDOR,KARE PLUS HOMECARE LTD T/A KARE PLUS PORTSMOUTH,146253
Portsmouth City Council,PCC,Adult Social Care,Social Care Activities,Adult Services,Third Party Payments,Other establishments,20/04/2020,6359566,5040,VENDOR,KARE PLUS HOMECARE LTD T/A KARE PLUS PORTSMOUTH,146253
Portsmouth City Council,PCC,Adult Social Care,Social Care Activities,Adult Services,Third Party Payments,Other establishments,20/04/2020,6359566,6003,VENDOR,KARE PLUS HOMECARE LTD T/A KARE PLUS PORTSMOUTH,146253
Portsmouth City Council,PCC,Adult Social Care,Social Care Activities,Adult Services,Third Party Payments,Other establishments,20/04/2020,6359566,8136.75,VENDOR,KARE PLUS HOMECARE LTD T/A KARE PLUS PORTSMOUTH,146253
Portsmouth City Council,PCC,Adult Social Care,Physical Support Adults (18 - 64),Adult Services,Third Party Payments,Other establishments,20/04/2020,6359566,919.96,VENDOR,KARE PLUS HOMECARE LTD T/A KARE PLUS PORTSMOUTH,146253
Portsmouth City Council,PCC,Adult Social Care,Physical Support Adults (18 - 64),Adult Services,Third Party Payments,Other establishments,20/04/2020,6359566,919.96,VENDOR,KARE PLUS HOMECARE LTD T/A KARE PLUS PORTSMOUTH,146253
Portsmouth City Council,PCC,Adult Social Care,Physical Support Adults (18 - 64),Adult Services,Third Party Payments,Other establishments,20/04/2020,6359566,135.04,VENDOR,KARE PLUS HOMECARE LTD T/A KARE PLUS PORTSMOUTH,146253
Portsmouth City Council,PCC,Adult Social Care,Physical Support Adults (18 - 64),Adult Services,Third Party Payments,Other establishments,20/04/2020,6359566,1105.64,VENDOR,KARE PLUS HOMECARE LTD T/A KARE PLUS PORTSMOUTH,146253
Portsmouth City Council,PCC,Adult Social Care,Physical Support Adults (18 - 64),Adult Services,Third Party Payments,Other establishments,20/04/2020,6359566,1105.64,VENDOR,KARE PLUS HOMECARE LTD T/A KARE PLUS PORTSMOUTH,146253
Portsmouth City Council,PCC,Adult Social Care,Physical Support Adults (18 - 64),Adult Services,Third Party Payments,Other establishments,20/04/2020,6359566,877.76,VENDOR,KARE PLUS HOMECARE LTD T/A KARE PLUS PORTSMOUTH,146253
Portsmouth City Council,PCC,Adult Social Care,Physical Support Adults (18 - 64),Adult Services,Third Party Payments,Other establishments,20/04/2020,6359566,877.76,VENDOR,KARE PLUS HOMECARE LTD T/A KARE PLUS PORTSMOUTH,146253
Portsmouth City Council,PCC,Adult Social Care,Physical Support Older People (85+),Adult Services,Third Party Payments,Other establishments,20/04/2020,6359566,523.28,VENDOR,KARE PLUS HOMECARE LTD T/A KARE PLUS PORTSMOUTH,146253
Portsmouth City Council,PCC,Adult Social Care,Physical Support Older People (85+),Adult Services,Third Party Payments,Other establishments,20/04/2020,6359566,531.72,VENDOR,KARE PLUS HOMECARE LTD T/A KARE PLUS PORTSMOUTH,146253
Portsmouth City Council,PCC,Adult Social Care,Physical Support Older People (85+),Adult Services,Third Party Payments,Other establishments,20/04/2020,6359566,881.98,VENDOR,KARE PLUS HOMECARE LTD T/A KARE PLUS PORTSMOUTH,146253
Portsmouth City Council,PCC,Adult Social Care,Physical Support Older People (85+),Adult Services,Third Party Payments,Other establishments,20/04/2020,6359566,881.98,VENDOR,KARE PLUS HOMECARE LTD T/A KARE PLUS PORTSMOUTH,146253
Portsmouth City Council,PCC,Adult Social Care,Physical Support Older People (85+),Adult Services,Third Party Payments,Other establishments,20/04/2020,6359566,658.32,VENDOR,KARE PLUS HOMECARE LTD T/A KARE PLUS PORTSMOUTH,146253
Portsmouth City Council,PCC,Adult Social Care,Physical Support Older People (85+),Adult Services,Third Party Payments,Other establishments,20/04/2020,6359566,658.32,VENDOR,KARE PLUS HOMECARE LTD T/A KARE PLUS PORTSMOUTH,146253
Portsmouth City Council,PCC,Adult Social Care,Physical Support Older People (85+),Adult Services,Third Party Payments,Other establishments,20/04/2020,6359566,236.32,VENDOR,KARE PLUS HOMECARE LTD T/A KARE PLUS PORTSMOUTH,146253
Portsmouth City Council,PCC,Adult Social Care,Physical Support Older People (85+),Adult Services,Third Party Payments,Other establishments,20/04/2020,6359566,236.32,VENDOR,KARE PLUS HOMECARE LTD T/A KARE PLUS PORTSMOUTH,146253
Portsmouth City Council,PCC,Adult Social Care,Physical Support Older People (85+),Adult Services,Third Party Payments,Other establishments,20/04/2020,6359566,974.82,VENDOR,KARE PLUS HOMECARE LTD T/A KARE PLUS PORTSMOUTH,146253
Portsmouth City Council,PCC,Adult Social Care,Physical Support Older People (85+),Adult Services,Third Party Payments,Other establishments,20/04/2020,6359566,974.82,VENDOR,KARE PLUS HOMECARE LTD T/A KARE PLUS PORTSMOUTH,146253
Portsmouth City Council,PCC,Adult Social Care,Physical Support Older People (85+),Adult Services,Third Party Payments,Other establishments,20/04/2020,6359566,573.92,VENDOR,KARE PLUS HOMECARE LTD T/A KARE PLUS PORTSMOUTH,146253
Portsmouth City Council,PCC,Adult Social Care,Physical Support Older People (85+),Adult Services,Third Party Payments,Other establishments,20/04/2020,6359566,540.16,VENDOR,KARE PLUS HOMECARE LTD T/A KARE PLUS PORTSMOUTH,146253
Portsmouth City Council,PCC,Adult Social Care,Physical Support Older People (85+),Adult Services,Third Party Payments,Other establishments,20/04/2020,6359566,844,VENDOR,KARE PLUS HOMECARE LTD T/A KARE PLUS PORTSMOUTH,146253
Portsmouth City Council,PCC,Adult Social Care,Physical Support Older People (85+),Adult Services,Third Party Payments,Other establishments,20/04/2020,6359566,844,VENDOR,KARE PLUS HOMECARE LTD T/A KARE PLUS PORTSMOUTH,146253
Portsmouth City Council,PCC,Adult Social Care,Physical Support Older People (85+),Adult Services,Third Party Payments,Other establishments,20/04/2020,6359566,514.84,VENDOR,KARE PLUS HOMECARE LTD T/A KARE PLUS PORTSMOUTH,146253
Portsmouth City Council,PCC,Adult Social Care,Physical Support Older People (85+),Adult Services,Third Party Payments,Other establishments,20/04/2020,6359566,1088.76,VENDOR,KARE PLUS HOMECARE LTD T/A KARE PLUS PORTSMOUTH,146253
Portsmouth City Council,PCC,Adult Social Care,Physical Support Older People (85+),Adult Services,Third Party Payments,Other establishments,20/04/2020,6359566,396.68,VENDOR,KARE PLUS HOMECARE LTD T/A KARE PLUS PORTSMOUTH,146253
Portsmouth City Council,PCC,Adult Social Care,Physical Support Older People (85+),Adult Services,Third Party Payments,Other establishments,20/04/2020,6359566,211,VENDOR,KARE PLUS HOMECARE LTD T/A KARE PLUS PORTSMOUTH,146253
Portsmouth City Council,PCC,Adult Social Care,Physical Support Older People (85+),Adult Services,Third Party Payments,Other establishments,20/04/2020,6359566,1367.28,VENDOR,KARE PLUS HOMECARE LTD T/A KARE PLUS PORTSMOUTH,146253
Portsmouth City Council,PCC,Adult Social Care,Physical Support Older People (85+),Adult Services,Third Party Payments,Other establishments,20/04/2020,6359566,1367.28,VENDOR,KARE PLUS HOMECARE LTD T/A KARE PLUS PORTSMOUTH,146253
Portsmouth City Council,PCC,Adult Social Care,Physical Support Older People (85+),Adult Services,Third Party Payments,Other establishments,20/04/2020,6359566,236.32,VENDOR,KARE PLUS HOMECARE LTD T/A KARE PLUS PORTSMOUTH,146253
Portsmouth City Council,PCC,Adult Social Care,Physical Support Older People (85+),Adult Services,Third Party Payments,Other establishments,20/04/2020,6359566,1071.88,VENDOR,KARE PLUS HOMECARE LTD T/A KARE PLUS PORTSMOUTH,146253
Portsmouth City Council,PCC,Adult Social Care,Physical Support Older People (85+),Adult Services,Third Party Payments,Other establishments,20/04/2020,6359566,1071.88,VENDOR,KARE PLUS HOMECARE LTD T/A KARE PLUS PORTSMOUTH,146253
Portsmouth City Council,PCC,Adult Social Care,Physical Support Older People (85+),Adult Services,Third Party Payments,Other establishments,20/04/2020,6359566,1358.84,VENDOR,KARE PLUS HOMECARE LTD T/A KARE PLUS PORTSMOUTH,146253
Portsmouth City Council,PCC,Adult Social Care,Physical Support Older People (85+),Adult Services,Third Party Payments,Other establishments,20/04/2020,6359566,1358.84,VENDOR,KARE PLUS HOMECARE LTD T/A KARE PLUS PORTSMOUTH,146253
Portsmouth City Council,PCC,Adult Social Care,Physical Support Older People (85+),Adult Services,Third Party Payments,Other establishments,20/04/2020,6359566,1012.8,VENDOR,KARE PLUS HOMECARE LTD T/A KARE PLUS PORTSMOUTH,146253
Portsmouth City Council,PCC,Adult Social Care,Physical Support Older People (85+),Adult Services,Third Party Payments,Other establishments,20/04/2020,6359566,1012.8,VENDOR,KARE PLUS HOMECARE LTD T/A KARE PLUS PORTSMOUTH,146253
Portsmouth City Council,PCC,Adult Social Care,Physical Support Older People (85+),Adult Services,Third Party Payments,Other establishments,20/04/2020,6359566,50.64,VENDOR,KARE PLUS HOMECARE LTD T/A KARE PLUS PORTSMOUTH,146253
Portsmouth City Council,PCC,Adult Social Care,Physical Support Older People (85+),Adult Services,Third Party Payments,Other establishments,20/04/2020,6359566,37.98,VENDOR,KARE PLUS HOMECARE LTD T/A KARE PLUS PORTSMOUTH,146253
Portsmouth City Council,PCC,Adult Social Care,Physical Support Older People (85+),Adult Services,Third Party Payments,Other establishments,20/04/2020,6359566,151.92,VENDOR,KARE PLUS HOMECARE LTD T/A KARE PLUS PORTSMOUTH,146253
Portsmouth City Council,PCC,Adult Social Care,Physical Support Older People (85+),Adult Services,Third Party Payments,Other establishments,20/04/2020,6359566,346.04,VENDOR,KARE PLUS HOMECARE LTD T/A KARE PLUS PORTSMOUTH,146253
Portsmouth City Council,PCC,Adult Social Care,Physical Support Older People (85+),Adult Services,Third Party Payments,Other establishments,20/04/2020,6359566,346.04,VENDOR,KARE PLUS HOMECARE LTD T/A KARE PLUS PORTSMOUTH,146253
Portsmouth City Council,PCC,Adult Social Care,Physical Support Older People (85+),Adult Services,Third Party Payments,Other establishments,20/04/2020,6359566,177.24,VENDOR,KARE PLUS HOMECARE LTD T/A KARE PLUS PORTSMOUTH,146253
Portsmouth City Council,PCC,Adult Social Care,Physical Support Older People (85+),Adult Services,Third Party Payments,Other establishments,20/04/2020,6359566,341.82,VENDOR,KARE PLUS HOMECARE LTD T/A KARE PLUS PORTSMOUTH,146253
Portsmouth City Council,PCC,Adult Social Care,Physical Support Older People (85+),Adult Services,Third Party Payments,Other establishments,20/04/2020,6359566,476.86,VENDOR,KARE PLUS HOMECARE LTD T/A KARE PLUS PORTSMOUTH,146253
Portsmouth City Council,PCC,Adult Social Care,Learning Disability Support  Adults (18 - 64),Adult Services,Third Party Payments,Other establishments,20/04/2020,6359566,413.56,VENDOR,KARE PLUS HOMECARE LTD T/A KARE PLUS PORTSMOUTH,146253
Portsmouth City Council,PCC,Adult Social Care,Social Support - Support for Carer,Adult Services,Third Party Payments,Other establishments,20/04/2020,6359566,261.36,VENDOR,KARE PLUS HOMECARE LTD T/A KARE PLUS PORTSMOUTH,146253
Portsmouth City Council,PCC,Adult Social Care,Social Support - Support for Carer,Adult Services,Third Party Payments,Other establishments,20/04/2020,6359566,290.4,VENDOR,KARE PLUS HOMECARE LTD T/A KARE PLUS PORTSMOUTH,146253
Portsmouth City Council,PCC,Adult Social Care,Social Support - Support for Carer,Adult Services,Third Party Payments,Other establishments,20/04/2020,6359566,119.79,VENDOR,KARE PLUS HOMECARE LTD T/A KARE PLUS PORTSMOUTH,146253
Portsmouth City Council,PCC,Adult Social Care,Social Support - Support for Carer,Adult Services,Third Party Payments,Other establishments,20/04/2020,6359566,145.2,VENDOR,KARE PLUS HOMECARE LTD T/A KARE PLUS PORTSMOUTH,146253
Portsmouth City Council,PCC,Adult Social Care,Social Support - Support for Carer,Adult Services,Third Party Payments,Other establishments,20/04/2020,6359566,174.24,VENDOR,KARE PLUS HOMECARE LTD T/A KARE PLUS PORTSMOUTH,146253
Portsmouth City Council,PCC,Adult Social Care,Social Support - Support for Carer,Adult Services,Third Party Payments,Other establishments,20/04/2020,6359566,174.24,VENDOR,KARE PLUS HOMECARE LTD T/A KARE PLUS PORTSMOUTH,146253
Portsmouth City Council,PCC,Adult Social Care,Social Support - Support for Carer,Adult Services,Third Party Payments,Other establishments,20/04/2020,6359566,58.08,VENDOR,KARE PLUS HOMECARE LTD T/A KARE PLUS PORTSMOUTH,146253
Portsmouth City Council,PCC,Adult Social Care,Social Support - Support for Carer,Adult Services,Third Party Payments,Other establishments,20/04/2020,6359566,203.28,VENDOR,KARE PLUS HOMECARE LTD T/A KARE PLUS PORTSMOUTH,146253
Portsmouth City Council,PCC,Adult Social Care,Social Support - Support for Carer,Adult Services,Third Party Payments,Other establishments,20/04/2020,6359566,261.36,VENDOR,KARE PLUS HOMECARE LTD T/A KARE PLUS PORTSMOUTH,146253
Portsmouth City Council,PCC,Adult Social Care,Social Support - Support for Carer,Adult Services,Third Party Payments,Other establishments,20/04/2020,6359566,108.9,VENDOR,KARE PLUS HOMECARE LTD T/A KARE PLUS PORTSMOUTH,146253
Portsmouth City Council,PCC,Adult Social Care,Social Support - Support for Carer,Adult Services,Third Party Payments,Other establishments,20/04/2020,6359566,261.36,VENDOR,KARE PLUS HOMECARE LTD T/A KARE PLUS PORTSMOUTH,146253
Portsmouth City Council,PCC,Adult Social Care,Physical Support Older People (85+),Adult Services,Third Party Payments,Other establishments,17/04/2020,6358896,3744.6,VENDOR,AGINCARE UK,134367
Portsmouth City Council,PCC,Adult Social Care,Learning Disability Support  Adults (18 - 64),Adult Services,Third Party Payments,Other establishments,14/04/2020,6357714,1318.4,VENDOR,SOUTHAMPTON SPECIAL PURPOSE WORKSHOP LTD,117819
Portsmouth City Council,PCC,Adult Social Care,Physical Support Older People (85+),Adult Services,Third Party Payments,Other establishments,09/04/2020,6357275,2803.2,VENDOR,AGINCARE UK,134367
Portsmouth City Council,PCC,Other,Suspense and Capital Schemes,Capital - Culture & City Development,Capital Charges,Capital Expenditure (WIP),08/04/2020,6357209,22495.06,VENDOR,HISTORIC BUILDINGS RESTORATION,138335
Portsmouth City Council,PCC,Highways and Transport Services,Parking Services,Regeneration,Supplies and Services,Communications and computing,15/04/2020,6357803,1292.95,VENDOR,EASY NETWORKS LTD,100142
Portsmouth City Council,PCC,Highways and Transport Services,Parking Services,Regeneration,Supplies and Services,Communications and computing,15/04/2020,6357803,323.24,VENDOR,EASY NETWORKS LTD,100142
Portsmouth City Council,PCC,Adult Social Care,Physical Support Older People (85+),Adult Services,Third Party Payments,Other establishments,20/04/2020,6359328,2021.7,VENDOR,AGINCARE UK,134367
Portsmouth City Council,PCC,Housing Revenue Account,Repairs and Maintenance,"Housing, Neighbourhood and Building Services",Premises-Related Expenditure,"Repairs, alterations and maintenance of buildings",06/04/2020,6356630,57264.49,COMPANY,SSE CONTRACTING LTD,101806
Portsmouth City Council,PCC,Housing Revenue Account,Repairs and Maintenance,"Housing, Neighbourhood and Building Services",Premises-Related Expenditure,"Repairs, alterations and maintenance of buildings",06/04/2020,6356630,51475.79,COMPANY,SSE CONTRACTING LTD,101806
Portsmouth City Council,PCC,Support Service / Transparency Costs Unallocated,AMS,Regeneration,Supplies and Services,Services,15/04/2020,6357787,2850,VENDOR,CONCERTO SUPPORT SERVICES LTD,129010
Portsmouth City Council,PCC,Housing Revenue Account,Repairs and Maintenance,"Housing, Neighbourhood and Building Services",Premises-Related Expenditure,"Repairs, alterations and maintenance of buildings",01/04/2020,6356299,72633.56,COMPANY,SSE CONTRACTING LTD,101806
Portsmouth City Council,PCC,Adult Social Care,Support with Memory and Cognition Older People (85+),Adult Services,Third Party Payments,Other establishments,09/04/2020,6357279,4200,VENDOR,ALEXANDRA ROSE RESIDENTIAL CARE HOME,101952
Portsmouth City Council,PCC,Cultural and Related Services,Open Spaces,"Culture, Leisure & Regulatory Services",Premises-Related Expenditure,"Repairs, alterations and maintenance of buildings",27/04/2020,6361621,4937.48,COMPANY,SSE CONTRACTING LTD,101806
Portsmouth City Council,PCC,Cultural and Related Services,Recreation and Sport,"Culture, Leisure & Regulatory Services",Third Party Payments,Private contractors,06/04/2020,6356658,5000,SOLETRADER,Classified as 'personal data' (under the Data Protection Act 2018),112313
Portsmouth City Council,PCC,Other,Suspense and Capital Schemes,Capital - Education,Capital Charges,Capital Expenditure (WIP),27/04/2020,6361614,6678,VENDOR,SMALL ARCHITECTURE LIMITED,140263
Portsmouth City Council,PCC,Children's and Education Services,Other Education and Community Budget,Children's Services and Education,Transport-Related Expenditure,Car allowances,07/04/2020,6356753,412.5,VENDOR,CITY WIDE TAXIS,103408
Portsmouth City Council,PCC,Children's and Education Services,Other Education and Community Budget,Children's Services and Education,Transport-Related Expenditure,Car allowances,09/04/2020,6357345,983.1,VENDOR,CITY WIDE TAXIS,103408
Portsmouth City Council,PCC,Children's and Education Services,Other Education and Community Budget,Children's Services and Education,Transport-Related Expenditure,Car allowances,07/04/2020,6356753,868,VENDOR,CITY WIDE TAXIS,103408
Portsmouth City Council,PCC,Adult Social Care,Support with Memory and Cognition Older People (85+),Adult Services,Third Party Payments,Other establishments,09/04/2020,6357279,4131,VENDOR,ALEXANDRA ROSE RESIDENTIAL CARE HOME,101952
Portsmouth City Council,PCC,Planning Services,Business support,Regeneration,Third Party Payments,Private contractors,06/04/2020,6356589,600,SOLETRADER,M J RITCHIE DECOR AND GUTTERING SERVICES,126505
Portsmouth City Council,PCC,Adult Social Care,Support with Memory and Cognition Older People (85+),Adult Services,Third Party Payments,Other establishments,09/04/2020,6357279,3985.8,VENDOR,ALEXANDRA ROSE RESIDENTIAL CARE HOME,101952
Portsmouth City Council,PCC,Adult Social Care,Support with Memory and Cognition Older People (85+),Adult Services,Third Party Payments,Other establishments,09/04/2020,6357279,1230.3,VENDOR,ALEXANDRA ROSE RESIDENTIAL CARE HOME,101952
Portsmouth City Council,PCC,Adult Social Care,Physical Support Older People (85+),Adult Services,Third Party Payments,Other establishments,09/04/2020,6357284,579.2,VENDOR,ALTON HOUSE PARTNERSHIP,119112
Portsmouth City Council,PCC,Adult Social Care,Physical Support Older People (85+),Adult Services,Third Party Payments,Other establishments,09/04/2020,6357284,434.4,VENDOR,ALTON HOUSE PARTNERSHIP,119112
Portsmouth City Council,PCC,Adult Social Care,Support with Memory and Cognition Older People (85+),Adult Services,Third Party Payments,Other establishments,09/04/2020,6357284,2769,VENDOR,ALTON HOUSE PARTNERSHIP,119112
Portsmouth City Council,PCC,Adult Social Care,Support with Memory and Cognition Older People (85+),Adult Services,Third Party Payments,Other establishments,09/04/2020,6357284,2769,VENDOR,ALTON HOUSE PARTNERSHIP,119112
Portsmouth City Council,PCC,Other,Suspense and Capital Schemes,Capital - Environment & Climate Change,Capital Charges,Capital Expenditure (WIP),22/04/2020,6360788,36011.6,PARTNERSHIP,VSBW JOINT VENTURE,146068
Portsmouth City Council,PCC,Other,Suspense and Capital Schemes,Capital - Environment & Climate Change,Capital Charges,Capital Expenditure (WIP),22/04/2020,6360788,-36011.6,PARTNERSHIP,VSBW JOINT VENTURE,146068
Portsmouth City Council,PCC,Other,Suspense and Capital Schemes,Capital - Environment & Climate Change,Capital Charges,Capital Expenditure (WIP),22/04/2020,6360788,36011.6,PARTNERSHIP,VSBW JOINT VENTURE,146068
Portsmouth City Council,PCC,Other,Suspense and Capital Schemes,Capital - Environment & Climate Change,Capital Charges,Capital Expenditure (WIP),23/04/2020,6361102,95381.88,PARTNERSHIP,VSBW JOINT VENTURE,146068
Portsmouth City Council,PCC,Children's and Education Services,Asylum seekers,Children's Services and Education,Third Party Payments,Private contractors,23/04/2020,6361073,800,VENDOR,Classified as 'personal data' (under the Data Protection Act 2018),146834
Portsmouth City Council,PCC,Highways and Transport Services,"Airports, Harbours and Toll Facilities",Portsmouth International Port,Supplies and Services,Services,30/04/2020,6362628,16000,VENDOR,DKB PROJECT MANAGEMENT & CONSULTING LIMITED,146711
Portsmouth City Council,PCC,Housing Revenue Account,Repairs and Maintenance,"Housing, Neighbourhood and Building Services",Premises-Related Expenditure,"Repairs, alterations and maintenance of buildings",29/04/2020,6361963,729449.73,COMPANY,COMSERV (UK) LIMITED,120542
Portsmouth City Council,PCC,Housing Revenue Account,Repairs and Maintenance,"Housing, Neighbourhood and Building Services",Premises-Related Expenditure,"Repairs, alterations and maintenance of buildings",24/04/2020,6361387,820428.08,COMPANY,MOUNTJOY LIMITED,129869
Portsmouth City Council,PCC,Cultural and Related Services,Culture and Heritage,"Culture, Leisure & Regulatory Services",Third Party Payments,Private contractors,21/04/2020,6359963,1750,SOLETRADER,Classified as 'personal data' (under the Data Protection Act 2018),146704
Portsmouth City Council,PCC,Children's and Education Services,Children Looked After,Children's Services and Education,Third Party Payments,Private contractors,28/04/2020,6361802,1235,VENDOR,JIGSAW OCCUPATIONAL THERAPY,144751
Portsmouth City Council,PCC,Adult Social Care,Support with Memory and Cognition Older People (85+),Adult Services,Third Party Payments,Other establishments,09/04/2020,6357284,2769,VENDOR,ALTON HOUSE PARTNERSHIP,119112
Portsmouth City Council,PCC,Adult Social Care,Support with Memory and Cognition Older People (85+),Adult Services,Third Party Payments,Other establishments,09/04/2020,6357285,2263.2,VENDOR,ALTON MANOR CARE HOME,130289
Portsmouth City Council,PCC,Adult Social Care,Support with Memory and Cognition Older People (85+),Adult Services,Third Party Payments,Other establishments,09/04/2020,6357285,2263.2,VENDOR,ALTON MANOR CARE HOME,130289
Portsmouth City Council,PCC,Adult Social Care,Support with Memory and Cognition Older People (85+),Adult Services,Third Party Payments,Other establishments,09/04/2020,6357285,2263.2,VENDOR,ALTON MANOR CARE HOME,130289
Portsmouth City Council,PCC,Adult Social Care,Support with Memory and Cognition Older People (85+),Adult Services,Third Party Payments,Other establishments,09/04/2020,6357285,2263.2,VENDOR,ALTON MANOR CARE HOME,130289
Portsmouth City Council,PCC,Adult Social Care,Support with Memory and Cognition Older People (85+),Adult Services,Third Party Payments,Other establishments,09/04/2020,6357285,2491.8,VENDOR,ALTON MANOR CARE HOME,130289
Portsmouth City Council,PCC,Adult Social Care,Support with Memory and Cognition Older People (85+),Adult Services,Third Party Payments,Other establishments,09/04/2020,6357285,2263.2,VENDOR,ALTON MANOR CARE HOME,130289
Portsmouth City Council,PCC,Adult Social Care,Support with Memory and Cognition Older People (85+),Adult Services,Third Party Payments,Other establishments,09/04/2020,6357285,2404.2,VENDOR,ALTON MANOR CARE HOME,130289
Portsmouth City Council,PCC,Adult Social Care,Support with Memory and Cognition Older People (85+),Adult Services,Third Party Payments,Other establishments,09/04/2020,6357285,2263.2,VENDOR,ALTON MANOR CARE HOME,130289
Portsmouth City Council,PCC,Adult Social Care,Support with Memory and Cognition Older People (85+),Adult Services,Third Party Payments,Other establishments,09/04/2020,6357285,2263.2,VENDOR,ALTON MANOR CARE HOME,130289
Portsmouth City Council,PCC,Adult Social Care,Support with Memory and Cognition Older People (85+),Adult Services,Third Party Payments,Other establishments,09/04/2020,6357285,2263.2,VENDOR,ALTON MANOR CARE HOME,130289
Portsmouth City Council,PCC,Adult Social Care,Support with Memory and Cognition Older People (85+),Adult Services,Third Party Payments,Other establishments,09/04/2020,6357285,2263.2,VENDOR,ALTON MANOR CARE HOME,130289
Portsmouth City Council,PCC,Adult Social Care,Support with Memory and Cognition Older People (85+),Adult Services,Third Party Payments,Other establishments,09/04/2020,6357285,2263.2,VENDOR,ALTON MANOR CARE HOME,130289
Portsmouth City Council,PCC,Adult Social Care,Support with Memory and Cognition Older People (85+),Adult Services,Third Party Payments,Other establishments,09/04/2020,6357285,3000,VENDOR,ALTON MANOR CARE HOME,130289
Portsmouth City Council,PCC,Adult Social Care,Support with Memory and Cognition Older People (85+),Adult Services,Third Party Payments,Other establishments,09/04/2020,6357285,100,VENDOR,ALTON MANOR CARE HOME,130289
Portsmouth City Council,PCC,Adult Social Care,Support with Memory and Cognition Older People (85+),Adult Services,Third Party Payments,Other establishments,09/04/2020,6357285,3060,VENDOR,ALTON MANOR CARE HOME,130289
Portsmouth City Council,PCC,Adult Social Care,Support with Memory and Cognition Older People (85+),Adult Services,Third Party Payments,Other establishments,09/04/2020,6357285,2263.2,VENDOR,ALTON MANOR CARE HOME,130289
Portsmouth City Council,PCC,Adult Social Care,Support with Memory and Cognition Older People (85+),Adult Services,Third Party Payments,Other establishments,09/04/2020,6357285,2263.2,VENDOR,ALTON MANOR CARE HOME,130289
Portsmouth City Council,PCC,Adult Social Care,Mental Health Support Adults (18 - 64),Adult Services,Third Party Payments,Other establishments,09/04/2020,6357285,2130.3,VENDOR,ALTON MANOR CARE HOME,130289
Portsmouth City Council,PCC,Adult Social Care,Learning Disability Support  Adults (18 - 64),Adult Services,Third Party Payments,Other establishments,09/04/2020,6357297,9902.1,VENDOR,ASPENS CHARITIES,119343
Portsmouth City Council,PCC,Adult Social Care,Learning Disability Support  Adults (18 - 64),Adult Services,Third Party Payments,Other establishments,09/04/2020,6357298,9177.3,VENDOR,ASSURE HEALTH CARE GROUP,140779
Portsmouth City Council,PCC,Adult Social Care,Learning Disability Support  Adults (18 - 64),Adult Services,Third Party Payments,Other establishments,09/04/2020,6357298,7239.9,VENDOR,ASSURE HEALTH CARE GROUP,140779
Portsmouth City Council,PCC,Adult Social Care,Learning Disability Support  Adults (18 - 64),Adult Services,Third Party Payments,Other establishments,16/04/2020,6358747,823.92,VENDOR,AUTISM HAMPSHIRE,139112
Portsmouth City Council,PCC,Adult Social Care,Social Care Activities,Adult Services,Third Party Payments,Other establishments,09/04/2020,6357307,15655.8,VENDOR,AUTISM HAMPSHIRE,139112
Portsmouth City Council,PCC,Adult Social Care,Learning Disability Support  Adults (18 - 64),Adult Services,Third Party Payments,Other establishments,09/04/2020,6357307,5887.8,VENDOR,AUTISM HAMPSHIRE,139112
Portsmouth City Council,PCC,Adult Social Care,Learning Disability Support  Adults (18 - 64),Adult Services,Third Party Payments,Other establishments,09/04/2020,6357307,5634.9,VENDOR,AUTISM HAMPSHIRE,139112
Portsmouth City Council,PCC,Adult Social Care,Learning Disability Support  Adults (18 - 64),Adult Services,Third Party Payments,Other establishments,09/04/2020,6357307,3738.6,VENDOR,AUTISM HAMPSHIRE,139112
Portsmouth City Council,PCC,Adult Social Care,Learning Disability Support  Adults (18 - 64),Adult Services,Third Party Payments,Other establishments,09/04/2020,6357307,8802,VENDOR,AUTISM HAMPSHIRE,139112
Portsmouth City Council,PCC,Adult Social Care,Support with Memory and Cognition Older People (85+),Adult Services,Third Party Payments,Other establishments,09/04/2020,6357308,1500,VENDOR,AUTUMN VALE REST HOME,100551
Portsmouth City Council,PCC,Adult Social Care,Support with Memory and Cognition Older People (85+),Adult Services,Third Party Payments,Other establishments,09/04/2020,6357308,2349.9,VENDOR,AUTUMN VALE REST HOME,100551
Portsmouth City Council,PCC,Adult Social Care,Support with Memory and Cognition Older People (85+),Adult Services,Third Party Payments,Other establishments,09/04/2020,6357308,1845,VENDOR,AUTUMN VALE REST HOME,100551
Portsmouth City Council,PCC,Adult Social Care,Mental Health Support Adults (18 - 64),Adult Services,Third Party Payments,Other establishments,09/04/2020,6357308,3602.1,VENDOR,AUTUMN VALE REST HOME,100551
Portsmouth City Council,PCC,Adult Social Care,Mental Health Support Adults (18 - 64),Adult Services,Third Party Payments,Other establishments,09/04/2020,6357308,2097.9,VENDOR,AUTUMN VALE REST HOME,100551
Portsmouth City Council,PCC,Adult Social Care,Mental Health Support Adults (18 - 64),Adult Services,Third Party Payments,Other establishments,09/04/2020,6357308,1383.9,VENDOR,AUTUMN VALE REST HOME,100551
Portsmouth City Council,PCC,Adult Social Care,Mental Health Support Adults (18 - 64),Adult Services,Third Party Payments,Other establishments,09/04/2020,6357308,3443.4,VENDOR,AUTUMN VALE REST HOME,100551
Portsmouth City Council,PCC,Adult Social Care,Mental Health Support Adults (18 - 64),Adult Services,Third Party Payments,Other establishments,09/04/2020,6357308,2275.5,VENDOR,AUTUMN VALE REST HOME,100551
Portsmouth City Council,PCC,Adult Social Care,Mental Health Support Adults (18 - 64),Adult Services,Third Party Payments,Other establishments,09/04/2020,6357308,3309.3,VENDOR,AUTUMN VALE REST HOME,100551
Portsmouth City Council,PCC,Adult Social Care,Mental Health Support Adults (18 - 64),Adult Services,Third Party Payments,Other establishments,09/04/2020,6357308,2521.5,VENDOR,AUTUMN VALE REST HOME,100551
Portsmouth City Council,PCC,Adult Social Care,Mental Health Support Adults (18 - 64),Adult Services,Third Party Payments,Other establishments,09/04/2020,6357308,3214.8,VENDOR,AUTUMN VALE REST HOME,100551
Portsmouth City Council,PCC,Adult Social Care,Mental Health Support Adults (18 - 64),Adult Services,Third Party Payments,Other establishments,09/04/2020,6357308,2437.8,VENDOR,AUTUMN VALE REST HOME,100551
Portsmouth City Council,PCC,Adult Social Care,Social Care Activities,Adult Services,Third Party Payments,Other establishments,09/04/2020,6357311,3284.4,VENDOR,BEACONSFIELD RESIDENTIAL CARE HOME,100568
Portsmouth City Council,PCC,Adult Social Care,Learning Disability Support  Adults (18 - 64),Adult Services,Third Party Payments,Other establishments,09/04/2020,6357311,3376.8,VENDOR,BEACONSFIELD RESIDENTIAL CARE HOME,100568
Portsmouth City Council,PCC,Adult Social Care,Learning Disability Support  Adults (18 - 64),Adult Services,Third Party Payments,Other establishments,09/04/2020,6357311,2476.8,VENDOR,BEACONSFIELD RESIDENTIAL CARE HOME,100568
Portsmouth City Council,PCC,Adult Social Care,Mental Health Support Adults (18 - 64),Adult Services,Third Party Payments,Other establishments,09/04/2020,6357311,1801.5,VENDOR,BEACONSFIELD RESIDENTIAL CARE HOME,100568
Portsmouth City Council,PCC,Adult Social Care,Mental Health Support Adults (18 - 64),Adult Services,Third Party Payments,Other establishments,09/04/2020,6357311,1872,VENDOR,BEACONSFIELD RESIDENTIAL CARE HOME,100568
Portsmouth City Council,PCC,Adult Social Care,Mental Health Support Adults (18 - 64),Adult Services,Third Party Payments,Other establishments,09/04/2020,6357311,1748.1,VENDOR,BEACONSFIELD RESIDENTIAL CARE HOME,100568
Portsmouth City Council,PCC,Adult Social Care,Mental Health Support Adults (18 - 64),Adult Services,Third Party Payments,Other establishments,09/04/2020,6357311,2404.5,VENDOR,BEACONSFIELD RESIDENTIAL CARE HOME,100568
Portsmouth City Council,PCC,Adult Social Care,Mental Health Support Adults (18 - 64),Adult Services,Third Party Payments,Other establishments,09/04/2020,6357311,1836.9,VENDOR,BEACONSFIELD RESIDENTIAL CARE HOME,100568
Portsmouth City Council,PCC,Adult Social Care,Mental Health Support Adults (18 - 64),Adult Services,Third Party Payments,Other establishments,09/04/2020,6357311,2352,VENDOR,BEACONSFIELD RESIDENTIAL CARE HOME,100568
Portsmouth City Council,PCC,Adult Social Care,Mental Health Support Adults (18 - 64),Adult Services,Third Party Payments,Other establishments,09/04/2020,6357311,1836.9,VENDOR,BEACONSFIELD RESIDENTIAL CARE HOME,100568
Portsmouth City Council,PCC,Adult Social Care,Mental Health Support Adults (18 - 64),Adult Services,Third Party Payments,Other establishments,09/04/2020,6357311,1836.9,VENDOR,BEACONSFIELD RESIDENTIAL CARE HOME,100568
Portsmouth City Council,PCC,Adult Social Care,Mental Health Support Adults (18 - 64),Adult Services,Third Party Payments,Other establishments,09/04/2020,6357311,1766.1,VENDOR,BEACONSFIELD RESIDENTIAL CARE HOME,100568
Portsmouth City Council,PCC,Adult Social Care,Mental Health Support Adults (18 - 64),Adult Services,Third Party Payments,Other establishments,09/04/2020,6357311,2571.9,VENDOR,BEACONSFIELD RESIDENTIAL CARE HOME,100568
Portsmouth City Council,PCC,Adult Social Care,Mental Health Support Adults (18 - 64),Adult Services,Third Party Payments,Other establishments,09/04/2020,6357311,1801.5,VENDOR,BEACONSFIELD RESIDENTIAL CARE HOME,100568
Portsmouth City Council,PCC,Adult Social Care,Mental Health Support Adults (18 - 64),Adult Services,Third Party Payments,Other establishments,09/04/2020,6357311,1836.9,VENDOR,BEACONSFIELD RESIDENTIAL CARE HOME,100568
Portsmouth City Council,PCC,Adult Social Care,Mental Health Support Adults (18 - 64),Adult Services,Third Party Payments,Other establishments,09/04/2020,6357311,1801.5,VENDOR,BEACONSFIELD RESIDENTIAL CARE HOME,100568
Portsmouth City Council,PCC,Adult Social Care,Mental Health Support Adults (18 - 64),Adult Services,Third Party Payments,Other establishments,09/04/2020,6357311,1942.5,VENDOR,BEACONSFIELD RESIDENTIAL CARE HOME,100568
Portsmouth City Council,PCC,Adult Social Care,Mental Health Support Adults (18 - 64),Adult Services,Third Party Payments,Other establishments,09/04/2020,6357311,1997.4,VENDOR,BEACONSFIELD RESIDENTIAL CARE HOME,100568
Portsmouth City Council,PCC,Adult Social Care,Mental Health Support Adults (18 - 64),Adult Services,Third Party Payments,Other establishments,09/04/2020,6357311,1836.9,VENDOR,BEACONSFIELD RESIDENTIAL CARE HOME,100568
Portsmouth City Council,PCC,Adult Social Care,Mental Health Support Adults (18 - 64),Adult Services,Third Party Payments,Other establishments,09/04/2020,6357311,1907.4,VENDOR,BEACONSFIELD RESIDENTIAL CARE HOME,100568
Portsmouth City Council,PCC,Adult Social Care,Physical Support Adults (18 - 64),Adult Services,Third Party Payments,Other establishments,09/04/2020,6357313,557.16,VENDOR,BEDHAMPTON NURSING HOME,100569
Portsmouth City Council,PCC,Adult Social Care,Physical Support Adults (18 - 64),Adult Services,Third Party Payments,Other establishments,09/04/2020,6357313,5571.6,VENDOR,BEDHAMPTON NURSING HOME,100569
Portsmouth City Council,PCC,Adult Social Care,Social Care Activities,Adult Services,Third Party Payments,Other establishments,09/04/2020,6357313,11307.6,VENDOR,BEDHAMPTON NURSING HOME,100569
Portsmouth City Council,PCC,Adult Social Care,Social Care Activities,Adult Services,Third Party Payments,Other establishments,09/04/2020,6357313,4523.7,VENDOR,BEDHAMPTON NURSING HOME,100569
Portsmouth City Council,PCC,Adult Social Care,Social Care Activities,Adult Services,Third Party Payments,Other establishments,09/04/2020,6357313,5682.9,VENDOR,BEDHAMPTON NURSING HOME,100569
Portsmouth City Council,PCC,Adult Social Care,Social Care Activities,Adult Services,Third Party Payments,Other establishments,09/04/2020,6357313,-614.94,VENDOR,BEDHAMPTON NURSING HOME,100569
Portsmouth City Council,PCC,Adult Social Care,Social Care Activities,Adult Services,Third Party Payments,Other establishments,09/04/2020,6357313,-496.68,VENDOR,BEDHAMPTON NURSING HOME,100569
Portsmouth City Council,PCC,Adult Social Care,Social Care Activities,Adult Services,Third Party Payments,Other establishments,09/04/2020,6357313,709.54,VENDOR,BEDHAMPTON NURSING HOME,100569
Portsmouth City Council,PCC,Adult Social Care,Social Care Activities,Adult Services,Third Party Payments,Other establishments,09/04/2020,6357313,-473.03,VENDOR,BEDHAMPTON NURSING HOME,100569
Portsmouth City Council,PCC,Adult Social Care,Physical Support Older People (85+),Adult Services,Third Party Payments,Other establishments,09/04/2020,6357313,5691.6,VENDOR,BEDHAMPTON NURSING HOME,100569
Portsmouth City Council,PCC,Adult Social Care,Physical Support Older People (85+),Adult Services,Third Party Payments,Other establishments,09/04/2020,6357313,2794.5,VENDOR,BEDHAMPTON NURSING HOME,100569
Portsmouth City Council,PCC,Adult Social Care,Social Care Activities,Adult Services,Third Party Payments,Other establishments,22/04/2020,6360219,10897.26,VENDOR,BEDHAMPTON NURSING HOME,100569
Portsmouth City Council,PCC,Adult Social Care,Physical Support Adults (18 - 64),Adult Services,Third Party Payments,Other establishments,09/04/2020,6357315,3214.5,VENDOR,BETHESDA HEALTHCARE,143824
Portsmouth City Council,PCC,Adult Social Care,Physical Support Adults (18 - 64),Adult Services,Third Party Payments,Other establishments,09/04/2020,6357315,2700,VENDOR,BETHESDA HEALTHCARE,143824
Portsmouth City Council,PCC,Adult Social Care,Physical Support Adults (18 - 64),Adult Services,Third Party Payments,Other establishments,09/04/2020,6357315,750.05,VENDOR,BETHESDA HEALTHCARE,143824
Portsmouth City Council,PCC,Adult Social Care,Physical Support Adults (18 - 64),Adult Services,Third Party Payments,Other establishments,09/04/2020,6357315,3707.39,VENDOR,BETHESDA HEALTHCARE,143824
Portsmouth City Council,PCC,Adult Social Care,Physical Support Adults (18 - 64),Adult Services,Third Party Payments,Other establishments,09/04/2020,6357315,107.2,VENDOR,BETHESDA HEALTHCARE,143824
Portsmouth City Council,PCC,Adult Social Care,Physical Support Adults (18 - 64),Adult Services,Third Party Payments,Other establishments,09/04/2020,6357315,3216,VENDOR,BETHESDA HEALTHCARE,143824
Portsmouth City Council,PCC,Adult Social Care,Support with Memory and Cognition Older People (85+),Adult Services,Third Party Payments,Other establishments,09/04/2020,6357315,3017.1,VENDOR,BETHESDA HEALTHCARE,143824
Portsmouth City Council,PCC,Adult Social Care,Support with Memory and Cognition Older People (85+),Adult Services,Third Party Payments,Other establishments,09/04/2020,6357315,2622.9,VENDOR,BETHESDA HEALTHCARE,143824
Portsmouth City Council,PCC,Adult Social Care,Support with Memory and Cognition Older People (85+),Adult Services,Third Party Payments,Other establishments,09/04/2020,6357315,1285.2,VENDOR,BETHESDA HEALTHCARE,143824
Portsmouth City Council,PCC,Adult Social Care,Support with Memory and Cognition Older People (85+),Adult Services,Third Party Payments,Other establishments,09/04/2020,6357315,3497.4,VENDOR,BETHESDA HEALTHCARE,143824
Portsmouth City Council,PCC,Adult Social Care,Support with Memory and Cognition Older People (85+),Adult Services,Third Party Payments,Other establishments,09/04/2020,6357315,2831.25,VENDOR,BETHESDA HEALTHCARE,143824
Portsmouth City Council,PCC,Adult Social Care,Support with Memory and Cognition Older People (85+),Adult Services,Third Party Payments,Other establishments,09/04/2020,6357315,-506.8,VENDOR,BETHESDA HEALTHCARE,143824
Portsmouth City Council,PCC,Adult Social Care,Support with Memory and Cognition Older People (85+),Adult Services,Third Party Payments,Other establishments,09/04/2020,6357314,3278.7,VENDOR,BETHESDA HEALTHCARE,143824
Portsmouth City Council,PCC,Adult Social Care,Physical Support Adults (18 - 64),Adult Services,Third Party Payments,Other establishments,09/04/2020,6357320,4160,VENDOR,BLUEBELL NURSING HOME,100112
Portsmouth City Council,PCC,Adult Social Care,Physical Support Adults (18 - 64),Adult Services,Third Party Payments,Other establishments,09/04/2020,6357320,4396,VENDOR,BLUEBELL NURSING HOME,100112
Portsmouth City Council,PCC,Children's and Education Services,Safeguarding Children and Young Peoples Services,Children's Services and Education,Employees,Indirect employee expenses,29/04/2020,6362493,80000,VENDOR,BRIGHTER FUTURES FOR CHILDREN LIMITED,146559
Portsmouth City Council,PCC,Housing Services,Homelessness,"Housing, Neighbourhood and Building Services",Supplies and Services,Grants and subscriptions,21/04/2020,6359960,336.21,VENDOR,THE WICKS COSHAM LTD,146825
Portsmouth City Council,PCC,Other,Suspense and Capital Schemes,Capital - Culture & City Development,Capital Charges,Capital Expenditure (WIP),23/04/2020,6361077,1600,VENDOR,PARKER TORRINGTON LTD,106526
Portsmouth City Council,PCC,Housing Services,Homelessness,"Housing, Neighbourhood and Building Services",Supplies and Services,Catering,17/04/2020,6359292,920.4,VENDOR,THE WICKS COSHAM LTD,146825
Portsmouth City Council,PCC,Housing Services,Homelessness,"Housing, Neighbourhood and Building Services",Supplies and Services,Catering,17/04/2020,6359292,780,VENDOR,THE WICKS COSHAM LTD,146825
Portsmouth City Council,PCC,Housing Services,Homelessness,"Housing, Neighbourhood and Building Services",Supplies and Services,Catering,21/04/2020,6359960,920.4,VENDOR,THE WICKS COSHAM LTD,146825
Portsmouth City Council,PCC,Adult Social Care,Information and Early Intervention,Adult Services,Third Party Payments,Other establishments,17/04/2020,6358898,17644,VENDOR,APETITO LTD,100127
Portsmouth City Council,PCC,Adult Social Care,Information and Early Intervention,Adult Services,Third Party Payments,Other establishments,17/04/2020,6358898,864.5,VENDOR,APETITO LTD,100127
Portsmouth City Council,PCC,Adult Social Care,Information and Early Intervention,Adult Services,Income,Customer and client receipts,17/04/2020,6358898,-17644,VENDOR,APETITO LTD,100127
Portsmouth City Council,PCC,Adult Social Care,Information and Early Intervention,Adult Services,Income,Customer and client receipts,17/04/2020,6358898,-864.5,VENDOR,APETITO LTD,100127
Portsmouth City Council,PCC,Solent LEP,Business support,OTHER,Supplies and Services,Miscellaneous expenses,23/04/2020,6360838,903,VENDOR,BEVAN BRITTAN LLP,108894
Portsmouth City Council,PCC,Other,Suspense and Capital Schemes,Capital - Traffic & Transportation,Capital Charges,Capital Expenditure (WIP),21/04/2020,6359642,165.6,VENDOR,AHR BUILDING CONSULTANCY LTD,146225
Portsmouth City Council,PCC,Other,Suspense and Capital Schemes,Capital - Traffic & Transportation,Capital Charges,Capital Expenditure (WIP),21/04/2020,6359642,1807.2,VENDOR,AHR BUILDING CONSULTANCY LTD,146225
Portsmouth City Council,PCC,Other,Suspense and Capital Schemes,Capital - Traffic & Transportation,Capital Charges,Capital Expenditure (WIP),08/04/2020,6357244,7495.75,VENDOR,SMART VIDEO AND SENSING LTD,141106
Portsmouth City Council,PCC,Other,Suspense and Capital Schemes,Capital - Traffic & Transportation,Capital Charges,Capital Expenditure (WIP),08/04/2020,6357244,4025.2,VENDOR,SMART VIDEO AND SENSING LTD,141106
Portsmouth City Council,PCC,Other,Suspense and Capital Schemes,Capital - Traffic & Transportation,Capital Charges,Capital Expenditure (WIP),22/04/2020,6360742,693.56,VENDOR,SMART VIDEO AND SENSING LTD,141106
Portsmouth City Council,PCC,Other,Suspense and Capital Schemes,Capital - Traffic & Transportation,Capital Charges,Capital Expenditure (WIP),22/04/2020,6360742,440.2,VENDOR,SMART VIDEO AND SENSING LTD,141106
Portsmouth City Council,PCC,Other,Suspense and Capital Schemes,Capital - Traffic & Transportation,Capital Charges,Capital Expenditure (WIP),22/04/2020,6360742,440.2,VENDOR,SMART VIDEO AND SENSING LTD,141106
Portsmouth City Council,PCC,Other,Suspense and Capital Schemes,Capital - Traffic & Transportation,Capital Charges,Capital Expenditure (WIP),22/04/2020,6360742,566.88,VENDOR,SMART VIDEO AND SENSING LTD,141106
Portsmouth City Council,PCC,Support Service / Transparency Costs Unallocated,Information Services,Corporate Services,Employees,Direct employee expenses,14/04/2020,6357673,4218.75,VENDOR,HAYS SPECIALIST RECRUITMENT LIMITED,100045
Portsmouth City Council,PCC,Support Service / Transparency Costs Unallocated,Information Services,Corporate Services,Employees,Direct employee expenses,14/04/2020,6357673,4218.75,VENDOR,HAYS SPECIALIST RECRUITMENT LIMITED,100045
Portsmouth City Council,PCC,Support Service / Transparency Costs Unallocated,Information Services,Corporate Services,Employees,Direct employee expenses,20/04/2020,6359555,3375,VENDOR,HAYS SPECIALIST RECRUITMENT LIMITED,100045
Portsmouth City Council,PCC,Support Service / Transparency Costs Unallocated,Information Services,Corporate Services,Employees,Direct employee expenses,27/04/2020,6361574,4218.75,VENDOR,HAYS SPECIALIST RECRUITMENT LIMITED,100045
Portsmouth City Council,PCC,Solent LEP,Business support,OTHER,Supplies and Services,Services,06/04/2020,6356538,700,VENDOR,DEEP SOUTH MEDIA LTD,143218
Portsmouth City Council,PCC,Solent LEP,Business support,OTHER,Supplies and Services,Services,06/04/2020,6356538,70,VENDOR,DEEP SOUTH MEDIA LTD,143218
Portsmouth City Council,PCC,Planning Services,Business support,Regeneration,Premises-Related Expenditure,"Repairs, alterations and maintenance of buildings",20/04/2020,6359536,1546,COMPANY,D & J MEADEN LIMITED,130022
Portsmouth City Council,PCC,Planning Services,Business support,Regeneration,Premises-Related Expenditure,"Repairs, alterations and maintenance of buildings",22/04/2020,6360466,866,COMPANY,D & J MEADEN LIMITED,130022
Portsmouth City Council,PCC,Planning Services,Business support,Regeneration,Premises-Related Expenditure,"Repairs, alterations and maintenance of buildings",20/04/2020,6359536,175,COMPANY,D & J MEADEN LIMITED,130022
Portsmouth City Council,PCC,Planning Services,Business support,Regeneration,Premises-Related Expenditure,"Repairs, alterations and maintenance of buildings",20/04/2020,6359536,2372,COMPANY,D & J MEADEN LIMITED,130022
Portsmouth City Council,PCC,Planning Services,Business support,Regeneration,Premises-Related Expenditure,"Repairs, alterations and maintenance of buildings",20/04/2020,6359536,113,COMPANY,D & J MEADEN LIMITED,130022
Portsmouth City Council,PCC,Planning Services,Business support,Regeneration,Premises-Related Expenditure,"Repairs, alterations and maintenance of buildings",20/04/2020,6359536,595,COMPANY,D & J MEADEN LIMITED,130022
Portsmouth City Council,PCC,Planning Services,Business support,Regeneration,Premises-Related Expenditure,"Repairs, alterations and maintenance of buildings",20/04/2020,6359536,2182,COMPANY,D & J MEADEN LIMITED,130022
Portsmouth City Council,PCC,Planning Services,Business support,Regeneration,Premises-Related Expenditure,"Repairs, alterations and maintenance of buildings",20/04/2020,6359536,1307,COMPANY,D & J MEADEN LIMITED,130022
Portsmouth City Council,PCC,Planning Services,Business support,Regeneration,Premises-Related Expenditure,"Repairs, alterations and maintenance of buildings",20/04/2020,6359536,202,COMPANY,D & J MEADEN LIMITED,130022
Portsmouth City Council,PCC,Planning Services,Business support,Regeneration,Premises-Related Expenditure,"Repairs, alterations and maintenance of buildings",20/04/2020,6359536,217.27,COMPANY,D & J MEADEN LIMITED,130022
Portsmouth City Council,PCC,Housing Services,Housing Advice,"Housing, Neighbourhood and Building Services",Third Party Payments,Private contractors,16/04/2020,6358854,580,VENDOR,PORTSMOUTH.COM REMOVALS LTD,137147
Portsmouth City Council,PCC,Adult Social Care,Social Care Activities,Adult Services,Third Party Payments,Other establishments,09/04/2020,6357320,3100,VENDOR,BLUEBELL NURSING HOME,100112
Portsmouth City Council,PCC,Central Services,"Registration of Births, Deaths and Marriages","Culture, Leisure & Regulatory Services",Premises-Related Expenditure,Cleaning and domestic supplies,06/04/2020,6356485,29.82,VENDOR,1ST CHOICE HIGH LEVEL CLEANING & MAINTENANCE LIMITED,101385
Portsmouth City Council,PCC,Central Services,"Registration of Births, Deaths and Marriages","Culture, Leisure & Regulatory Services",Premises-Related Expenditure,Cleaning and domestic supplies,06/04/2020,6356485,98.4,VENDOR,1ST CHOICE HIGH LEVEL CLEANING & MAINTENANCE LIMITED,101385
Portsmouth City Council,PCC,Cultural and Related Services,Library Service,"Culture, Leisure & Regulatory Services",Premises-Related Expenditure,Cleaning and domestic supplies,06/04/2020,6356485,122.59,VENDOR,1ST CHOICE HIGH LEVEL CLEANING & MAINTENANCE LIMITED,101385
Portsmouth City Council,PCC,Cultural and Related Services,Library Service,"Culture, Leisure & Regulatory Services",Premises-Related Expenditure,Cleaning and domestic supplies,06/04/2020,6356485,49.38,VENDOR,1ST CHOICE HIGH LEVEL CLEANING & MAINTENANCE LIMITED,101385
Portsmouth City Council,PCC,Cultural and Related Services,Library Service,"Culture, Leisure & Regulatory Services",Premises-Related Expenditure,Cleaning and domestic supplies,06/04/2020,6356485,80,VENDOR,1ST CHOICE HIGH LEVEL CLEANING & MAINTENANCE LIMITED,101385
Portsmouth City Council,PCC,Cultural and Related Services,Library Service,"Culture, Leisure & Regulatory Services",Premises-Related Expenditure,Cleaning and domestic supplies,06/04/2020,6356485,33.73,VENDOR,1ST CHOICE HIGH LEVEL CLEANING & MAINTENANCE LIMITED,101385
Portsmouth City Council,PCC,Cultural and Related Services,Library Service,"Culture, Leisure & Regulatory Services",Premises-Related Expenditure,Cleaning and domestic supplies,06/04/2020,6356485,20.26,VENDOR,1ST CHOICE HIGH LEVEL CLEANING & MAINTENANCE LIMITED,101385
Portsmouth City Council,PCC,Cultural and Related Services,Library Service,"Culture, Leisure & Regulatory Services",Premises-Related Expenditure,Cleaning and domestic supplies,06/04/2020,6356485,40.5,VENDOR,1ST CHOICE HIGH LEVEL CLEANING & MAINTENANCE LIMITED,101385
Portsmouth City Council,PCC,Cultural and Related Services,Library Service,"Culture, Leisure & Regulatory Services",Premises-Related Expenditure,Cleaning and domestic supplies,06/04/2020,6356485,40.5,VENDOR,1ST CHOICE HIGH LEVEL CLEANING & MAINTENANCE LIMITED,101385
Portsmouth City Council,PCC,Cultural and Related Services,Library Service,"Culture, Leisure & Regulatory Services",Premises-Related Expenditure,Cleaning and domestic supplies,06/04/2020,6356485,33.73,VENDOR,1ST CHOICE HIGH LEVEL CLEANING & MAINTENANCE LIMITED,101385
Portsmouth City Council,PCC,Cultural and Related Services,Library Service,"Culture, Leisure & Regulatory Services",Premises-Related Expenditure,Cleaning and domestic supplies,09/04/2020,6357264,483.19,VENDOR,1ST CHOICE HIGH LEVEL CLEANING & MAINTENANCE LIMITED,101385
Portsmouth City Council,PCC,Other,Suspense and Capital Schemes,Capital - Traffic & Transportation,Capital Charges,Capital Expenditure (WIP),16/04/2020,6358865,68487.47,COMPANY,SIEMENS PLC,106546
Portsmouth City Council,PCC,Other,Suspense and Capital Schemes,Capital - Traffic & Transportation,Capital Charges,Capital Expenditure (WIP),16/04/2020,6358865,62765.47,COMPANY,SIEMENS PLC,106546
Portsmouth City Council,PCC,Other,Suspense and Capital Schemes,Capital - Traffic & Transportation,Capital Charges,Capital Expenditure (WIP),16/04/2020,6358865,11777,COMPANY,SIEMENS PLC,106546
Portsmouth City Council,PCC,Other,Suspense and Capital Schemes,Capital - Traffic & Transportation,Capital Charges,Capital Expenditure (WIP),16/04/2020,6358865,130612.11,COMPANY,SIEMENS PLC,106546
Portsmouth City Council,PCC,Other,Suspense and Capital Schemes,Capital - Traffic & Transportation,Capital Charges,Capital Expenditure (WIP),16/04/2020,6358864,8191,COMPANY,SIEMENS PLC,106546
Portsmouth City Council,PCC,Support Service / Transparency Costs Unallocated,AMS,"Housing, Neighbourhood and Building Services",Premises-Related Expenditure,Energy costs,03/04/2020,6356470,394.29,COMPANY,SIEMENS PLC,106546
Portsmouth City Council,PCC,Support Service / Transparency Costs Unallocated,AMS,"Housing, Neighbourhood and Building Services",Premises-Related Expenditure,Energy costs,03/04/2020,6356470,3551.85,COMPANY,SIEMENS PLC,106546
Portsmouth City Council,PCC,Other,Suspense and Capital Schemes,Capital - Traffic & Transportation,Capital Charges,Capital Expenditure (WIP),30/04/2020,6362656,22249.77,COMPANY,SIEMENS PLC,106546
Portsmouth City Council,PCC,Other,Suspense and Capital Schemes,Capital - Traffic & Transportation,Capital Charges,Capital Expenditure (WIP),30/04/2020,6362656,4698.99,COMPANY,SIEMENS PLC,106546
Portsmouth City Council,PCC,Cultural and Related Services,Tourism,"Culture, Leisure & Regulatory Services",Third Party Payments,Private contractors,23/04/2020,6361067,300.73,VENDOR,LIFESTYLE MEDIA GROUP LIMITED,131557
Portsmouth City Council,PCC,Cultural and Related Services,Tourism,"Culture, Leisure & Regulatory Services",Third Party Payments,Private contractors,23/04/2020,6361067,1797.25,VENDOR,LIFESTYLE MEDIA GROUP LIMITED,131557
Portsmouth City Council,PCC,Housing Revenue Account,"Rents, Rates, Taxes and Other Charges","Housing, Neighbourhood and Building Services",Premises-Related Expenditure,Water Services,24/04/2020,6361400,719.52,VENDOR,PORTSMOUTH WATER LTD,100253
Portsmouth City Council,PCC,Support Service / Transparency Costs Unallocated,Personnel,Corporate Services,Employees,Direct employee expenses,06/04/2020,6356523,60766.13,VENDOR,COMENSURA LTD,140265
Portsmouth City Council,PCC,Support Service / Transparency Costs Unallocated,Personnel,Corporate Services,Employees,Direct employee expenses,09/04/2020,6357349,81063.13,VENDOR,COMENSURA LTD,140265
Portsmouth City Council,PCC,Support Service / Transparency Costs Unallocated,Personnel,Corporate Services,Employees,Direct employee expenses,17/04/2020,6358906,78500.35,VENDOR,COMENSURA LTD,140265
Portsmouth City Council,PCC,Support Service / Transparency Costs Unallocated,Personnel,Corporate Services,Employees,Direct employee expenses,24/04/2020,6361138,51549.6,VENDOR,COMENSURA LTD,140265
Portsmouth City Council,PCC,Planning Services,Business support,Regeneration,Premises-Related Expenditure,"Repairs, alterations and maintenance of buildings",02/04/2020,6356375,2500,COMPANY,COMPLETE ENVIRONMENT SERVICES LTD,146582
Portsmouth City Council,PCC,Planning Services,Business support,Regeneration,Premises-Related Expenditure,"Repairs, alterations and maintenance of buildings",02/04/2020,6356375,182.46,COMPANY,COMPLETE ENVIRONMENT SERVICES LTD,146582
Portsmouth City Council,PCC,Highways and Transport Services,Traffic Management and Road Safety,Regeneration,Supplies and Services,Communications and computing,15/04/2020,6357781,432.86,VENDOR,CIVICA UK LTD,104001
Portsmouth City Council,PCC,Highways and Transport Services,"Transport Planning, Policy and Strategy",Regeneration,Supplies and Services,Communications and computing,08/04/2020,6357185,432.86,VENDOR,CIVICA UK LTD,104001
Portsmouth City Council,PCC,Support Service / Transparency Costs Unallocated,Information Services,Corporate Services,Supplies and Services,Communications and computing,30/04/2020,6362532,24969.42,VENDOR,CIVICA UK LTD,104001
Portsmouth City Council,PCC,Support Service / Transparency Costs Unallocated,Information Services,Corporate Services,Supplies and Services,Communications and computing,30/04/2020,6362532,25438.77,VENDOR,CIVICA UK LTD,104001
Portsmouth City Council,PCC,Solent LEP,Business support,OTHER,Supplies and Services,Communications and computing,30/04/2020,6362532,129.2,VENDOR,CIVICA UK LTD,104001
Portsmouth City Council,PCC,Children's and Education Services,Management and Support Services,Children's Services and Education,Supplies and Services,Communications and computing,28/04/2020,6361851,2300,SOLETRADER,Classified as 'personal data' (under the Data Protection Act 2018),144686
Portsmouth City Council,PCC,Support Service / Transparency Costs Unallocated,Financial Services,Finance & Resources,Supplies and Services,Grants and subscriptions,17/04/2020,6359263,2065,VENDOR,LAVAT CONSULTING LTD,125232
Portsmouth City Council,PCC,Costs below Net Cost of Services,Trading,Regeneration,Supplies and Services,Services,15/04/2020,6357860,2317.75,VENDOR,THE OYSTER PARTNERSHIP,120530
Portsmouth City Council,PCC,Costs below Net Cost of Services,Trading,Regeneration,Supplies and Services,Services,15/04/2020,6357860,1660.75,VENDOR,THE OYSTER PARTNERSHIP,120530
Portsmouth City Council,PCC,Costs below Net Cost of Services,Trading,Regeneration,Supplies and Services,Services,15/04/2020,6357860,2786.41,VENDOR,THE OYSTER PARTNERSHIP,120530
Portsmouth City Council,PCC,Costs below Net Cost of Services,Trading,Regeneration,Supplies and Services,Services,28/04/2020,6361843,2421.41,VENDOR,THE OYSTER PARTNERSHIP,120530
Portsmouth City Council,PCC,Highways and Transport Services,"Transport Planning, Policy and Strategy",Regeneration,Transport-Related Expenditure,Direct transport costs,06/04/2020,6356486,532.73,VENDOR,A & J LAWRENCE LTD,141283
Portsmouth City Council,PCC,Highways and Transport Services,"Airports, Harbours and Toll Facilities",Portsmouth International Port,Premises-Related Expenditure,"Repairs, alterations and maintenance of buildings",09/04/2020,6357435,525,VENDOR,INVISIBLE SYSTEMS LTD,146224
Portsmouth City Council,PCC,Support Service / Transparency Costs Unallocated,AMS,Regeneration,Supplies and Services,Services,01/04/2020,6355714,6500,VENDOR,BACA ARCHITECTS LIMITED,146684
Portsmouth City Council,PCC,Support Service / Transparency Costs Unallocated,AMS,Regeneration,Supplies and Services,Services,24/04/2020,6361136,12800,VENDOR,CLYDE AND CO,134667
Portsmouth City Council,PCC,Support Service / Transparency Costs Unallocated,Personnel,Corporate Services,Employees,Indirect employee expenses,17/04/2020,6359265,600,VENDOR,MG CARE EXECUTIVE LTD,145566
Portsmouth City Council,PCC,Support Service / Transparency Costs Unallocated,Personnel,Corporate Services,Employees,Indirect employee expenses,17/04/2020,6359265,60,VENDOR,MG CARE EXECUTIVE LTD,145566
Portsmouth City Council,PCC,Cultural and Related Services,Culture and Heritage,"Culture, Leisure & Regulatory Services",Third Party Payments,Private contractors,29/04/2020,6362444,2000,VENDOR,UNLOC LEARNING LIMITED,137515
Portsmouth City Council,PCC,Adult Social Care,Social Care Activities,Adult Services,Third Party Payments,Other establishments,09/04/2020,6357320,4507.2,VENDOR,BLUEBELL NURSING HOME,100112
Portsmouth City Council,PCC,Cultural and Related Services,Allocation of Management & Admin,"Housing, Neighbourhood and Building Services",Supplies and Services,Catering,01/04/2020,6355722,911.73,VENDOR,BFS GROUP LTD T/A BIDFOOD,100106
Portsmouth City Council,PCC,Adult Social Care,Support with Memory and Cognition Older People (65 - 74),Adult Services,Supplies and Services,Catering,01/04/2020,6355722,214.11,VENDOR,BFS GROUP LTD T/A BIDFOOD,100106
Portsmouth City Council,PCC,Housing Revenue Account,Special Services,"Housing, Neighbourhood and Building Services",Supplies and Services,Catering,01/04/2020,6355722,274.99,VENDOR,BFS GROUP LTD T/A BIDFOOD,100106
Portsmouth City Council,PCC,Adult Social Care,Physical Support Older People (65-74),Adult Services,Supplies and Services,Catering,01/04/2020,6355722,12.3,VENDOR,BFS GROUP LTD T/A BIDFOOD,100106
Portsmouth City Council,PCC,Adult Social Care,Support with Memory and Cognition Older People (65 - 74),Adult Services,Supplies and Services,Catering,07/04/2020,6356715,331.9,VENDOR,BFS GROUP LTD T/A BIDFOOD,100106
Portsmouth City Council,PCC,Cultural and Related Services,Culture and Heritage,"Culture, Leisure & Regulatory Services",Supplies and Services,"Equipment, furniture and materials",01/04/2020,6355722,274.82,VENDOR,BFS GROUP LTD T/A BIDFOOD,100106
Portsmouth City Council,PCC,Cultural and Related Services,Allocation of Management & Admin,"Housing, Neighbourhood and Building Services",Supplies and Services,Catering,01/04/2020,6355722,870.83,VENDOR,BFS GROUP LTD T/A BIDFOOD,100106
Portsmouth City Council,PCC,Support Service / Transparency Costs Unallocated,AMS,Regeneration,Third Party Payments,Private contractors,06/04/2020,6356570,2407.08,VENDOR,INSIGHT EXECUTIVE GROUP LIMITED,146149
Portsmouth City Council,PCC,Adult Social Care,Social Care Activities,Adult Services,Third Party Payments,Other establishments,06/04/2020,6356500,1521,VENDOR,AQUA CARS LIMITED,100011
Portsmouth City Council,PCC,Children's and Education Services,Other Children and Family Services,Children's Services and Education,Supplies and Services,Services,02/04/2020,6356408,2590,VENDOR,MEDICAL EXPERT WITNESS ALLIANCE LLP,144273
Portsmouth City Council,PCC,Cultural and Related Services,Allocation of Management & Admin,"Housing, Neighbourhood and Building Services",Supplies and Services,Catering,01/04/2020,6355722,740.1,VENDOR,BFS GROUP LTD T/A BIDFOOD,100106
Portsmouth City Council,PCC,Housing Revenue Account,Special Services,"Housing, Neighbourhood and Building Services",Supplies and Services,Catering,01/04/2020,6355722,275.17,VENDOR,BFS GROUP LTD T/A BIDFOOD,100106
Portsmouth City Council,PCC,Housing Revenue Account,Special Services,"Housing, Neighbourhood and Building Services",Supplies and Services,Catering,01/04/2020,6355722,86.16,VENDOR,BFS GROUP LTD T/A BIDFOOD,100106
Portsmouth City Council,PCC,Adult Social Care,Support with Memory and Cognition Older People (65 - 74),Adult Services,Supplies and Services,Catering,01/04/2020,6355722,423.57,VENDOR,BFS GROUP LTD T/A BIDFOOD,100106
Portsmouth City Council,PCC,Adult Social Care,Support with Memory and Cognition Older People (65 - 74),Adult Services,Supplies and Services,Catering,01/04/2020,6355722,1113.96,VENDOR,BFS GROUP LTD T/A BIDFOOD,100106
Portsmouth City Council,PCC,Housing Revenue Account,Special Services,"Housing, Neighbourhood and Building Services",Supplies and Services,Catering,01/04/2020,6355722,167.46,VENDOR,BFS GROUP LTD T/A BIDFOOD,100106
Portsmouth City Council,PCC,Cultural and Related Services,Allocation of Management & Admin,"Housing, Neighbourhood and Building Services",Supplies and Services,Catering,01/04/2020,6355722,812.07,VENDOR,BFS GROUP LTD T/A BIDFOOD,100106
Portsmouth City Council,PCC,Housing Revenue Account,Special Services,"Housing, Neighbourhood and Building Services",Employees,Direct employee expenses,14/04/2020,6357710,3660.16,VENDOR,SEVACARE (UK) LTD,136163
Portsmouth City Council,PCC,Adult Social Care,Social Care Activities,Adult Services,Third Party Payments,Other establishments,09/04/2020,6357320,5093.4,VENDOR,BLUEBELL NURSING HOME,100112
Portsmouth City Council,PCC,Cultural and Related Services,Allocation of Management & Admin,"Housing, Neighbourhood and Building Services",Supplies and Services,Catering,01/04/2020,6355722,513.33,VENDOR,BFS GROUP LTD T/A BIDFOOD,100106
Portsmouth City Council,PCC,Environmental and Regulatory Services,Regulatory Services,"Culture, Leisure & Regulatory Services",Supplies and Services,Communications and computing,16/04/2020,6358831,78.75,VENDOR,IDOX SOFTWARE LTD,113608
Portsmouth City Council,PCC,Planning Services,Development Control,Regeneration,Supplies and Services,Communications and computing,16/04/2020,6358831,314.75,VENDOR,IDOX SOFTWARE LTD,113608
Portsmouth City Council,PCC,Environmental and Regulatory Services,Regulatory Services,"Housing, Neighbourhood and Building Services",Supplies and Services,Communications and computing,16/04/2020,6358831,78.75,VENDOR,IDOX SOFTWARE LTD,113608
Portsmouth City Council,PCC,Environmental and Regulatory Services,Regulatory Services,"Culture, Leisure & Regulatory Services",Supplies and Services,Communications and computing,16/04/2020,6358831,157.75,VENDOR,IDOX SOFTWARE LTD,113608
Portsmouth City Council,PCC,Adult Social Care,Social Care Activities,Adult Services,Third Party Payments,Other establishments,23/04/2020,6360829,1369,VENDOR,AQUA CARS LIMITED,100011
Portsmouth City Council,PCC,Adult Social Care,Support with Memory and Cognition Older People (65 - 74),Adult Services,Supplies and Services,Catering,01/04/2020,6355722,483.3,VENDOR,BFS GROUP LTD T/A BIDFOOD,100106
Portsmouth City Council,PCC,Cultural and Related Services,Library Service,"Culture, Leisure & Regulatory Services",Third Party Payments,Private contractors,09/04/2020,6357551,682.5,VENDOR,SUNRISE STAINED GLASS LIMITED,107270
Portsmouth City Council,PCC,Adult Social Care,Physical Support Older People (65-74),Adult Services,Supplies and Services,Catering,01/04/2020,6355722,567.16,VENDOR,BFS GROUP LTD T/A BIDFOOD,100106
Portsmouth City Council,PCC,Adult Social Care,Support with Memory and Cognition Older People (65 - 74),Adult Services,Supplies and Services,Catering,01/04/2020,6355722,885.94,VENDOR,BFS GROUP LTD T/A BIDFOOD,100106
Portsmouth City Council,PCC,Cultural and Related Services,Allocation of Management & Admin,"Housing, Neighbourhood and Building Services",Supplies and Services,Catering,17/04/2020,6358901,703.2,VENDOR,BFS GROUP LTD T/A BIDFOOD,100106
Portsmouth City Council,PCC,Adult Social Care,Social Care Activities,Adult Services,Third Party Payments,Other establishments,09/04/2020,6357320,4570.2,VENDOR,BLUEBELL NURSING HOME,100112
Portsmouth City Council,PCC,Adult Social Care,Social Care Activities,Adult Services,Third Party Payments,Other establishments,09/04/2020,6357320,3947.4,VENDOR,BLUEBELL NURSING HOME,100112
Portsmouth City Council,PCC,Adult Social Care,Social Care Activities,Adult Services,Third Party Payments,Other establishments,09/04/2020,6357320,4314.6,VENDOR,BLUEBELL NURSING HOME,100112
Portsmouth City Council,PCC,Adult Social Care,Social Care Activities,Adult Services,Third Party Payments,Other establishments,09/04/2020,6357320,-2363.85,VENDOR,BLUEBELL NURSING HOME,100112
Portsmouth City Council,PCC,Adult Social Care,Support with Memory and Cognition Older People (65 - 74),Adult Services,Supplies and Services,Catering,01/04/2020,6355722,210.42,VENDOR,BFS GROUP LTD T/A BIDFOOD,100106
Portsmouth City Council,PCC,Children's and Education Services,Asylum seekers,Children's Services and Education,Third Party Payments,Other establishments,09/04/2020,6357527,6231.95,VENDOR,SILVER BIRCH CARE LIMITED,146315
Portsmouth City Council,PCC,Children's and Education Services,Asylum seekers,Children's Services and Education,Third Party Payments,Other establishments,09/04/2020,6357527,26098.88,VENDOR,SILVER BIRCH CARE LIMITED,146315
Portsmouth City Council,PCC,Children's and Education Services,Children Looked After,Children's Services and Education,Third Party Payments,Other establishments,09/04/2020,6357527,355.01,VENDOR,SILVER BIRCH CARE LIMITED,146315
Portsmouth City Council,PCC,Children's and Education Services,Children Looked After,Children's Services and Education,Third Party Payments,Other establishments,09/04/2020,6357527,3298.56,VENDOR,SILVER BIRCH CARE LIMITED,146315
Portsmouth City Council,PCC,Cultural and Related Services,Allocation of Management & Admin,Finance & Resources,Supplies and Services,Catering,29/04/2020,6361916,2748.01,VENDOR,BFS GROUP LTD T/A BIDFOOD,100106
Portsmouth City Council,PCC,Cultural and Related Services,Allocation of Management & Admin,"Housing, Neighbourhood and Building Services",Supplies and Services,Catering,23/04/2020,6360839,775.28,VENDOR,BFS GROUP LTD T/A BIDFOOD,100106
Portsmouth City Council,PCC,Adult Social Care,Support with Memory and Cognition Older People (65 - 74),Adult Services,Supplies and Services,Catering,03/04/2020,6356440,573.11,VENDOR,BFS GROUP LTD T/A BIDFOOD,100106
Portsmouth City Council,PCC,Cultural and Related Services,Allocation of Management & Admin,"Housing, Neighbourhood and Building Services",Supplies and Services,Catering,06/04/2020,6356509,586.67,VENDOR,BFS GROUP LTD T/A BIDFOOD,100106
Portsmouth City Council,PCC,Cultural and Related Services,Allocation of Management & Admin,Finance & Resources,Supplies and Services,Catering,29/04/2020,6361916,1541.32,VENDOR,BFS GROUP LTD T/A BIDFOOD,100106
Portsmouth City Council,PCC,Cultural and Related Services,Allocation of Management & Admin,Finance & Resources,Supplies and Services,Catering,29/04/2020,6361916,2494.77,VENDOR,BFS GROUP LTD T/A BIDFOOD,100106
Portsmouth City Council,PCC,Cultural and Related Services,Allocation of Management & Admin,"Housing, Neighbourhood and Building Services",Supplies and Services,Catering,07/04/2020,6356715,396,VENDOR,BFS GROUP LTD T/A BIDFOOD,100106
Portsmouth City Council,PCC,Adult Social Care,Support with Memory and Cognition Older People (65 - 74),Adult Services,Supplies and Services,Catering,08/04/2020,6357176,261.76,VENDOR,BFS GROUP LTD T/A BIDFOOD,100106
Portsmouth City Council,PCC,Adult Social Care,Physical Support Older People (65-74),Adult Services,Supplies and Services,Catering,17/04/2020,6358901,105.77,VENDOR,BFS GROUP LTD T/A BIDFOOD,100106
Portsmouth City Council,PCC,Cultural and Related Services,Allocation of Management & Admin,"Housing, Neighbourhood and Building Services",Supplies and Services,Catering,09/04/2020,6357316,664.37,VENDOR,BFS GROUP LTD T/A BIDFOOD,100106
Portsmouth City Council,PCC,Adult Social Care,Support with Memory and Cognition Older People (65 - 74),Adult Services,Supplies and Services,Catering,09/04/2020,6357316,446.96,VENDOR,BFS GROUP LTD T/A BIDFOOD,100106
Portsmouth City Council,PCC,Adult Social Care,Learning Disability Support  Adults (18 - 64),Adult Services,Transport-Related Expenditure,Public transport,06/04/2020,6356501,2516.6,VENDOR,AQUA CARS LIMITED,100011
Portsmouth City Council,PCC,Housing Services,Homelessness,"Housing, Neighbourhood and Building Services",Supplies and Services,Catering,27/04/2020,6361461,394.19,VENDOR,BFS GROUP LTD T/A BIDFOOD,100106
Portsmouth City Council,PCC,Support Service / Transparency Costs Unallocated,Procurement,Finance & Resources,Supplies and Services,Services,17/04/2020,6359293,3500,VENDOR,TRL LTD,106263
Portsmouth City Council,PCC,Support Service / Transparency Costs Unallocated,Procurement,Finance & Resources,Supplies and Services,Services,21/04/2020,6359961,1534,VENDOR,TRL LTD,106263
Portsmouth City Council,PCC,Support Service / Transparency Costs Unallocated,Procurement,Finance & Resources,Supplies and Services,Services,21/04/2020,6359961,2066,VENDOR,TRL LTD,106263
Portsmouth City Council,PCC,Housing Services,Homelessness,"Housing, Neighbourhood and Building Services",Supplies and Services,Catering,27/04/2020,6361461,274.5,VENDOR,BFS GROUP LTD T/A BIDFOOD,100106
Portsmouth City Council,PCC,Cultural and Related Services,Library Service,"Culture, Leisure & Regulatory Services",Supplies and Services,Miscellaneous expenses,09/04/2020,6357440,467.95,SOLETRADER,Classified as 'personal data' (under the Data Protection Act 2018),139083
Portsmouth City Council,PCC,Adult Social Care,Physical Support Older People (65-74),Adult Services,Supplies and Services,Catering,17/04/2020,6358901,122.51,VENDOR,BFS GROUP LTD T/A BIDFOOD,100106
Portsmouth City Council,PCC,Adult Social Care,Social Care Activities,Adult Services,Transport-Related Expenditure,Direct transport costs,06/04/2020,6356501,30.4,VENDOR,AQUA CARS LIMITED,100011
Portsmouth City Council,PCC,Housing Services,Homelessness,"Housing, Neighbourhood and Building Services",Supplies and Services,Catering,27/04/2020,6361461,432.44,VENDOR,BFS GROUP LTD T/A BIDFOOD,100106
Portsmouth City Council,PCC,Adult Social Care,Physical Support Older People (65-74),Adult Services,Supplies and Services,Catering,23/04/2020,6360839,136.24,VENDOR,BFS GROUP LTD T/A BIDFOOD,100106
Portsmouth City Council,PCC,Adult Social Care,Learning Disability Support  Adults (18 - 64),Adult Services,Transport-Related Expenditure,Public transport,09/04/2020,6357292,2572,VENDOR,AQUA CARS LIMITED,100011
Portsmouth City Council,PCC,Adult Social Care,Learning Disability Support  Adults (18 - 64),Adult Services,Transport-Related Expenditure,Public transport,20/04/2020,6359331,2020.3,VENDOR,AQUA CARS LIMITED,100011
Portsmouth City Council,PCC,Adult Social Care,Learning Disability Support  Adults (18 - 64),Adult Services,Transport-Related Expenditure,Public transport,28/04/2020,6361644,285.5,VENDOR,AQUA CARS LIMITED,100011
Portsmouth City Council,PCC,Adult Social Care,Social Care Activities,Adult Services,Transport-Related Expenditure,Direct transport costs,28/04/2020,6361644,36.9,VENDOR,AQUA CARS LIMITED,100011
Portsmouth City Council,PCC,Other,Suspense and Capital Schemes,"Housing, Neighbourhood and Building Services",Third Party Payments,Private contractors,28/04/2020,6361789,450000,OTHER LOCAL AUTHORITY,HAMPSHIRE COUNTY COUNCIL,100030
Portsmouth City Council,PCC,Housing Services,Homelessness,"Housing, Neighbourhood and Building Services",Supplies and Services,Grants and subscriptions,23/04/2020,6360847,850,VENDOR,CHRISTIES LETTING AGENTS,128708
Portsmouth City Council,PCC,Children's and Education Services,Family Support Services,Children's Services and Education,Third Party Payments,Other establishments,28/04/2020,6361777,58.31,VENDOR,DAVID HOWARD LIMITED,141296
Portsmouth City Council,PCC,Adult Social Care,Social Care Activities,Adult Services,Transport-Related Expenditure,Direct transport costs,28/04/2020,6361644,37.1,VENDOR,AQUA CARS LIMITED,100011
Portsmouth City Council,PCC,Support Service / Transparency Costs Unallocated,Procurement,Finance & Resources,Supplies and Services,Communications and computing,17/04/2020,6359308,3433.49,VENDOR,IN-TEND LTD,121323
Portsmouth City Council,PCC,Housing Services,Homelessness,"Housing, Neighbourhood and Building Services",Supplies and Services,Grants and subscriptions,29/04/2020,6362114,800,SOLETRADER,Classified as 'personal data' (under the Data Protection Act 2018),146880
Portsmouth City Council,PCC,Adult Social Care,Physical Support Older People (85+),Adult Services,Third Party Payments,Other establishments,09/04/2020,6357300,2724,VENDOR,ATHENA CARE HOMES (UK) LIMITED,144812
Portsmouth City Council,PCC,Adult Social Care,Social Care Activities,Adult Services,Third Party Payments,Other establishments,09/04/2020,6357320,5240.4,VENDOR,BLUEBELL NURSING HOME,100112
Portsmouth City Council,PCC,Planning Services,Business support,Regeneration,Premises-Related Expenditure,"Repairs, alterations and maintenance of buildings",09/04/2020,6357529,20.16,VENDOR,SIX DEGREES TECHNOLOGY GROUP LTD,137034
Portsmouth City Council,PCC,Planning Services,Business support,Regeneration,Premises-Related Expenditure,"Repairs, alterations and maintenance of buildings",09/04/2020,6357529,37.32,VENDOR,SIX DEGREES TECHNOLOGY GROUP LTD,137034
Portsmouth City Council,PCC,Cultural and Related Services,Recreation and Sport,"Culture, Leisure & Regulatory Services",Premises-Related Expenditure,"Repairs, alterations and maintenance of buildings",09/04/2020,6357529,37.36,VENDOR,SIX DEGREES TECHNOLOGY GROUP LTD,137034
Portsmouth City Council,PCC,Support Service / Transparency Costs Unallocated,LLM,"Housing, Neighbourhood and Building Services",Premises-Related Expenditure,"Repairs, alterations and maintenance of buildings",09/04/2020,6357529,57.48,VENDOR,SIX DEGREES TECHNOLOGY GROUP LTD,137034
Portsmouth City Council,PCC,Support Service / Transparency Costs Unallocated,LLM,"Housing, Neighbourhood and Building Services",Premises-Related Expenditure,"Repairs, alterations and maintenance of buildings",09/04/2020,6357529,18.67,VENDOR,SIX DEGREES TECHNOLOGY GROUP LTD,137034
Portsmouth City Council,PCC,Support Service / Transparency Costs Unallocated,LLM,"Housing, Neighbourhood and Building Services",Premises-Related Expenditure,"Repairs, alterations and maintenance of buildings",09/04/2020,6357529,18.66,VENDOR,SIX DEGREES TECHNOLOGY GROUP LTD,137034
Portsmouth City Council,PCC,Support Service / Transparency Costs Unallocated,LLM,"Housing, Neighbourhood and Building Services",Premises-Related Expenditure,"Repairs, alterations and maintenance of buildings",09/04/2020,6357529,18.66,VENDOR,SIX DEGREES TECHNOLOGY GROUP LTD,137034
Portsmouth City Council,PCC,Support Service / Transparency Costs Unallocated,LLM,"Housing, Neighbourhood and Building Services",Premises-Related Expenditure,"Repairs, alterations and maintenance of buildings",09/04/2020,6357529,40.32,VENDOR,SIX DEGREES TECHNOLOGY GROUP LTD,137034
Portsmouth City Council,PCC,Support Service / Transparency Costs Unallocated,LLM,"Housing, Neighbourhood and Building Services",Premises-Related Expenditure,"Repairs, alterations and maintenance of buildings",09/04/2020,6357529,40.33,VENDOR,SIX DEGREES TECHNOLOGY GROUP LTD,137034
Portsmouth City Council,PCC,Support Service / Transparency Costs Unallocated,LLM,"Housing, Neighbourhood and Building Services",Premises-Related Expenditure,"Repairs, alterations and maintenance of buildings",09/04/2020,6357529,20.16,VENDOR,SIX DEGREES TECHNOLOGY GROUP LTD,137034
Portsmouth City Council,PCC,Support Service / Transparency Costs Unallocated,LLM,"Housing, Neighbourhood and Building Services",Premises-Related Expenditure,"Repairs, alterations and maintenance of buildings",09/04/2020,6357529,20.18,VENDOR,SIX DEGREES TECHNOLOGY GROUP LTD,137034
Portsmouth City Council,PCC,Support Service / Transparency Costs Unallocated,LLM,"Housing, Neighbourhood and Building Services",Premises-Related Expenditure,"Repairs, alterations and maintenance of buildings",09/04/2020,6357529,20.18,VENDOR,SIX DEGREES TECHNOLOGY GROUP LTD,137034
Portsmouth City Council,PCC,Support Service / Transparency Costs Unallocated,LLM,"Housing, Neighbourhood and Building Services",Premises-Related Expenditure,"Repairs, alterations and maintenance of buildings",09/04/2020,6357529,18.66,VENDOR,SIX DEGREES TECHNOLOGY GROUP LTD,137034
Portsmouth City Council,PCC,Support Service / Transparency Costs Unallocated,LLM,"Housing, Neighbourhood and Building Services",Premises-Related Expenditure,"Repairs, alterations and maintenance of buildings",09/04/2020,6357529,18.66,VENDOR,SIX DEGREES TECHNOLOGY GROUP LTD,137034
Portsmouth City Council,PCC,Housing Revenue Account,Repairs and Maintenance,"Housing, Neighbourhood and Building Services",Premises-Related Expenditure,"Repairs, alterations and maintenance of buildings",09/04/2020,6357529,1487.33,VENDOR,SIX DEGREES TECHNOLOGY GROUP LTD,137034
Portsmouth City Council,PCC,Adult Social Care,Support with Memory and Cognition Older People (85+),Adult Services,Third Party Payments,Other establishments,09/04/2020,6357309,2263.2,VENDOR,AVENUE CARE (FAREHAM) LIMITED,125285
Portsmouth City Council,PCC,Adult Social Care,Physical Support Older People (85+),Adult Services,Third Party Payments,Other establishments,09/04/2020,6357312,3169.5,VENDOR,BEAUMONT LODGE LIMITED,146467
Portsmouth City Council,PCC,Cultural and Related Services,Open Spaces,"Culture, Leisure & Regulatory Services",Supplies and Services,"Equipment, furniture and materials",27/04/2020,6361600,85,VENDOR,PALMSTEAD NURSERIES LTD,135396
Portsmouth City Council,PCC,Cultural and Related Services,Open Spaces,"Culture, Leisure & Regulatory Services",Supplies and Services,"Equipment, furniture and materials",27/04/2020,6361600,463.55,VENDOR,PALMSTEAD NURSERIES LTD,135396
Portsmouth City Council,PCC,Children's and Education Services,Children Looked After,Children's Services and Education,Supplies and Services,Miscellaneous expenses,06/04/2020,6356660,652,VENDOR,WRITE TRAK LTD,118543
Portsmouth City Council,PCC,Adult Social Care,Social Care Activities,Adult Services,Third Party Payments,Other establishments,09/04/2020,6357326,3151.8,VENDOR,BRAEMAR RCH LIMITED,102015
Portsmouth City Council,PCC,Housing Revenue Account,Special Services,"Housing, Neighbourhood and Building Services",Employees,Indirect employee expenses,09/04/2020,6357495,250,VENDOR,QUDOS,101590
Portsmouth City Council,PCC,Cultural and Related Services,Culture and Heritage,"Culture, Leisure & Regulatory Services",Third Party Payments,Private contractors,06/04/2020,6356541,4000,VENDOR,DERBY MUSEUMS,146492
Portsmouth City Council,PCC,Cultural and Related Services,Open Spaces,"Culture, Leisure & Regulatory Services",Supplies and Services,"Equipment, furniture and materials",20/04/2020,6359582,3163.52,VENDOR,PALMSTEAD NURSERIES LTD,135396
Portsmouth City Council,PCC,Cultural and Related Services,Open Spaces,"Culture, Leisure & Regulatory Services",Supplies and Services,"Printing, stationery and general office expenses",20/04/2020,6359582,85,VENDOR,PALMSTEAD NURSERIES LTD,135396
Portsmouth City Council,PCC,Cultural and Related Services,Open Spaces,"Culture, Leisure & Regulatory Services",Supplies and Services,"Printing, stationery and general office expenses",20/04/2020,6359582,8,VENDOR,PALMSTEAD NURSERIES LTD,135396
Portsmouth City Council,PCC,Cultural and Related Services,Open Spaces,"Culture, Leisure & Regulatory Services",Supplies and Services,"Equipment, furniture and materials",20/04/2020,6359582,3747.06,VENDOR,PALMSTEAD NURSERIES LTD,135396
Portsmouth City Council,PCC,Cultural and Related Services,Open Spaces,"Culture, Leisure & Regulatory Services",Supplies and Services,"Printing, stationery and general office expenses",20/04/2020,6359582,8,VENDOR,PALMSTEAD NURSERIES LTD,135396
Portsmouth City Council,PCC,Cultural and Related Services,Open Spaces,"Culture, Leisure & Regulatory Services",Supplies and Services,"Printing, stationery and general office expenses",20/04/2020,6359582,85,VENDOR,PALMSTEAD NURSERIES LTD,135396
Portsmouth City Council,PCC,Cultural and Related Services,Open Spaces,"Culture, Leisure & Regulatory Services",Supplies and Services,"Printing, stationery and general office expenses",20/04/2020,6359582,13.5,VENDOR,PALMSTEAD NURSERIES LTD,135396
Portsmouth City Council,PCC,Children's and Education Services,Children Looked After,Children's Services and Education,Supplies and Services,Miscellaneous expenses,06/04/2020,6356660,978,VENDOR,WRITE TRAK LTD,118543
Portsmouth City Council,PCC,Cultural and Related Services,Open Spaces,"Culture, Leisure & Regulatory Services",Supplies and Services,"Equipment, furniture and materials",20/04/2020,6359582,49.49,VENDOR,PALMSTEAD NURSERIES LTD,135396
Portsmouth City Council,PCC,Cultural and Related Services,Open Spaces,"Culture, Leisure & Regulatory Services",Supplies and Services,"Equipment, furniture and materials",08/04/2020,6357232,2624.7,VENDOR,PALMSTEAD NURSERIES LTD,135396
Portsmouth City Council,PCC,Cultural and Related Services,Open Spaces,"Culture, Leisure & Regulatory Services",Supplies and Services,"Printing, stationery and general office expenses",08/04/2020,6357232,85,VENDOR,PALMSTEAD NURSERIES LTD,135396
Portsmouth City Council,PCC,Cultural and Related Services,Open Spaces,"Culture, Leisure & Regulatory Services",Supplies and Services,"Equipment, furniture and materials",08/04/2020,6357232,3239.25,VENDOR,PALMSTEAD NURSERIES LTD,135396
Portsmouth City Council,PCC,Children's and Education Services,Other Children and Family Services,Children's Services and Education,Employees,Indirect employee expenses,09/04/2020,6357495,250,VENDOR,QUDOS,101590
Portsmouth City Council,PCC,Children's and Education Services,Children Looked After,Children's Services and Education,Supplies and Services,Miscellaneous expenses,06/04/2020,6356660,733.5,VENDOR,WRITE TRAK LTD,118543
Portsmouth City Council,PCC,Children's and Education Services,Children Looked After,Children's Services and Education,Supplies and Services,Services,24/04/2020,6361452,978,VENDOR,WRITE TRAK LTD,118543
Portsmouth City Council,PCC,Housing Services,Private Sector Housing Renewal,"Housing, Neighbourhood and Building Services",Supplies and Services,Grants and subscriptions,29/04/2020,6362299,13950,COMPANY,MUSSON SERVICES BUILDERS LTD,110933
Portsmouth City Council,PCC,Adult Social Care,Physical Support Older People (85+),Adult Services,Third Party Payments,Other establishments,09/04/2020,6357326,217.2,VENDOR,BRAEMAR RCH LIMITED,102015
Portsmouth City Council,PCC,Adult Social Care,Support with Memory and Cognition Older People (85+),Adult Services,Third Party Payments,Other establishments,09/04/2020,6357326,2263.2,VENDOR,BRAEMAR RCH LIMITED,102015
Portsmouth City Council,PCC,Other,Suspense and Capital Schemes,Capital - Traffic & Transportation,Capital Charges,Capital Expenditure (WIP),22/04/2020,6360217,7224,VENDOR,BDRC CONTINENTAL LTD,146789
Portsmouth City Council,PCC,Support Service / Transparency Costs Unallocated,Personnel,Corporate Services,Supplies and Services,Communications and computing,24/04/2020,6361112,22200,VENDOR,ACCROSOFT LTD,146750
Portsmouth City Council,PCC,Housing Revenue Account,Supervision and Management,"Housing, Neighbourhood and Building Services",Employees,Indirect employee expenses,27/04/2020,6361608,60,VENDOR,RMC EMEA LIMITED,122070
Portsmouth City Council,PCC,Housing Revenue Account,Supervision and Management,"Housing, Neighbourhood and Building Services",Employees,Indirect employee expenses,27/04/2020,6361608,180,VENDOR,RMC EMEA LIMITED,122070
Portsmouth City Council,PCC,Housing Revenue Account,Supervision and Management,"Housing, Neighbourhood and Building Services",Employees,Indirect employee expenses,27/04/2020,6361608,180,VENDOR,RMC EMEA LIMITED,122070
Portsmouth City Council,PCC,Highways and Transport Services,"Airports, Harbours and Toll Facilities",Portsmouth International Port,Employees,Indirect employee expenses,27/04/2020,6361608,60,VENDOR,RMC EMEA LIMITED,122070
Portsmouth City Council,PCC,Adult Social Care,Support with Memory and Cognition Older People (85+),Adult Services,Third Party Payments,Other establishments,09/04/2020,6357326,2263.2,VENDOR,BRAEMAR RCH LIMITED,102015
Portsmouth City Council,PCC,Highways and Transport Services,Traffic Management and Road Safety,Regeneration,Employees,Indirect employee expenses,27/04/2020,6361608,60,VENDOR,RMC EMEA LIMITED,122070
Portsmouth City Council,PCC,Adult Social Care,Support with Memory and Cognition Older People (85+),Adult Services,Third Party Payments,Other establishments,09/04/2020,6357326,2263.2,VENDOR,BRAEMAR RCH LIMITED,102015
Portsmouth City Council,PCC,Children's and Education Services,Other Children and Family Services,Children's Services and Education,Employees,Indirect employee expenses,27/04/2020,6361608,120,VENDOR,RMC EMEA LIMITED,122070
Portsmouth City Council,PCC,Support Service / Transparency Costs Unallocated,Financial Services,Finance & Resources,Employees,Indirect employee expenses,27/04/2020,6361608,120,VENDOR,RMC EMEA LIMITED,122070
Portsmouth City Council,PCC,Support Service / Transparency Costs Unallocated,Personnel,Corporate Services,Employees,Indirect employee expenses,27/04/2020,6361608,180,VENDOR,RMC EMEA LIMITED,122070
Portsmouth City Council,PCC,Support Service / Transparency Costs Unallocated,Personnel,Corporate Services,Employees,Indirect employee expenses,27/04/2020,6361608,144,VENDOR,RMC EMEA LIMITED,122070
Portsmouth City Council,PCC,Adult Social Care,Support with Memory and Cognition Older People (85+),Adult Services,Third Party Payments,Other establishments,09/04/2020,6357326,1969.8,VENDOR,BRAEMAR RCH LIMITED,102015
Portsmouth City Council,PCC,Adult Social Care,Support with Memory and Cognition Older People (85+),Adult Services,Third Party Payments,Other establishments,09/04/2020,6357326,1235.4,VENDOR,BRAEMAR RCH LIMITED,102015
Portsmouth City Council,PCC,Support Service / Transparency Costs Unallocated,Personnel,Corporate Services,Employees,Indirect employee expenses,27/04/2020,6361608,48,VENDOR,RMC EMEA LIMITED,122070
Portsmouth City Council,PCC,Support Service / Transparency Costs Unallocated,Personnel,Corporate Services,Employees,Indirect employee expenses,27/04/2020,6361608,96,VENDOR,RMC EMEA LIMITED,122070
Portsmouth City Council,PCC,Support Service / Transparency Costs Unallocated,Personnel,Corporate Services,Employees,Indirect employee expenses,27/04/2020,6361608,120,VENDOR,RMC EMEA LIMITED,122070
Portsmouth City Council,PCC,Support Service / Transparency Costs Unallocated,Personnel,Corporate Services,Employees,Indirect employee expenses,27/04/2020,6361608,120,VENDOR,RMC EMEA LIMITED,122070
Portsmouth City Council,PCC,Other,Suspense and Capital Schemes,Corporate Services,Employees,Indirect employee expenses,27/04/2020,6361608,347.52,VENDOR,RMC EMEA LIMITED,122070
Portsmouth City Council,PCC,Support Service / Transparency Costs Unallocated,Personnel,Corporate Services,Employees,Indirect employee expenses,27/04/2020,6361608,133.74,VENDOR,RMC EMEA LIMITED,122070
Portsmouth City Council,PCC,Support Service / Transparency Costs Unallocated,Personnel,Corporate Services,Employees,Indirect employee expenses,27/04/2020,6361608,103.77,VENDOR,RMC EMEA LIMITED,122070
Portsmouth City Council,PCC,Adult Social Care,Support with Memory and Cognition Older People (85+),Adult Services,Third Party Payments,Other establishments,09/04/2020,6357326,3366,VENDOR,BRAEMAR RCH LIMITED,102015
Portsmouth City Council,PCC,Children's and Education Services,Other Children and Family Services,Children's Services and Education,Employees,Indirect employee expenses,27/04/2020,6361608,48,VENDOR,RMC EMEA LIMITED,122070
Portsmouth City Council,PCC,Support Service / Transparency Costs Unallocated,Personnel,Corporate Services,Employees,Indirect employee expenses,27/04/2020,6361608,48,VENDOR,RMC EMEA LIMITED,122070
Portsmouth City Council,PCC,Highways and Transport Services,Parking Services,Regeneration,Supplies and Services,"Equipment, furniture and materials",28/04/2020,6361833,948.9,VENDOR,SPANDEX LIMITED,100163
Portsmouth City Council,PCC,Highways and Transport Services,Parking Services,Regeneration,Supplies and Services,"Equipment, furniture and materials",28/04/2020,6361833,237.23,VENDOR,SPANDEX LIMITED,100163
Portsmouth City Council,PCC,Housing Services,Homelessness,"Housing, Neighbourhood and Building Services",Premises-Related Expenditure,Rents,02/04/2020,6356416,1560,SOLETRADER,Classified as 'personal data' (under the Data Protection Act 2018),138874
Portsmouth City Council,PCC,Cultural and Related Services,Recreation and Sport,"Culture, Leisure & Regulatory Services",Supplies and Services,Grants and subscriptions,20/04/2020,6359557,6500,VENDOR,HIGHBURY AREA COMMUNITY ASSOCIATION,104488
Portsmouth City Council,PCC,Costs below Net Cost of Services,Trading,Regeneration,Premises-Related Expenditure,Energy costs,07/04/2020,6357167,551.26,COMPANY,SSE PLC (SCOTTISH AND SOUTHERN ENERGY PLC),100303
Portsmouth City Council,PCC,Highways and Transport Services,"Airports, Harbours and Toll Facilities",Portsmouth International Port,Premises-Related Expenditure,Cleaning and domestic supplies,23/04/2020,6361074,779.43,VENDOR,NVIRO LTD,124507
Portsmouth City Council,PCC,Adult Social Care,Commissioning & service delivery,Adult Services,Supplies and Services,Services,06/04/2020,6356619,1050,VENDOR,Classified as 'personal data' (under the Data Protection Act 2018),143642
Portsmouth City Council,PCC,Adult Social Care,Social Care Activities,Adult Services,Third Party Payments,Other establishments,09/04/2020,6357320,3947.4,VENDOR,BLUEBELL NURSING HOME,100112
Portsmouth City Council,PCC,Adult Social Care,Social Care Activities,Adult Services,Third Party Payments,Other establishments,09/04/2020,6357320,4268.7,VENDOR,BLUEBELL NURSING HOME,100112
Portsmouth City Council,PCC,Adult Social Care,Social Care Activities,Adult Services,Third Party Payments,Other establishments,09/04/2020,6357320,5515.8,VENDOR,BLUEBELL NURSING HOME,100112
Portsmouth City Council,PCC,Adult Social Care,Social Care Activities,Adult Services,Third Party Payments,Other establishments,09/04/2020,6357320,4983,VENDOR,BLUEBELL NURSING HOME,100112
Portsmouth City Council,PCC,Adult Social Care,Social Care Activities,Adult Services,Third Party Payments,Other establishments,29/04/2020,6362103,286.96,VENDOR,CRESCENT COMMUNITY CARE SERVICES LTD,100118
Portsmouth City Council,PCC,Adult Social Care,Social Care Activities,Adult Services,Third Party Payments,Other establishments,29/04/2020,6362103,160.95,VENDOR,CRESCENT COMMUNITY CARE SERVICES LTD,100118
Portsmouth City Council,PCC,Adult Social Care,Social Care Activities,Adult Services,Third Party Payments,Other establishments,29/04/2020,6362103,59.68,VENDOR,CRESCENT COMMUNITY CARE SERVICES LTD,100118
Portsmouth City Council,PCC,Adult Social Care,Social Care Activities,Adult Services,Third Party Payments,Other establishments,29/04/2020,6362103,125.53,VENDOR,CRESCENT COMMUNITY CARE SERVICES LTD,100118
Portsmouth City Council,PCC,Adult Social Care,Social Care Activities,Adult Services,Third Party Payments,Other establishments,29/04/2020,6362103,60.9,VENDOR,CRESCENT COMMUNITY CARE SERVICES LTD,100118
Portsmouth City Council,PCC,Adult Social Care,Social Care Activities,Adult Services,Third Party Payments,Other establishments,29/04/2020,6362103,45.82,VENDOR,CRESCENT COMMUNITY CARE SERVICES LTD,100118
Portsmouth City Council,PCC,Adult Social Care,Social Care Activities,Adult Services,Third Party Payments,Other establishments,29/04/2020,6362103,74.57,VENDOR,CRESCENT COMMUNITY CARE SERVICES LTD,100118
Portsmouth City Council,PCC,Adult Social Care,Social Care Activities,Adult Services,Third Party Payments,Other establishments,29/04/2020,6362103,118.16,VENDOR,CRESCENT COMMUNITY CARE SERVICES LTD,100118
Portsmouth City Council,PCC,Adult Social Care,Social Care Activities,Adult Services,Third Party Payments,Other establishments,29/04/2020,6362103,208.8,VENDOR,CRESCENT COMMUNITY CARE SERVICES LTD,100118
Portsmouth City Council,PCC,Adult Social Care,Social Care Activities,Adult Services,Third Party Payments,Other establishments,29/04/2020,6362103,20.5,VENDOR,CRESCENT COMMUNITY CARE SERVICES LTD,100118
Portsmouth City Council,PCC,Adult Social Care,Social Care Activities,Adult Services,Third Party Payments,Other establishments,29/04/2020,6362103,48.47,VENDOR,CRESCENT COMMUNITY CARE SERVICES LTD,100118
Portsmouth City Council,PCC,Adult Social Care,Social Care Activities,Adult Services,Third Party Payments,Other establishments,29/04/2020,6362103,382.8,VENDOR,CRESCENT COMMUNITY CARE SERVICES LTD,100118
Portsmouth City Council,PCC,Adult Social Care,Social Care Activities,Adult Services,Third Party Payments,Other establishments,29/04/2020,6362103,121.8,VENDOR,CRESCENT COMMUNITY CARE SERVICES LTD,100118
Portsmouth City Council,PCC,Adult Social Care,Social Care Activities,Adult Services,Third Party Payments,Other establishments,29/04/2020,6362103,52.2,VENDOR,CRESCENT COMMUNITY CARE SERVICES LTD,100118
Portsmouth City Council,PCC,Adult Social Care,Social Care Activities,Adult Services,Third Party Payments,Other establishments,29/04/2020,6362103,4.22,VENDOR,CRESCENT COMMUNITY CARE SERVICES LTD,100118
Portsmouth City Council,PCC,Adult Social Care,Social Care Activities,Adult Services,Third Party Payments,Other establishments,29/04/2020,6362103,52.2,VENDOR,CRESCENT COMMUNITY CARE SERVICES LTD,100118
Portsmouth City Council,PCC,Adult Social Care,Social Care Activities,Adult Services,Third Party Payments,Other establishments,29/04/2020,6362103,59.08,VENDOR,CRESCENT COMMUNITY CARE SERVICES LTD,100118
Portsmouth City Council,PCC,Adult Social Care,Social Care Activities,Adult Services,Third Party Payments,Other establishments,29/04/2020,6362103,261,VENDOR,CRESCENT COMMUNITY CARE SERVICES LTD,100118
Portsmouth City Council,PCC,Adult Social Care,Social Care Activities,Adult Services,Third Party Payments,Other establishments,29/04/2020,6362103,26.1,VENDOR,CRESCENT COMMUNITY CARE SERVICES LTD,100118
Portsmouth City Council,PCC,Adult Social Care,Social Care Activities,Adult Services,Third Party Payments,Other establishments,29/04/2020,6362103,60.9,VENDOR,CRESCENT COMMUNITY CARE SERVICES LTD,100118
Portsmouth City Council,PCC,Adult Social Care,Social Care Activities,Adult Services,Third Party Payments,Other establishments,29/04/2020,6362103,17.4,VENDOR,CRESCENT COMMUNITY CARE SERVICES LTD,100118
Portsmouth City Council,PCC,Adult Social Care,Social Care Activities,Adult Services,Third Party Payments,Other establishments,29/04/2020,6362103,8.44,VENDOR,CRESCENT COMMUNITY CARE SERVICES LTD,100118
Portsmouth City Council,PCC,Adult Social Care,Social Care Activities,Adult Services,Third Party Payments,Other establishments,29/04/2020,6362103,95.7,VENDOR,CRESCENT COMMUNITY CARE SERVICES LTD,100118
Portsmouth City Council,PCC,Adult Social Care,Social Care Activities,Adult Services,Third Party Payments,Other establishments,29/04/2020,6362103,2.41,VENDOR,CRESCENT COMMUNITY CARE SERVICES LTD,100118
Portsmouth City Council,PCC,Adult Social Care,Social Care Activities,Adult Services,Third Party Payments,Other establishments,29/04/2020,6362103,14.91,VENDOR,CRESCENT COMMUNITY CARE SERVICES LTD,100118
Portsmouth City Council,PCC,Adult Social Care,Social Care Activities,Adult Services,Third Party Payments,Other establishments,29/04/2020,6362103,26.1,VENDOR,CRESCENT COMMUNITY CARE SERVICES LTD,100118
Portsmouth City Council,PCC,Adult Social Care,Social Care Activities,Adult Services,Third Party Payments,Other establishments,29/04/2020,6362103,109.72,VENDOR,CRESCENT COMMUNITY CARE SERVICES LTD,100118
Portsmouth City Council,PCC,Adult Social Care,Social Care Activities,Adult Services,Third Party Payments,Other establishments,29/04/2020,6362103,208.8,VENDOR,CRESCENT COMMUNITY CARE SERVICES LTD,100118
Portsmouth City Council,PCC,Adult Social Care,Social Care Activities,Adult Services,Third Party Payments,Other establishments,29/04/2020,6362103,67.52,VENDOR,CRESCENT COMMUNITY CARE SERVICES LTD,100118
Portsmouth City Council,PCC,Adult Social Care,Social Care Activities,Adult Services,Third Party Payments,Other establishments,29/04/2020,6362103,104.4,VENDOR,CRESCENT COMMUNITY CARE SERVICES LTD,100118
Portsmouth City Council,PCC,Adult Social Care,Social Care Activities,Adult Services,Third Party Payments,Other establishments,29/04/2020,6362103,139.2,VENDOR,CRESCENT COMMUNITY CARE SERVICES LTD,100118
Portsmouth City Council,PCC,Adult Social Care,Social Care Activities,Adult Services,Third Party Payments,Other establishments,29/04/2020,6362103,87,VENDOR,CRESCENT COMMUNITY CARE SERVICES LTD,100118
Portsmouth City Council,PCC,Adult Social Care,Social Care Activities,Adult Services,Third Party Payments,Other establishments,29/04/2020,6362103,269.7,VENDOR,CRESCENT COMMUNITY CARE SERVICES LTD,100118
Portsmouth City Council,PCC,Adult Social Care,Social Care Activities,Adult Services,Third Party Payments,Other establishments,29/04/2020,6362103,261,VENDOR,CRESCENT COMMUNITY CARE SERVICES LTD,100118
Portsmouth City Council,PCC,Adult Social Care,Social Care Activities,Adult Services,Third Party Payments,Other establishments,29/04/2020,6362103,37.98,VENDOR,CRESCENT COMMUNITY CARE SERVICES LTD,100118
Portsmouth City Council,PCC,Adult Social Care,Social Care Activities,Adult Services,Third Party Payments,Other establishments,29/04/2020,6362103,52.2,VENDOR,CRESCENT COMMUNITY CARE SERVICES LTD,100118
Portsmouth City Council,PCC,Adult Social Care,Social Care Activities,Adult Services,Third Party Payments,Other establishments,29/04/2020,6362103,78.3,VENDOR,CRESCENT COMMUNITY CARE SERVICES LTD,100118
Portsmouth City Council,PCC,Adult Social Care,Mental Health Support Older People (65 - 74),Adult Services,Third Party Payments,Other establishments,29/04/2020,6362103,308.66,VENDOR,CRESCENT COMMUNITY CARE SERVICES LTD,100118
Portsmouth City Council,PCC,Adult Social Care,Mental Health Support Older People (65 - 74),Adult Services,Third Party Payments,Other establishments,29/04/2020,6362103,238.63,VENDOR,CRESCENT COMMUNITY CARE SERVICES LTD,100118
Portsmouth City Council,PCC,Adult Social Care,Mental Health Support Older People (65 - 74),Adult Services,Third Party Payments,Other establishments,29/04/2020,6362103,202.56,VENDOR,CRESCENT COMMUNITY CARE SERVICES LTD,100118
Portsmouth City Council,PCC,Adult Social Care,Mental Health Support Older People (65 - 74),Adult Services,Third Party Payments,Other establishments,29/04/2020,6362103,156.6,VENDOR,CRESCENT COMMUNITY CARE SERVICES LTD,100118
Portsmouth City Council,PCC,Adult Social Care,Mental Health Support Older People (65 - 74),Adult Services,Third Party Payments,Other establishments,29/04/2020,6362103,43.5,VENDOR,CRESCENT COMMUNITY CARE SERVICES LTD,100118
Portsmouth City Council,PCC,Adult Social Care,Mental Health Support Older People (65 - 74),Adult Services,Third Party Payments,Other establishments,29/04/2020,6362103,140.44,VENDOR,CRESCENT COMMUNITY CARE SERVICES LTD,100118
Portsmouth City Council,PCC,Adult Social Care,Mental Health Support Older People (65 - 74),Adult Services,Third Party Payments,Other establishments,29/04/2020,6362103,176.03,VENDOR,CRESCENT COMMUNITY CARE SERVICES LTD,100118
Portsmouth City Council,PCC,Adult Social Care,Mental Health Support Older People (65 - 74),Adult Services,Third Party Payments,Other establishments,29/04/2020,6362103,30.14,VENDOR,CRESCENT COMMUNITY CARE SERVICES LTD,100118
Portsmouth City Council,PCC,Adult Social Care,Mental Health Support Older People (65 - 74),Adult Services,Third Party Payments,Other establishments,29/04/2020,6362103,29.83,VENDOR,CRESCENT COMMUNITY CARE SERVICES LTD,100118
Portsmouth City Council,PCC,Adult Social Care,Social Care Activities,Adult Services,Third Party Payments,Other establishments,29/04/2020,6362103,50.64,VENDOR,CRESCENT COMMUNITY CARE SERVICES LTD,100118
Portsmouth City Council,PCC,Adult Social Care,Social Care Activities,Adult Services,Third Party Payments,Other establishments,29/04/2020,6362103,3231.31,VENDOR,CRESCENT COMMUNITY CARE SERVICES LTD,100118
Portsmouth City Council,PCC,Adult Social Care,Social Care Activities,Adult Services,Third Party Payments,Other establishments,29/04/2020,6362103,2430.72,VENDOR,CRESCENT COMMUNITY CARE SERVICES LTD,100118
Portsmouth City Council,PCC,Adult Social Care,Social Care Activities,Adult Services,Third Party Payments,Other establishments,29/04/2020,6362103,2498.14,VENDOR,CRESCENT COMMUNITY CARE SERVICES LTD,100118
Portsmouth City Council,PCC,Adult Social Care,Social Care Activities,Adult Services,Third Party Payments,Other establishments,29/04/2020,6362103,1879.2,VENDOR,CRESCENT COMMUNITY CARE SERVICES LTD,100118
Portsmouth City Council,PCC,Adult Social Care,Physical Support Adults (18 - 64),Adult Services,Third Party Payments,Other establishments,29/04/2020,6362103,151.92,VENDOR,CRESCENT COMMUNITY CARE SERVICES LTD,100118
Portsmouth City Council,PCC,Adult Social Care,Physical Support Adults (18 - 64),Adult Services,Third Party Payments,Other establishments,29/04/2020,6362103,104.4,VENDOR,CRESCENT COMMUNITY CARE SERVICES LTD,100118
Portsmouth City Council,PCC,Adult Social Care,Physical Support Adults (18 - 64),Adult Services,Third Party Payments,Other establishments,29/04/2020,6362103,66.31,VENDOR,CRESCENT COMMUNITY CARE SERVICES LTD,100118
Portsmouth City Council,PCC,Adult Social Care,Physical Support Adults (18 - 64),Adult Services,Third Party Payments,Other establishments,29/04/2020,6362103,44.74,VENDOR,CRESCENT COMMUNITY CARE SERVICES LTD,100118
Portsmouth City Council,PCC,Adult Social Care,Physical Support Adults (18 - 64),Adult Services,Third Party Payments,Other establishments,29/04/2020,6362103,77.17,VENDOR,CRESCENT COMMUNITY CARE SERVICES LTD,100118
Portsmouth City Council,PCC,Adult Social Care,Physical Support Adults (18 - 64),Adult Services,Third Party Payments,Other establishments,29/04/2020,6362103,59.66,VENDOR,CRESCENT COMMUNITY CARE SERVICES LTD,100118
Portsmouth City Council,PCC,Adult Social Care,Physical Support Adults (18 - 64),Adult Services,Third Party Payments,Other establishments,29/04/2020,6362103,151.92,VENDOR,CRESCENT COMMUNITY CARE SERVICES LTD,100118
Portsmouth City Council,PCC,Adult Social Care,Physical Support Adults (18 - 64),Adult Services,Third Party Payments,Other establishments,29/04/2020,6362103,151.92,VENDOR,CRESCENT COMMUNITY CARE SERVICES LTD,100118
Portsmouth City Council,PCC,Adult Social Care,Physical Support Adults (18 - 64),Adult Services,Third Party Payments,Other establishments,29/04/2020,6362103,208.8,VENDOR,CRESCENT COMMUNITY CARE SERVICES LTD,100118
Portsmouth City Council,PCC,Adult Social Care,Physical Support Adults (18 - 64),Adult Services,Third Party Payments,Other establishments,29/04/2020,6362103,208.8,VENDOR,CRESCENT COMMUNITY CARE SERVICES LTD,100118
Portsmouth City Council,PCC,Adult Social Care,Physical Support Adults (18 - 64),Adult Services,Third Party Payments,Other establishments,29/04/2020,6362103,607.68,VENDOR,CRESCENT COMMUNITY CARE SERVICES LTD,100118
Portsmouth City Council,PCC,Adult Social Care,Physical Support Adults (18 - 64),Adult Services,Third Party Payments,Other establishments,29/04/2020,6362103,607.68,VENDOR,CRESCENT COMMUNITY CARE SERVICES LTD,100118
Portsmouth City Council,PCC,Adult Social Care,Physical Support Adults (18 - 64),Adult Services,Third Party Payments,Other establishments,29/04/2020,6362103,154.33,VENDOR,CRESCENT COMMUNITY CARE SERVICES LTD,100118
Portsmouth City Council,PCC,Adult Social Care,Physical Support Adults (18 - 64),Adult Services,Third Party Payments,Other establishments,29/04/2020,6362103,469.8,VENDOR,CRESCENT COMMUNITY CARE SERVICES LTD,100118
Portsmouth City Council,PCC,Adult Social Care,Physical Support Adults (18 - 64),Adult Services,Third Party Payments,Other establishments,29/04/2020,6362103,469.8,VENDOR,CRESCENT COMMUNITY CARE SERVICES LTD,100118
Portsmouth City Council,PCC,Adult Social Care,Physical Support Adults (18 - 64),Adult Services,Third Party Payments,Other establishments,29/04/2020,6362103,119.31,VENDOR,CRESCENT COMMUNITY CARE SERVICES LTD,100118
Portsmouth City Council,PCC,Adult Social Care,Physical Support Adults (18 - 64),Adult Services,Third Party Payments,Other establishments,29/04/2020,6362103,704.14,VENDOR,CRESCENT COMMUNITY CARE SERVICES LTD,100118
Portsmouth City Council,PCC,Adult Social Care,Physical Support Adults (18 - 64),Adult Services,Third Party Payments,Other establishments,29/04/2020,6362103,877.76,VENDOR,CRESCENT COMMUNITY CARE SERVICES LTD,100118
Portsmouth City Council,PCC,Adult Social Care,Physical Support Adults (18 - 64),Adult Services,Third Party Payments,Other establishments,29/04/2020,6362103,436.47,VENDOR,CRESCENT COMMUNITY CARE SERVICES LTD,100118
Portsmouth City Council,PCC,Adult Social Care,Physical Support Adults (18 - 64),Adult Services,Third Party Payments,Other establishments,29/04/2020,6362103,544.37,VENDOR,CRESCENT COMMUNITY CARE SERVICES LTD,100118
Portsmouth City Council,PCC,Adult Social Care,Physical Support Adults (18 - 64),Adult Services,Third Party Payments,Other establishments,29/04/2020,6362103,678.6,VENDOR,CRESCENT COMMUNITY CARE SERVICES LTD,100118
Portsmouth City Council,PCC,Adult Social Care,Physical Support Adults (18 - 64),Adult Services,Third Party Payments,Other establishments,29/04/2020,6362103,298.29,VENDOR,CRESCENT COMMUNITY CARE SERVICES LTD,100118
Portsmouth City Council,PCC,Adult Social Care,Physical Support Adults (18 - 64),Adult Services,Third Party Payments,Other establishments,29/04/2020,6362103,478.67,VENDOR,CRESCENT COMMUNITY CARE SERVICES LTD,100118
Portsmouth City Council,PCC,Adult Social Care,Physical Support Adults (18 - 64),Adult Services,Third Party Payments,Other establishments,29/04/2020,6362103,298.29,VENDOR,CRESCENT COMMUNITY CARE SERVICES LTD,100118
Portsmouth City Council,PCC,Adult Social Care,Physical Support Adults (18 - 64),Adult Services,Third Party Payments,Other establishments,29/04/2020,6362103,231.5,VENDOR,CRESCENT COMMUNITY CARE SERVICES LTD,100118
Portsmouth City Council,PCC,Adult Social Care,Physical Support Adults (18 - 64),Adult Services,Third Party Payments,Other establishments,29/04/2020,6362103,178.97,VENDOR,CRESCENT COMMUNITY CARE SERVICES LTD,100118
Portsmouth City Council,PCC,Adult Social Care,Physical Support Adults (18 - 64),Adult Services,Third Party Payments,Other establishments,29/04/2020,6362103,202.56,VENDOR,CRESCENT COMMUNITY CARE SERVICES LTD,100118
Portsmouth City Council,PCC,Adult Social Care,Physical Support Adults (18 - 64),Adult Services,Third Party Payments,Other establishments,29/04/2020,6362103,156.6,VENDOR,CRESCENT COMMUNITY CARE SERVICES LTD,100118
Portsmouth City Council,PCC,Adult Social Care,Physical Support Adults (18 - 64),Adult Services,Third Party Payments,Other establishments,29/04/2020,6362103,350.26,VENDOR,CRESCENT COMMUNITY CARE SERVICES LTD,100118
Portsmouth City Council,PCC,Adult Social Care,Physical Support Adults (18 - 64),Adult Services,Third Party Payments,Other establishments,29/04/2020,6362103,365.4,VENDOR,CRESCENT COMMUNITY CARE SERVICES LTD,100118
Portsmouth City Council,PCC,Adult Social Care,Physical Support Older People (85+),Adult Services,Third Party Payments,Other establishments,29/04/2020,6362103,270.08,VENDOR,CRESCENT COMMUNITY CARE SERVICES LTD,100118
Portsmouth City Council,PCC,Adult Social Care,Physical Support Older People (85+),Adult Services,Third Party Payments,Other establishments,29/04/2020,6362103,208.8,VENDOR,CRESCENT COMMUNITY CARE SERVICES LTD,100118
Portsmouth City Council,PCC,Adult Social Care,Physical Support Older People (85+),Adult Services,Third Party Payments,Other establishments,29/04/2020,6362103,472.64,VENDOR,CRESCENT COMMUNITY CARE SERVICES LTD,100118
Portsmouth City Council,PCC,Adult Social Care,Physical Support Older People (85+),Adult Services,Third Party Payments,Other establishments,29/04/2020,6362103,57.87,VENDOR,CRESCENT COMMUNITY CARE SERVICES LTD,100118
Portsmouth City Council,PCC,Adult Social Care,Physical Support Older People (85+),Adult Services,Third Party Payments,Other establishments,29/04/2020,6362103,365.4,VENDOR,CRESCENT COMMUNITY CARE SERVICES LTD,100118
Portsmouth City Council,PCC,Adult Social Care,Physical Support Older People (85+),Adult Services,Third Party Payments,Other establishments,29/04/2020,6362103,44.74,VENDOR,CRESCENT COMMUNITY CARE SERVICES LTD,100118
Portsmouth City Council,PCC,Adult Social Care,Physical Support Older People (85+),Adult Services,Third Party Payments,Other establishments,29/04/2020,6362103,279.73,VENDOR,CRESCENT COMMUNITY CARE SERVICES LTD,100118
Portsmouth City Council,PCC,Adult Social Care,Physical Support Older People (85+),Adult Services,Third Party Payments,Other establishments,29/04/2020,6362103,299.02,VENDOR,CRESCENT COMMUNITY CARE SERVICES LTD,100118
Portsmouth City Council,PCC,Adult Social Care,Physical Support Older People (85+),Adult Services,Third Party Payments,Other establishments,29/04/2020,6362103,216.26,VENDOR,CRESCENT COMMUNITY CARE SERVICES LTD,100118
Portsmouth City Council,PCC,Adult Social Care,Physical Support Older People (85+),Adult Services,Third Party Payments,Other establishments,29/04/2020,6362103,231.17,VENDOR,CRESCENT COMMUNITY CARE SERVICES LTD,100118
Portsmouth City Council,PCC,Adult Social Care,Physical Support Older People (85+),Adult Services,Third Party Payments,Other establishments,29/04/2020,6362103,1857.6,VENDOR,CRESCENT COMMUNITY CARE SERVICES LTD,100118
Portsmouth City Council,PCC,Adult Social Care,Physical Support Older People (85+),Adult Services,Third Party Payments,Other establishments,29/04/2020,6362103,619.2,VENDOR,CRESCENT COMMUNITY CARE SERVICES LTD,100118
Portsmouth City Council,PCC,Adult Social Care,Physical Support Older People (85+),Adult Services,Third Party Payments,Other establishments,29/04/2020,6362103,135.04,VENDOR,CRESCENT COMMUNITY CARE SERVICES LTD,100118
Portsmouth City Council,PCC,Adult Social Care,Physical Support Older People (85+),Adult Services,Third Party Payments,Other establishments,29/04/2020,6362103,104.4,VENDOR,CRESCENT COMMUNITY CARE SERVICES LTD,100118
Portsmouth City Council,PCC,Adult Social Care,Physical Support Older People (85+),Adult Services,Third Party Payments,Other establishments,29/04/2020,6362103,62.7,VENDOR,CRESCENT COMMUNITY CARE SERVICES LTD,100118
Portsmouth City Council,PCC,Adult Social Care,Physical Support Older People (85+),Adult Services,Third Party Payments,Other establishments,29/04/2020,6362103,453.02,VENDOR,CRESCENT COMMUNITY CARE SERVICES LTD,100118
Portsmouth City Council,PCC,Adult Social Care,Physical Support Older People (85+),Adult Services,Third Party Payments,Other establishments,29/04/2020,6362103,135.04,VENDOR,CRESCENT COMMUNITY CARE SERVICES LTD,100118
Portsmouth City Council,PCC,Adult Social Care,Physical Support Older People (85+),Adult Services,Third Party Payments,Other establishments,29/04/2020,6362103,77.17,VENDOR,CRESCENT COMMUNITY CARE SERVICES LTD,100118
Portsmouth City Council,PCC,Adult Social Care,Physical Support Older People (85+),Adult Services,Third Party Payments,Other establishments,29/04/2020,6362103,104.4,VENDOR,CRESCENT COMMUNITY CARE SERVICES LTD,100118
Portsmouth City Council,PCC,Adult Social Care,Physical Support Older People (85+),Adult Services,Third Party Payments,Other establishments,29/04/2020,6362103,59.66,VENDOR,CRESCENT COMMUNITY CARE SERVICES LTD,100118
Portsmouth City Council,PCC,Adult Social Care,Physical Support Older People (85+),Adult Services,Third Party Payments,Other establishments,29/04/2020,6362103,202.56,VENDOR,CRESCENT COMMUNITY CARE SERVICES LTD,100118
Portsmouth City Council,PCC,Adult Social Care,Physical Support Older People (85+),Adult Services,Third Party Payments,Other establishments,29/04/2020,6362103,156.6,VENDOR,CRESCENT COMMUNITY CARE SERVICES LTD,100118
Portsmouth City Council,PCC,Adult Social Care,Physical Support Older People (85+),Adult Services,Third Party Payments,Other establishments,29/04/2020,6362103,21.7,VENDOR,CRESCENT COMMUNITY CARE SERVICES LTD,100118
Portsmouth City Council,PCC,Adult Social Care,Physical Support Older People (85+),Adult Services,Third Party Payments,Other establishments,29/04/2020,6362103,29.83,VENDOR,CRESCENT COMMUNITY CARE SERVICES LTD,100118
Portsmouth City Council,PCC,Adult Social Care,Physical Support Older People (85+),Adult Services,Third Party Payments,Other establishments,29/04/2020,6362103,135.04,VENDOR,CRESCENT COMMUNITY CARE SERVICES LTD,100118
Portsmouth City Council,PCC,Adult Social Care,Physical Support Older People (85+),Adult Services,Third Party Payments,Other establishments,29/04/2020,6362103,742.72,VENDOR,CRESCENT COMMUNITY CARE SERVICES LTD,100118
Portsmouth City Council,PCC,Adult Social Care,Physical Support Older People (85+),Adult Services,Third Party Payments,Other establishments,29/04/2020,6362103,104.4,VENDOR,CRESCENT COMMUNITY CARE SERVICES LTD,100118
Portsmouth City Council,PCC,Adult Social Care,Physical Support Older People (85+),Adult Services,Third Party Payments,Other establishments,29/04/2020,6362103,574.2,VENDOR,CRESCENT COMMUNITY CARE SERVICES LTD,100118
Portsmouth City Council,PCC,Adult Social Care,Physical Support Older People (85+),Adult Services,Third Party Payments,Other establishments,29/04/2020,6362103,135.04,VENDOR,CRESCENT COMMUNITY CARE SERVICES LTD,100118
Portsmouth City Council,PCC,Adult Social Care,Physical Support Older People (85+),Adult Services,Third Party Payments,Other establishments,29/04/2020,6362103,104.4,VENDOR,CRESCENT COMMUNITY CARE SERVICES LTD,100118
Portsmouth City Council,PCC,Adult Social Care,Physical Support Older People (85+),Adult Services,Third Party Payments,Other establishments,29/04/2020,6362103,270.08,VENDOR,CRESCENT COMMUNITY CARE SERVICES LTD,100118
Portsmouth City Council,PCC,Adult Social Care,Physical Support Older People (85+),Adult Services,Third Party Payments,Other establishments,29/04/2020,6362103,208.8,VENDOR,CRESCENT COMMUNITY CARE SERVICES LTD,100118
Portsmouth City Council,PCC,Adult Social Care,Physical Support Older People (85+),Adult Services,Third Party Payments,Other establishments,29/04/2020,6362103,231.5,VENDOR,CRESCENT COMMUNITY CARE SERVICES LTD,100118
Portsmouth City Council,PCC,Adult Social Care,Physical Support Older People (85+),Adult Services,Third Party Payments,Other establishments,29/04/2020,6362103,178.97,VENDOR,CRESCENT COMMUNITY CARE SERVICES LTD,100118
Portsmouth City Council,PCC,Adult Social Care,Physical Support Older People (85+),Adult Services,Third Party Payments,Other establishments,29/04/2020,6362103,405.12,VENDOR,CRESCENT COMMUNITY CARE SERVICES LTD,100118
Portsmouth City Council,PCC,Adult Social Care,Physical Support Older People (85+),Adult Services,Third Party Payments,Other establishments,29/04/2020,6362103,77.17,VENDOR,CRESCENT COMMUNITY CARE SERVICES LTD,100118
Portsmouth City Council,PCC,Adult Social Care,Physical Support Older People (85+),Adult Services,Third Party Payments,Other establishments,29/04/2020,6362103,261,VENDOR,CRESCENT COMMUNITY CARE SERVICES LTD,100118
Portsmouth City Council,PCC,Adult Social Care,Physical Support Older People (85+),Adult Services,Third Party Payments,Other establishments,29/04/2020,6362103,59.66,VENDOR,CRESCENT COMMUNITY CARE SERVICES LTD,100118
Portsmouth City Council,PCC,Adult Social Care,Physical Support Older People (85+),Adult Services,Third Party Payments,Other establishments,29/04/2020,6362103,202.56,VENDOR,CRESCENT COMMUNITY CARE SERVICES LTD,100118
Portsmouth City Council,PCC,Adult Social Care,Physical Support Older People (85+),Adult Services,Third Party Payments,Other establishments,29/04/2020,6362103,169.65,VENDOR,CRESCENT COMMUNITY CARE SERVICES LTD,100118
Portsmouth City Council,PCC,Adult Social Care,Physical Support Older People (85+),Adult Services,Third Party Payments,Other establishments,29/04/2020,6362103,231.5,VENDOR,CRESCENT COMMUNITY CARE SERVICES LTD,100118
Portsmouth City Council,PCC,Adult Social Care,Physical Support Older People (85+),Adult Services,Third Party Payments,Other establishments,29/04/2020,6362103,178.97,VENDOR,CRESCENT COMMUNITY CARE SERVICES LTD,100118
Portsmouth City Council,PCC,Adult Social Care,Physical Support Older People (85+),Adult Services,Third Party Payments,Other establishments,29/04/2020,6362103,8.44,VENDOR,CRESCENT COMMUNITY CARE SERVICES LTD,100118
Portsmouth City Council,PCC,Adult Social Care,Physical Support Older People (85+),Adult Services,Third Party Payments,Other establishments,29/04/2020,6362103,329.16,VENDOR,CRESCENT COMMUNITY CARE SERVICES LTD,100118
Portsmouth City Council,PCC,Adult Social Care,Physical Support Older People (85+),Adult Services,Third Party Payments,Other establishments,29/04/2020,6362103,252.3,VENDOR,CRESCENT COMMUNITY CARE SERVICES LTD,100118
Portsmouth City Council,PCC,Adult Social Care,Physical Support Older People (85+),Adult Services,Third Party Payments,Other establishments,29/04/2020,6362103,57.87,VENDOR,CRESCENT COMMUNITY CARE SERVICES LTD,100118
Portsmouth City Council,PCC,Adult Social Care,Physical Support Older People (85+),Adult Services,Third Party Payments,Other establishments,29/04/2020,6362103,57.87,VENDOR,CRESCENT COMMUNITY CARE SERVICES LTD,100118
Portsmouth City Council,PCC,Adult Social Care,Physical Support Older People (85+),Adult Services,Third Party Payments,Other establishments,29/04/2020,6362103,44.74,VENDOR,CRESCENT COMMUNITY CARE SERVICES LTD,100118
Portsmouth City Council,PCC,Adult Social Care,Physical Support Older People (85+),Adult Services,Third Party Payments,Other establishments,29/04/2020,6362103,44.74,VENDOR,CRESCENT COMMUNITY CARE SERVICES LTD,100118
Portsmouth City Council,PCC,Adult Social Care,Physical Support Older People (85+),Adult Services,Third Party Payments,Other establishments,29/04/2020,6362103,86.81,VENDOR,CRESCENT COMMUNITY CARE SERVICES LTD,100118
Portsmouth City Council,PCC,Adult Social Care,Physical Support Older People (85+),Adult Services,Third Party Payments,Other establishments,29/04/2020,6362103,119.31,VENDOR,CRESCENT COMMUNITY CARE SERVICES LTD,100118
Portsmouth City Council,PCC,Adult Social Care,Physical Support Older People (85+),Adult Services,Third Party Payments,Other establishments,29/04/2020,6362103,482.29,VENDOR,CRESCENT COMMUNITY CARE SERVICES LTD,100118
Portsmouth City Council,PCC,Adult Social Care,Physical Support Older People (85+),Adult Services,Third Party Payments,Other establishments,29/04/2020,6362103,77.17,VENDOR,CRESCENT COMMUNITY CARE SERVICES LTD,100118
Portsmouth City Council,PCC,Adult Social Care,Physical Support Older People (85+),Adult Services,Third Party Payments,Other establishments,29/04/2020,6362103,372.86,VENDOR,CRESCENT COMMUNITY CARE SERVICES LTD,100118
Portsmouth City Council,PCC,Adult Social Care,Physical Support Older People (85+),Adult Services,Third Party Payments,Other establishments,29/04/2020,6362103,59.66,VENDOR,CRESCENT COMMUNITY CARE SERVICES LTD,100118
Portsmouth City Council,PCC,Adult Social Care,Physical Support Older People (85+),Adult Services,Third Party Payments,Other establishments,29/04/2020,6362103,356.89,VENDOR,CRESCENT COMMUNITY CARE SERVICES LTD,100118
Portsmouth City Council,PCC,Adult Social Care,Physical Support Older People (85+),Adult Services,Third Party Payments,Other establishments,29/04/2020,6362103,275.91,VENDOR,CRESCENT COMMUNITY CARE SERVICES LTD,100118
Portsmouth City Council,PCC,Adult Social Care,Physical Support Older People (85+),Adult Services,Third Party Payments,Other establishments,29/04/2020,6362103,244.76,VENDOR,CRESCENT COMMUNITY CARE SERVICES LTD,100118
Portsmouth City Council,PCC,Adult Social Care,Physical Support Older People (85+),Adult Services,Third Party Payments,Other establishments,29/04/2020,6362103,208.8,VENDOR,CRESCENT COMMUNITY CARE SERVICES LTD,100118
Portsmouth City Council,PCC,Adult Social Care,Physical Support Older People (85+),Adult Services,Third Party Payments,Other establishments,29/04/2020,6362103,557.04,VENDOR,CRESCENT COMMUNITY CARE SERVICES LTD,100118
Portsmouth City Council,PCC,Adult Social Care,Physical Support Older People (85+),Adult Services,Third Party Payments,Other establishments,29/04/2020,6362103,557.04,VENDOR,CRESCENT COMMUNITY CARE SERVICES LTD,100118
Portsmouth City Council,PCC,Adult Social Care,Physical Support Older People (85+),Adult Services,Third Party Payments,Other establishments,29/04/2020,6362103,443.7,VENDOR,CRESCENT COMMUNITY CARE SERVICES LTD,100118
Portsmouth City Council,PCC,Adult Social Care,Physical Support Older People (85+),Adult Services,Third Party Payments,Other establishments,29/04/2020,6362103,443.7,VENDOR,CRESCENT COMMUNITY CARE SERVICES LTD,100118
Portsmouth City Council,PCC,Adult Social Care,Physical Support Older People (85+),Adult Services,Third Party Payments,Other establishments,29/04/2020,6362103,8.44,VENDOR,CRESCENT COMMUNITY CARE SERVICES LTD,100118
Portsmouth City Council,PCC,Adult Social Care,Physical Support Older People (85+),Adult Services,Third Party Payments,Other establishments,29/04/2020,6362103,132.03,VENDOR,CRESCENT COMMUNITY CARE SERVICES LTD,100118
Portsmouth City Council,PCC,Adult Social Care,Physical Support Older People (85+),Adult Services,Third Party Payments,Other establishments,29/04/2020,6362103,111.86,VENDOR,CRESCENT COMMUNITY CARE SERVICES LTD,100118
Portsmouth City Council,PCC,Adult Social Care,Physical Support Older People (85+),Adult Services,Third Party Payments,Other establishments,29/04/2020,6362103,708.96,VENDOR,CRESCENT COMMUNITY CARE SERVICES LTD,100118
Portsmouth City Council,PCC,Adult Social Care,Physical Support Older People (85+),Adult Services,Third Party Payments,Other establishments,29/04/2020,6362103,708.96,VENDOR,CRESCENT COMMUNITY CARE SERVICES LTD,100118
Portsmouth City Council,PCC,Adult Social Care,Physical Support Older People (85+),Adult Services,Third Party Payments,Other establishments,29/04/2020,6362103,540.16,VENDOR,CRESCENT COMMUNITY CARE SERVICES LTD,100118
Portsmouth City Council,PCC,Adult Social Care,Physical Support Older People (85+),Adult Services,Third Party Payments,Other establishments,29/04/2020,6362103,417.6,VENDOR,CRESCENT COMMUNITY CARE SERVICES LTD,100118
Portsmouth City Council,PCC,Adult Social Care,Physical Support Older People (85+),Adult Services,Third Party Payments,Other establishments,29/04/2020,6362103,202.56,VENDOR,CRESCENT COMMUNITY CARE SERVICES LTD,100118
Portsmouth City Council,PCC,Adult Social Care,Physical Support Older People (85+),Adult Services,Third Party Payments,Other establishments,29/04/2020,6362103,156.6,VENDOR,CRESCENT COMMUNITY CARE SERVICES LTD,100118
Portsmouth City Council,PCC,Adult Social Care,Physical Support Older People (85+),Adult Services,Third Party Payments,Other establishments,29/04/2020,6362103,396.68,VENDOR,CRESCENT COMMUNITY CARE SERVICES LTD,100118
Portsmouth City Council,PCC,Adult Social Care,Physical Support Older People (85+),Adult Services,Third Party Payments,Other establishments,29/04/2020,6362103,313.2,VENDOR,CRESCENT COMMUNITY CARE SERVICES LTD,100118
Portsmouth City Council,PCC,Adult Social Care,Physical Support Older People (85+),Adult Services,Third Party Payments,Other establishments,29/04/2020,6362103,194.12,VENDOR,CRESCENT COMMUNITY CARE SERVICES LTD,100118
Portsmouth City Council,PCC,Adult Social Care,Physical Support Older People (85+),Adult Services,Third Party Payments,Other establishments,29/04/2020,6362103,104.4,VENDOR,CRESCENT COMMUNITY CARE SERVICES LTD,100118
Portsmouth City Council,PCC,Adult Social Care,Physical Support Older People (85+),Adult Services,Third Party Payments,Other establishments,29/04/2020,6362103,42.2,VENDOR,CRESCENT COMMUNITY CARE SERVICES LTD,100118
Portsmouth City Council,PCC,Adult Social Care,Physical Support Older People (85+),Adult Services,Third Party Payments,Other establishments,29/04/2020,6362103,32.55,VENDOR,CRESCENT COMMUNITY CARE SERVICES LTD,100118
Portsmouth City Council,PCC,Adult Social Care,Physical Support Older People (85+),Adult Services,Third Party Payments,Other establishments,29/04/2020,6362103,32.55,VENDOR,CRESCENT COMMUNITY CARE SERVICES LTD,100118
Portsmouth City Council,PCC,Adult Social Care,Physical Support Older People (85+),Adult Services,Third Party Payments,Other establishments,29/04/2020,6362103,44.74,VENDOR,CRESCENT COMMUNITY CARE SERVICES LTD,100118
Portsmouth City Council,PCC,Adult Social Care,Physical Support Older People (85+),Adult Services,Third Party Payments,Other establishments,29/04/2020,6362103,44.74,VENDOR,CRESCENT COMMUNITY CARE SERVICES LTD,100118
Portsmouth City Council,PCC,Adult Social Care,Physical Support Older People (85+),Adult Services,Third Party Payments,Other establishments,29/04/2020,6362103,8.44,VENDOR,CRESCENT COMMUNITY CARE SERVICES LTD,100118
Portsmouth City Council,PCC,Adult Social Care,Physical Support Older People (85+),Adult Services,Third Party Payments,Other establishments,29/04/2020,6362103,607.68,VENDOR,CRESCENT COMMUNITY CARE SERVICES LTD,100118
Portsmouth City Council,PCC,Adult Social Care,Physical Support Older People (85+),Adult Services,Third Party Payments,Other establishments,29/04/2020,6362103,607.68,VENDOR,CRESCENT COMMUNITY CARE SERVICES LTD,100118
Portsmouth City Council,PCC,Adult Social Care,Physical Support Older People (85+),Adult Services,Third Party Payments,Other establishments,29/04/2020,6362103,469.8,VENDOR,CRESCENT COMMUNITY CARE SERVICES LTD,100118
Portsmouth City Council,PCC,Adult Social Care,Physical Support Older People (85+),Adult Services,Third Party Payments,Other establishments,29/04/2020,6362103,469.8,VENDOR,CRESCENT COMMUNITY CARE SERVICES LTD,100118
Portsmouth City Council,PCC,Adult Social Care,Physical Support Older People (85+),Adult Services,Third Party Payments,Other establishments,29/04/2020,6362103,540.16,VENDOR,CRESCENT COMMUNITY CARE SERVICES LTD,100118
Portsmouth City Council,PCC,Adult Social Care,Physical Support Older People (85+),Adult Services,Third Party Payments,Other establishments,29/04/2020,6362103,417.6,VENDOR,CRESCENT COMMUNITY CARE SERVICES LTD,100118
Portsmouth City Council,PCC,Adult Social Care,Physical Support Older People (85+),Adult Services,Third Party Payments,Other establishments,29/04/2020,6362103,472.64,VENDOR,CRESCENT COMMUNITY CARE SERVICES LTD,100118
Portsmouth City Council,PCC,Adult Social Care,Physical Support Older People (85+),Adult Services,Third Party Payments,Other establishments,29/04/2020,6362103,365.4,VENDOR,CRESCENT COMMUNITY CARE SERVICES LTD,100118
Portsmouth City Council,PCC,Adult Social Care,Physical Support Older People (85+),Adult Services,Third Party Payments,Other establishments,29/04/2020,6362103,96.46,VENDOR,CRESCENT COMMUNITY CARE SERVICES LTD,100118
Portsmouth City Council,PCC,Adult Social Care,Physical Support Older People (85+),Adult Services,Third Party Payments,Other establishments,29/04/2020,6362103,74.57,VENDOR,CRESCENT COMMUNITY CARE SERVICES LTD,100118
Portsmouth City Council,PCC,Adult Social Care,Physical Support Older People (85+),Adult Services,Third Party Payments,Other establishments,29/04/2020,6362103,214.62,VENDOR,CRESCENT COMMUNITY CARE SERVICES LTD,100118
Portsmouth City Council,PCC,Adult Social Care,Physical Support Older People (85+),Adult Services,Third Party Payments,Other establishments,29/04/2020,6362103,178.97,VENDOR,CRESCENT COMMUNITY CARE SERVICES LTD,100118
Portsmouth City Council,PCC,Adult Social Care,Physical Support Older People (85+),Adult Services,Third Party Payments,Other establishments,29/04/2020,6362103,177.24,VENDOR,CRESCENT COMMUNITY CARE SERVICES LTD,100118
Portsmouth City Council,PCC,Adult Social Care,Physical Support Older People (85+),Adult Services,Third Party Payments,Other establishments,29/04/2020,6362103,156.6,VENDOR,CRESCENT COMMUNITY CARE SERVICES LTD,100118
Portsmouth City Council,PCC,Adult Social Care,Physical Support Older People (85+),Adult Services,Third Party Payments,Other establishments,29/04/2020,6362103,347.25,VENDOR,CRESCENT COMMUNITY CARE SERVICES LTD,100118
Portsmouth City Council,PCC,Adult Social Care,Physical Support Older People (85+),Adult Services,Third Party Payments,Other establishments,29/04/2020,6362103,268.46,VENDOR,CRESCENT COMMUNITY CARE SERVICES LTD,100118
Portsmouth City Council,PCC,Adult Social Care,Physical Support Older People (85+),Adult Services,Third Party Payments,Other establishments,29/04/2020,6362103,8.44,VENDOR,CRESCENT COMMUNITY CARE SERVICES LTD,100118
Portsmouth City Council,PCC,Adult Social Care,Physical Support Older People (85+),Adult Services,Third Party Payments,Other establishments,29/04/2020,6362103,270.08,VENDOR,CRESCENT COMMUNITY CARE SERVICES LTD,100118
Portsmouth City Council,PCC,Adult Social Care,Physical Support Older People (85+),Adult Services,Third Party Payments,Other establishments,29/04/2020,6362103,208.8,VENDOR,CRESCENT COMMUNITY CARE SERVICES LTD,100118
Portsmouth City Council,PCC,Adult Social Care,Physical Support Older People (85+),Adult Services,Third Party Payments,Other establishments,29/04/2020,6362103,579.95,VENDOR,CRESCENT COMMUNITY CARE SERVICES LTD,100118
Portsmouth City Council,PCC,Adult Social Care,Physical Support Older People (85+),Adult Services,Third Party Payments,Other establishments,29/04/2020,6362103,489.69,VENDOR,CRESCENT COMMUNITY CARE SERVICES LTD,100118
Portsmouth City Council,PCC,Adult Social Care,Physical Support Older People (85+),Adult Services,Third Party Payments,Other establishments,29/04/2020,6362103,75.96,VENDOR,CRESCENT COMMUNITY CARE SERVICES LTD,100118
Portsmouth City Council,PCC,Adult Social Care,Physical Support Older People (85+),Adult Services,Third Party Payments,Other establishments,29/04/2020,6362103,104.4,VENDOR,CRESCENT COMMUNITY CARE SERVICES LTD,100118
Portsmouth City Council,PCC,Adult Social Care,Physical Support Older People (85+),Adult Services,Third Party Payments,Other establishments,29/04/2020,6362103,135.04,VENDOR,CRESCENT COMMUNITY CARE SERVICES LTD,100118
Portsmouth City Council,PCC,Adult Social Care,Physical Support Older People (85+),Adult Services,Third Party Payments,Other establishments,29/04/2020,6362103,104.4,VENDOR,CRESCENT COMMUNITY CARE SERVICES LTD,100118
Portsmouth City Council,PCC,Adult Social Care,Physical Support Older People (85+),Adult Services,Third Party Payments,Other establishments,29/04/2020,6362103,279.73,VENDOR,CRESCENT COMMUNITY CARE SERVICES LTD,100118
Portsmouth City Council,PCC,Adult Social Care,Physical Support Older People (85+),Adult Services,Third Party Payments,Other establishments,29/04/2020,6362103,216.26,VENDOR,CRESCENT COMMUNITY CARE SERVICES LTD,100118
Portsmouth City Council,PCC,Adult Social Care,Physical Support Older People (85+),Adult Services,Third Party Payments,Other establishments,29/04/2020,6362103,74.75,VENDOR,CRESCENT COMMUNITY CARE SERVICES LTD,100118
Portsmouth City Council,PCC,Adult Social Care,Physical Support Older People (85+),Adult Services,Third Party Payments,Other establishments,29/04/2020,6362103,53.44,VENDOR,CRESCENT COMMUNITY CARE SERVICES LTD,100118
Portsmouth City Council,PCC,Adult Social Care,Physical Support Older People (85+),Adult Services,Third Party Payments,Other establishments,29/04/2020,6362103,31.35,VENDOR,CRESCENT COMMUNITY CARE SERVICES LTD,100118
Portsmouth City Council,PCC,Adult Social Care,Physical Support Older People (85+),Adult Services,Third Party Payments,Other establishments,29/04/2020,6362103,98.19,VENDOR,CRESCENT COMMUNITY CARE SERVICES LTD,100118
Portsmouth City Council,PCC,Adult Social Care,Physical Support Older People (85+),Adult Services,Third Party Payments,Other establishments,29/04/2020,6362103,511.22,VENDOR,CRESCENT COMMUNITY CARE SERVICES LTD,100118
Portsmouth City Council,PCC,Adult Social Care,Physical Support Older People (85+),Adult Services,Third Party Payments,Other establishments,29/04/2020,6362103,395.23,VENDOR,CRESCENT COMMUNITY CARE SERVICES LTD,100118
Portsmouth City Council,PCC,Adult Social Care,Physical Support Older People (85+),Adult Services,Third Party Payments,Other establishments,29/04/2020,6362103,96.46,VENDOR,CRESCENT COMMUNITY CARE SERVICES LTD,100118
Portsmouth City Council,PCC,Adult Social Care,Physical Support Older People (85+),Adult Services,Third Party Payments,Other establishments,29/04/2020,6362103,74.57,VENDOR,CRESCENT COMMUNITY CARE SERVICES LTD,100118
Portsmouth City Council,PCC,Adult Social Care,Physical Support Older People (85+),Adult Services,Third Party Payments,Other establishments,29/04/2020,6362103,202.56,VENDOR,CRESCENT COMMUNITY CARE SERVICES LTD,100118
Portsmouth City Council,PCC,Adult Social Care,Physical Support Older People (85+),Adult Services,Third Party Payments,Other establishments,29/04/2020,6362103,156.6,VENDOR,CRESCENT COMMUNITY CARE SERVICES LTD,100118
Portsmouth City Council,PCC,Adult Social Care,Physical Support Older People (85+),Adult Services,Third Party Payments,Other establishments,29/04/2020,6362103,385.83,VENDOR,CRESCENT COMMUNITY CARE SERVICES LTD,100118
Portsmouth City Council,PCC,Adult Social Care,Physical Support Older People (85+),Adult Services,Third Party Payments,Other establishments,29/04/2020,6362103,298.29,VENDOR,CRESCENT COMMUNITY CARE SERVICES LTD,100118
Portsmouth City Council,PCC,Adult Social Care,Physical Support Older People (85+),Adult Services,Third Party Payments,Other establishments,29/04/2020,6362103,185.68,VENDOR,CRESCENT COMMUNITY CARE SERVICES LTD,100118
Portsmouth City Council,PCC,Adult Social Care,Physical Support Older People (85+),Adult Services,Third Party Payments,Other establishments,29/04/2020,6362103,52.2,VENDOR,CRESCENT COMMUNITY CARE SERVICES LTD,100118
Portsmouth City Council,PCC,Adult Social Care,Physical Support Older People (85+),Adult Services,Third Party Payments,Other establishments,29/04/2020,6362103,49.43,VENDOR,CRESCENT COMMUNITY CARE SERVICES LTD,100118
Portsmouth City Council,PCC,Adult Social Care,Physical Support Older People (85+),Adult Services,Third Party Payments,Other establishments,29/04/2020,6362103,44.74,VENDOR,CRESCENT COMMUNITY CARE SERVICES LTD,100118
Portsmouth City Council,PCC,Adult Social Care,Physical Support Older People (85+),Adult Services,Third Party Payments,Other establishments,29/04/2020,6362103,135.04,VENDOR,CRESCENT COMMUNITY CARE SERVICES LTD,100118
Portsmouth City Council,PCC,Adult Social Care,Physical Support Older People (85+),Adult Services,Third Party Payments,Other establishments,29/04/2020,6362103,57.87,VENDOR,CRESCENT COMMUNITY CARE SERVICES LTD,100118
Portsmouth City Council,PCC,Adult Social Care,Physical Support Older People (85+),Adult Services,Third Party Payments,Other establishments,29/04/2020,6362103,104.4,VENDOR,CRESCENT COMMUNITY CARE SERVICES LTD,100118
Portsmouth City Council,PCC,Adult Social Care,Physical Support Older People (85+),Adult Services,Third Party Payments,Other establishments,29/04/2020,6362103,44.74,VENDOR,CRESCENT COMMUNITY CARE SERVICES LTD,100118
Portsmouth City Council,PCC,Adult Social Care,Physical Support Older People (85+),Adult Services,Third Party Payments,Other establishments,29/04/2020,6362103,250.79,VENDOR,CRESCENT COMMUNITY CARE SERVICES LTD,100118
Portsmouth City Council,PCC,Adult Social Care,Physical Support Older People (85+),Adult Services,Third Party Payments,Other establishments,29/04/2020,6362103,80.79,VENDOR,CRESCENT COMMUNITY CARE SERVICES LTD,100118
Portsmouth City Council,PCC,Adult Social Care,Physical Support Older People (85+),Adult Services,Third Party Payments,Other establishments,29/04/2020,6362103,405.12,VENDOR,CRESCENT COMMUNITY CARE SERVICES LTD,100118
Portsmouth City Council,PCC,Adult Social Care,Physical Support Older People (85+),Adult Services,Third Party Payments,Other establishments,29/04/2020,6362103,313.2,VENDOR,CRESCENT COMMUNITY CARE SERVICES LTD,100118
Portsmouth City Council,PCC,Adult Social Care,Physical Support Older People (85+),Adult Services,Third Party Payments,Other establishments,29/04/2020,6362103,118.16,VENDOR,CRESCENT COMMUNITY CARE SERVICES LTD,100118
Portsmouth City Council,PCC,Adult Social Care,Physical Support Older People (85+),Adult Services,Third Party Payments,Other establishments,29/04/2020,6362103,135.04,VENDOR,CRESCENT COMMUNITY CARE SERVICES LTD,100118
Portsmouth City Council,PCC,Adult Social Care,Physical Support Older People (85+),Adult Services,Third Party Payments,Other establishments,29/04/2020,6362103,135.04,VENDOR,CRESCENT COMMUNITY CARE SERVICES LTD,100118
Portsmouth City Council,PCC,Adult Social Care,Physical Support Older People (85+),Adult Services,Third Party Payments,Other establishments,29/04/2020,6362103,104.4,VENDOR,CRESCENT COMMUNITY CARE SERVICES LTD,100118
Portsmouth City Council,PCC,Adult Social Care,Physical Support Older People (85+),Adult Services,Third Party Payments,Other establishments,29/04/2020,6362103,104.4,VENDOR,CRESCENT COMMUNITY CARE SERVICES LTD,100118
Portsmouth City Council,PCC,Adult Social Care,Physical Support Older People (85+),Adult Services,Third Party Payments,Other establishments,29/04/2020,6362103,324.94,VENDOR,CRESCENT COMMUNITY CARE SERVICES LTD,100118
Portsmouth City Council,PCC,Adult Social Care,Physical Support Older People (85+),Adult Services,Third Party Payments,Other establishments,29/04/2020,6362103,261,VENDOR,CRESCENT COMMUNITY CARE SERVICES LTD,100118
Portsmouth City Council,PCC,Adult Social Care,Physical Support Older People (85+),Adult Services,Third Party Payments,Other establishments,29/04/2020,6362103,233.91,VENDOR,CRESCENT COMMUNITY CARE SERVICES LTD,100118
Portsmouth City Council,PCC,Adult Social Care,Physical Support Older People (85+),Adult Services,Third Party Payments,Other establishments,29/04/2020,6362103,193.89,VENDOR,CRESCENT COMMUNITY CARE SERVICES LTD,100118
Portsmouth City Council,PCC,Adult Social Care,Physical Support Older People (85+),Adult Services,Third Party Payments,Other establishments,29/04/2020,6362103,155.54,VENDOR,CRESCENT COMMUNITY CARE SERVICES LTD,100118
Portsmouth City Council,PCC,Adult Social Care,Physical Support Older People (85+),Adult Services,Third Party Payments,Other establishments,29/04/2020,6362103,231.17,VENDOR,CRESCENT COMMUNITY CARE SERVICES LTD,100118
Portsmouth City Council,PCC,Adult Social Care,Physical Support Older People (85+),Adult Services,Third Party Payments,Other establishments,29/04/2020,6362103,548.6,VENDOR,CRESCENT COMMUNITY CARE SERVICES LTD,100118
Portsmouth City Council,PCC,Adult Social Care,Physical Support Older People (85+),Adult Services,Third Party Payments,Other establishments,29/04/2020,6362103,417.6,VENDOR,CRESCENT COMMUNITY CARE SERVICES LTD,100118
Portsmouth City Council,PCC,Adult Social Care,Physical Support Older People (85+),Adult Services,Third Party Payments,Other establishments,29/04/2020,6362103,32.55,VENDOR,CRESCENT COMMUNITY CARE SERVICES LTD,100118
Portsmouth City Council,PCC,Adult Social Care,Physical Support Older People (85+),Adult Services,Third Party Payments,Other establishments,29/04/2020,6362103,44.74,VENDOR,CRESCENT COMMUNITY CARE SERVICES LTD,100118
Portsmouth City Council,PCC,Adult Social Care,Physical Support Older People (85+),Adult Services,Third Party Payments,Other establishments,29/04/2020,6362103,135.04,VENDOR,CRESCENT COMMUNITY CARE SERVICES LTD,100118
Portsmouth City Council,PCC,Adult Social Care,Physical Support Older People (85+),Adult Services,Third Party Payments,Other establishments,29/04/2020,6362103,104.4,VENDOR,CRESCENT COMMUNITY CARE SERVICES LTD,100118
Portsmouth City Council,PCC,Adult Social Care,Physical Support Older People (85+),Adult Services,Third Party Payments,Other establishments,29/04/2020,6362103,77.17,VENDOR,CRESCENT COMMUNITY CARE SERVICES LTD,100118
Portsmouth City Council,PCC,Adult Social Care,Physical Support Older People (85+),Adult Services,Third Party Payments,Other establishments,29/04/2020,6362103,59.66,VENDOR,CRESCENT COMMUNITY CARE SERVICES LTD,100118
Portsmouth City Council,PCC,Adult Social Care,Physical Support Older People (85+),Adult Services,Third Party Payments,Other establishments,29/04/2020,6362103,607.68,VENDOR,CRESCENT COMMUNITY CARE SERVICES LTD,100118
Portsmouth City Council,PCC,Adult Social Care,Physical Support Older People (85+),Adult Services,Third Party Payments,Other establishments,29/04/2020,6362103,607.68,VENDOR,CRESCENT COMMUNITY CARE SERVICES LTD,100118
Portsmouth City Council,PCC,Adult Social Care,Physical Support Older People (85+),Adult Services,Third Party Payments,Other establishments,29/04/2020,6362103,469.8,VENDOR,CRESCENT COMMUNITY CARE SERVICES LTD,100118
Portsmouth City Council,PCC,Adult Social Care,Physical Support Older People (85+),Adult Services,Third Party Payments,Other establishments,29/04/2020,6362103,469.8,VENDOR,CRESCENT COMMUNITY CARE SERVICES LTD,100118
Portsmouth City Council,PCC,Adult Social Care,Physical Support Older People (85+),Adult Services,Third Party Payments,Other establishments,29/04/2020,6362103,337.6,VENDOR,CRESCENT COMMUNITY CARE SERVICES LTD,100118
Portsmouth City Council,PCC,Adult Social Care,Physical Support Older People (85+),Adult Services,Third Party Payments,Other establishments,29/04/2020,6362103,261,VENDOR,CRESCENT COMMUNITY CARE SERVICES LTD,100118
Portsmouth City Council,PCC,Adult Social Care,Physical Support Older People (85+),Adult Services,Third Party Payments,Other establishments,29/04/2020,6362103,120.57,VENDOR,CRESCENT COMMUNITY CARE SERVICES LTD,100118
Portsmouth City Council,PCC,Adult Social Care,Physical Support Older People (85+),Adult Services,Third Party Payments,Other establishments,29/04/2020,6362103,6.21,VENDOR,CRESCENT COMMUNITY CARE SERVICES LTD,100118
Portsmouth City Council,PCC,Adult Social Care,Physical Support Older People (85+),Adult Services,Third Party Payments,Other establishments,29/04/2020,6362103,38.58,VENDOR,CRESCENT COMMUNITY CARE SERVICES LTD,100118
Portsmouth City Council,PCC,Adult Social Care,Physical Support Older People (85+),Adult Services,Third Party Payments,Other establishments,29/04/2020,6362103,29.83,VENDOR,CRESCENT COMMUNITY CARE SERVICES LTD,100118
Portsmouth City Council,PCC,Adult Social Care,Physical Support Older People (85+),Adult Services,Third Party Payments,Other establishments,29/04/2020,6362103,185.68,VENDOR,CRESCENT COMMUNITY CARE SERVICES LTD,100118
Portsmouth City Council,PCC,Adult Social Care,Physical Support Older People (85+),Adult Services,Third Party Payments,Other establishments,29/04/2020,6362103,308.66,VENDOR,CRESCENT COMMUNITY CARE SERVICES LTD,100118
Portsmouth City Council,PCC,Adult Social Care,Physical Support Older People (85+),Adult Services,Third Party Payments,Other establishments,29/04/2020,6362103,238.63,VENDOR,CRESCENT COMMUNITY CARE SERVICES LTD,100118
Portsmouth City Council,PCC,Adult Social Care,Physical Support Older People (85+),Adult Services,Third Party Payments,Other establishments,29/04/2020,6362103,607.68,VENDOR,CRESCENT COMMUNITY CARE SERVICES LTD,100118
Portsmouth City Council,PCC,Adult Social Care,Physical Support Older People (85+),Adult Services,Third Party Payments,Other establishments,29/04/2020,6362103,607.68,VENDOR,CRESCENT COMMUNITY CARE SERVICES LTD,100118
Portsmouth City Council,PCC,Adult Social Care,Physical Support Older People (85+),Adult Services,Third Party Payments,Other establishments,29/04/2020,6362103,156.6,VENDOR,CRESCENT COMMUNITY CARE SERVICES LTD,100118
Portsmouth City Council,PCC,Adult Social Care,Physical Support Older People (85+),Adult Services,Third Party Payments,Other establishments,29/04/2020,6362103,156.6,VENDOR,CRESCENT COMMUNITY CARE SERVICES LTD,100118
Portsmouth City Council,PCC,Adult Social Care,Physical Support Older People (85+),Adult Services,Third Party Payments,Other establishments,29/04/2020,6362103,270.08,VENDOR,CRESCENT COMMUNITY CARE SERVICES LTD,100118
Portsmouth City Council,PCC,Adult Social Care,Physical Support Older People (85+),Adult Services,Third Party Payments,Other establishments,29/04/2020,6362103,208.8,VENDOR,CRESCENT COMMUNITY CARE SERVICES LTD,100118
Portsmouth City Council,PCC,Adult Social Care,Physical Support Older People (85+),Adult Services,Third Party Payments,Other establishments,29/04/2020,6362103,101.28,VENDOR,CRESCENT COMMUNITY CARE SERVICES LTD,100118
Portsmouth City Council,PCC,Adult Social Care,Physical Support Older People (85+),Adult Services,Third Party Payments,Other establishments,29/04/2020,6362103,104.4,VENDOR,CRESCENT COMMUNITY CARE SERVICES LTD,100118
Portsmouth City Council,PCC,Adult Social Care,Physical Support Older People (85+),Adult Services,Third Party Payments,Other establishments,29/04/2020,6362103,527.5,VENDOR,CRESCENT COMMUNITY CARE SERVICES LTD,100118
Portsmouth City Council,PCC,Adult Social Care,Physical Support Older People (85+),Adult Services,Third Party Payments,Other establishments,29/04/2020,6362103,522,VENDOR,CRESCENT COMMUNITY CARE SERVICES LTD,100118
Portsmouth City Council,PCC,Adult Social Care,Physical Support Older People (85+),Adult Services,Third Party Payments,Other establishments,29/04/2020,6362103,126.6,VENDOR,CRESCENT COMMUNITY CARE SERVICES LTD,100118
Portsmouth City Council,PCC,Adult Social Care,Physical Support Older People (85+),Adult Services,Third Party Payments,Other establishments,29/04/2020,6362103,95.7,VENDOR,CRESCENT COMMUNITY CARE SERVICES LTD,100118
Portsmouth City Council,PCC,Adult Social Care,Physical Support Older People (85+),Adult Services,Third Party Payments,Other establishments,29/04/2020,6362103,38.58,VENDOR,CRESCENT COMMUNITY CARE SERVICES LTD,100118
Portsmouth City Council,PCC,Adult Social Care,Physical Support Older People (85+),Adult Services,Third Party Payments,Other establishments,29/04/2020,6362103,115.75,VENDOR,CRESCENT COMMUNITY CARE SERVICES LTD,100118
Portsmouth City Council,PCC,Adult Social Care,Physical Support Older People (85+),Adult Services,Third Party Payments,Other establishments,29/04/2020,6362103,29.83,VENDOR,CRESCENT COMMUNITY CARE SERVICES LTD,100118
Portsmouth City Council,PCC,Adult Social Care,Physical Support Older People (85+),Adult Services,Third Party Payments,Other establishments,29/04/2020,6362103,89.49,VENDOR,CRESCENT COMMUNITY CARE SERVICES LTD,100118
Portsmouth City Council,PCC,Adult Social Care,Physical Support Older People (85+),Adult Services,Third Party Payments,Other establishments,29/04/2020,6362103,540.16,VENDOR,CRESCENT COMMUNITY CARE SERVICES LTD,100118
Portsmouth City Council,PCC,Adult Social Care,Physical Support Older People (85+),Adult Services,Third Party Payments,Other establishments,29/04/2020,6362103,413.25,VENDOR,CRESCENT COMMUNITY CARE SERVICES LTD,100118
Portsmouth City Council,PCC,Adult Social Care,Physical Support Older People (85+),Adult Services,Third Party Payments,Other establishments,29/04/2020,6362103,270.08,VENDOR,CRESCENT COMMUNITY CARE SERVICES LTD,100118
Portsmouth City Council,PCC,Adult Social Care,Physical Support Older People (85+),Adult Services,Third Party Payments,Other establishments,29/04/2020,6362103,208.8,VENDOR,CRESCENT COMMUNITY CARE SERVICES LTD,100118
Portsmouth City Council,PCC,Adult Social Care,Physical Support Older People (85+),Adult Services,Third Party Payments,Other establishments,29/04/2020,6362103,713.78,VENDOR,CRESCENT COMMUNITY CARE SERVICES LTD,100118
Portsmouth City Council,PCC,Adult Social Care,Physical Support Older People (85+),Adult Services,Third Party Payments,Other establishments,29/04/2020,6362103,551.83,VENDOR,CRESCENT COMMUNITY CARE SERVICES LTD,100118
Portsmouth City Council,PCC,Adult Social Care,Physical Support Older People (85+),Adult Services,Third Party Payments,Other establishments,29/04/2020,6362103,531.72,VENDOR,CRESCENT COMMUNITY CARE SERVICES LTD,100118
Portsmouth City Council,PCC,Adult Social Care,Physical Support Older People (85+),Adult Services,Third Party Payments,Other establishments,29/04/2020,6362103,469.8,VENDOR,CRESCENT COMMUNITY CARE SERVICES LTD,100118
Portsmouth City Council,PCC,Adult Social Care,Physical Support Older People (85+),Adult Services,Third Party Payments,Other establishments,29/04/2020,6362103,742.72,VENDOR,CRESCENT COMMUNITY CARE SERVICES LTD,100118
Portsmouth City Council,PCC,Adult Social Care,Physical Support Older People (85+),Adult Services,Third Party Payments,Other establishments,29/04/2020,6362103,742.72,VENDOR,CRESCENT COMMUNITY CARE SERVICES LTD,100118
Portsmouth City Council,PCC,Adult Social Care,Physical Support Older People (85+),Adult Services,Third Party Payments,Other establishments,29/04/2020,6362103,574.2,VENDOR,CRESCENT COMMUNITY CARE SERVICES LTD,100118
Portsmouth City Council,PCC,Adult Social Care,Physical Support Older People (85+),Adult Services,Third Party Payments,Other establishments,29/04/2020,6362103,574.2,VENDOR,CRESCENT COMMUNITY CARE SERVICES LTD,100118
Portsmouth City Council,PCC,Adult Social Care,Physical Support Older People (85+),Adult Services,Third Party Payments,Other establishments,29/04/2020,6362103,202.56,VENDOR,CRESCENT COMMUNITY CARE SERVICES LTD,100118
Portsmouth City Council,PCC,Adult Social Care,Physical Support Older People (85+),Adult Services,Third Party Payments,Other establishments,29/04/2020,6362103,156.6,VENDOR,CRESCENT COMMUNITY CARE SERVICES LTD,100118
Portsmouth City Council,PCC,Adult Social Care,Physical Support Older People (85+),Adult Services,Third Party Payments,Other establishments,29/04/2020,6362103,540.16,VENDOR,CRESCENT COMMUNITY CARE SERVICES LTD,100118
Portsmouth City Council,PCC,Adult Social Care,Physical Support Older People (85+),Adult Services,Third Party Payments,Other establishments,29/04/2020,6362103,540.16,VENDOR,CRESCENT COMMUNITY CARE SERVICES LTD,100118
Portsmouth City Council,PCC,Adult Social Care,Physical Support Older People (85+),Adult Services,Third Party Payments,Other establishments,29/04/2020,6362103,417.6,VENDOR,CRESCENT COMMUNITY CARE SERVICES LTD,100118
Portsmouth City Council,PCC,Adult Social Care,Physical Support Older People (85+),Adult Services,Third Party Payments,Other establishments,29/04/2020,6362103,417.6,VENDOR,CRESCENT COMMUNITY CARE SERVICES LTD,100118
Portsmouth City Council,PCC,Adult Social Care,Physical Support Older People (85+),Adult Services,Third Party Payments,Other establishments,29/04/2020,6362103,607.68,VENDOR,CRESCENT COMMUNITY CARE SERVICES LTD,100118
Portsmouth City Council,PCC,Adult Social Care,Physical Support Older People (85+),Adult Services,Third Party Payments,Other establishments,29/04/2020,6362103,469.8,VENDOR,CRESCENT COMMUNITY CARE SERVICES LTD,100118
Portsmouth City Council,PCC,Adult Social Care,Physical Support Older People (85+),Adult Services,Third Party Payments,Other establishments,29/04/2020,6362103,135.04,VENDOR,CRESCENT COMMUNITY CARE SERVICES LTD,100118
Portsmouth City Council,PCC,Adult Social Care,Physical Support Older People (85+),Adult Services,Third Party Payments,Other establishments,29/04/2020,6362103,104.4,VENDOR,CRESCENT COMMUNITY CARE SERVICES LTD,100118
Portsmouth City Council,PCC,Adult Social Care,Physical Support Older People (85+),Adult Services,Third Party Payments,Other establishments,29/04/2020,6362103,59.08,VENDOR,CRESCENT COMMUNITY CARE SERVICES LTD,100118
Portsmouth City Council,PCC,Adult Social Care,Physical Support Older People (85+),Adult Services,Third Party Payments,Other establishments,29/04/2020,6362103,540.16,VENDOR,CRESCENT COMMUNITY CARE SERVICES LTD,100118
Portsmouth City Council,PCC,Adult Social Care,Physical Support Older People (85+),Adult Services,Third Party Payments,Other establishments,29/04/2020,6362103,286.96,VENDOR,CRESCENT COMMUNITY CARE SERVICES LTD,100118
Portsmouth City Council,PCC,Adult Social Care,Physical Support Older People (85+),Adult Services,Third Party Payments,Other establishments,29/04/2020,6362103,417.6,VENDOR,CRESCENT COMMUNITY CARE SERVICES LTD,100118
Portsmouth City Council,PCC,Adult Social Care,Physical Support Older People (85+),Adult Services,Third Party Payments,Other establishments,29/04/2020,6362103,226.2,VENDOR,CRESCENT COMMUNITY CARE SERVICES LTD,100118
Portsmouth City Council,PCC,Adult Social Care,Physical Support Older People (85+),Adult Services,Third Party Payments,Other establishments,29/04/2020,6362103,43.41,VENDOR,CRESCENT COMMUNITY CARE SERVICES LTD,100118
Portsmouth City Council,PCC,Adult Social Care,Physical Support Older People (85+),Adult Services,Third Party Payments,Other establishments,29/04/2020,6362103,24.86,VENDOR,CRESCENT COMMUNITY CARE SERVICES LTD,100118
Portsmouth City Council,PCC,Adult Social Care,Physical Support Older People (85+),Adult Services,Third Party Payments,Other establishments,29/04/2020,6362103,278.52,VENDOR,CRESCENT COMMUNITY CARE SERVICES LTD,100118
Portsmouth City Council,PCC,Adult Social Care,Physical Support Older People (85+),Adult Services,Third Party Payments,Other establishments,29/04/2020,6362103,208.8,VENDOR,CRESCENT COMMUNITY CARE SERVICES LTD,100118
Portsmouth City Council,PCC,Adult Social Care,Physical Support Older People (85+),Adult Services,Third Party Payments,Other establishments,29/04/2020,6362103,211,VENDOR,CRESCENT COMMUNITY CARE SERVICES LTD,100118
Portsmouth City Council,PCC,Adult Social Care,Physical Support Older People (85+),Adult Services,Third Party Payments,Other establishments,29/04/2020,6362103,261,VENDOR,CRESCENT COMMUNITY CARE SERVICES LTD,100118
Portsmouth City Council,PCC,Adult Social Care,Physical Support Older People (85+),Adult Services,Third Party Payments,Other establishments,29/04/2020,6362103,607.68,VENDOR,CRESCENT COMMUNITY CARE SERVICES LTD,100118
Portsmouth City Council,PCC,Adult Social Care,Physical Support Older People (85+),Adult Services,Third Party Payments,Other establishments,29/04/2020,6362103,469.8,VENDOR,CRESCENT COMMUNITY CARE SERVICES LTD,100118
Portsmouth City Council,PCC,Adult Social Care,Physical Support Older People (85+),Adult Services,Third Party Payments,Other establishments,29/04/2020,6362103,607.68,VENDOR,CRESCENT COMMUNITY CARE SERVICES LTD,100118
Portsmouth City Council,PCC,Adult Social Care,Physical Support Older People (85+),Adult Services,Third Party Payments,Other establishments,29/04/2020,6362103,469.8,VENDOR,CRESCENT COMMUNITY CARE SERVICES LTD,100118
Portsmouth City Council,PCC,Adult Social Care,Physical Support Older People (85+),Adult Services,Third Party Payments,Other establishments,29/04/2020,6362103,396.68,VENDOR,CRESCENT COMMUNITY CARE SERVICES LTD,100118
Portsmouth City Council,PCC,Adult Social Care,Physical Support Older People (85+),Adult Services,Third Party Payments,Other establishments,29/04/2020,6362103,122.38,VENDOR,CRESCENT COMMUNITY CARE SERVICES LTD,100118
Portsmouth City Council,PCC,Adult Social Care,Learning Disability Support  Adults (18 - 64),Adult Services,Third Party Payments,Other establishments,29/04/2020,6362103,38.58,VENDOR,CRESCENT COMMUNITY CARE SERVICES LTD,100118
Portsmouth City Council,PCC,Adult Social Care,Learning Disability Support  Adults (18 - 64),Adult Services,Third Party Payments,Other establishments,29/04/2020,6362103,29.83,VENDOR,CRESCENT COMMUNITY CARE SERVICES LTD,100118
Portsmouth City Council,PCC,Adult Social Care,Learning Disability Support  Adults (18 - 64),Adult Services,Third Party Payments,Other establishments,29/04/2020,6362103,219.44,VENDOR,CRESCENT COMMUNITY CARE SERVICES LTD,100118
Portsmouth City Council,PCC,Adult Social Care,Learning Disability Support  Adults (18 - 64),Adult Services,Third Party Payments,Other establishments,29/04/2020,6362103,219.44,VENDOR,CRESCENT COMMUNITY CARE SERVICES LTD,100118
Portsmouth City Council,PCC,Adult Social Care,Learning Disability Support  Adults (18 - 64),Adult Services,Third Party Payments,Other establishments,29/04/2020,6362103,208.8,VENDOR,CRESCENT COMMUNITY CARE SERVICES LTD,100118
Portsmouth City Council,PCC,Adult Social Care,Learning Disability Support  Adults (18 - 64),Adult Services,Third Party Payments,Other establishments,29/04/2020,6362103,208.8,VENDOR,CRESCENT COMMUNITY CARE SERVICES LTD,100118
Portsmouth City Council,PCC,Adult Social Care,Social Support - Support for Carer,Adult Services,Third Party Payments,Other establishments,29/04/2020,6362103,56.01,VENDOR,CRESCENT COMMUNITY CARE SERVICES LTD,100118
Portsmouth City Council,PCC,Adult Social Care,Social Support - Support for Carer,Adult Services,Third Party Payments,Other establishments,29/04/2020,6362103,76.94,VENDOR,CRESCENT COMMUNITY CARE SERVICES LTD,100118
Portsmouth City Council,PCC,Adult Social Care,Social Support - Support for Carer,Adult Services,Third Party Payments,Other establishments,29/04/2020,6362103,228.17,VENDOR,CRESCENT COMMUNITY CARE SERVICES LTD,100118
Portsmouth City Council,PCC,Adult Social Care,Social Support - Support for Carer,Adult Services,Third Party Payments,Other establishments,29/04/2020,6362103,153.87,VENDOR,CRESCENT COMMUNITY CARE SERVICES LTD,100118
Portsmouth City Council,PCC,Adult Social Care,Social Support - Support for Carer,Adult Services,Third Party Payments,Other establishments,29/04/2020,6362103,43.56,VENDOR,CRESCENT COMMUNITY CARE SERVICES LTD,100118
Portsmouth City Council,PCC,Adult Social Care,Social Support - Support for Carer,Adult Services,Third Party Payments,Other establishments,29/04/2020,6362103,99.57,VENDOR,CRESCENT COMMUNITY CARE SERVICES LTD,100118
Portsmouth City Council,PCC,Adult Social Care,Social Support - Support for Carer,Adult Services,Third Party Payments,Other establishments,29/04/2020,6362103,76.94,VENDOR,CRESCENT COMMUNITY CARE SERVICES LTD,100118
Portsmouth City Council,PCC,Adult Social Care,Social Support - Support for Carer,Adult Services,Third Party Payments,Other establishments,29/04/2020,6362103,66.38,VENDOR,CRESCENT COMMUNITY CARE SERVICES LTD,100118
Portsmouth City Council,PCC,Adult Social Care,Social Support - Support for Carer,Adult Services,Third Party Payments,Other establishments,29/04/2020,6362103,51.29,VENDOR,CRESCENT COMMUNITY CARE SERVICES LTD,100118
Portsmouth City Council,PCC,Adult Social Care,Social Support - Support for Carer,Adult Services,Third Party Payments,Other establishments,29/04/2020,6362103,99.57,VENDOR,CRESCENT COMMUNITY CARE SERVICES LTD,100118
Portsmouth City Council,PCC,Adult Social Care,Social Support - Support for Carer,Adult Services,Third Party Payments,Other establishments,29/04/2020,6362103,76.94,VENDOR,CRESCENT COMMUNITY CARE SERVICES LTD,100118
Portsmouth City Council,PCC,Adult Social Care,Social Support - Support for Carer,Adult Services,Third Party Payments,Other establishments,29/04/2020,6362103,199.13,VENDOR,CRESCENT COMMUNITY CARE SERVICES LTD,100118
Portsmouth City Council,PCC,Adult Social Care,Social Support - Support for Carer,Adult Services,Third Party Payments,Other establishments,29/04/2020,6362103,153.87,VENDOR,CRESCENT COMMUNITY CARE SERVICES LTD,100118
Portsmouth City Council,PCC,Adult Social Care,Social Support - Support for Carer,Adult Services,Third Party Payments,Other establishments,29/04/2020,6362103,112.01,VENDOR,CRESCENT COMMUNITY CARE SERVICES LTD,100118
Portsmouth City Council,PCC,Adult Social Care,Social Support - Support for Carer,Adult Services,Third Party Payments,Other establishments,29/04/2020,6362103,153.87,VENDOR,CRESCENT COMMUNITY CARE SERVICES LTD,100118
